date,department/service,beneficiary,amount,summary of purpose,category,transaction number,SAP vendor number
01.04.2022,ADULT SOCIAL CARE,REALITY FAMILY SUPPORT SERVICES LTD,808.5,PHY LTS 18-64,OTHER PAYMENTS FOR CLIENTS,5902517664,1000087878
01.04.2022,ADULT SOCIAL CARE,THAMES HOMECARE SERVICE LTD,"31,920.00",REABLEMENT CONTRACT,HOMECARE - C&V,5902517847,1000079295
01.04.2022,ASSET MANAGEMENT,ASHFORDS LLP OFFICE ACCOUNT,297,DISREPAIR,PAYMENTS FOR LEGAL SERVICES,5902518428,1000082695
01.04.2022,ASSET MANAGEMENT,ASHFORDS LLP OFFICE ACCOUNT,660,DISREPAIR,PAYMENTS FOR LEGAL SERVICES,5902518381,1000082695
01.04.2022,CENTRAL FUNCTIONS,BRESLIN CONSTRUCTION LTD,980,COMMERCIAL PROPERTIES,BUILDING R&M,2103410454,3000001948
01.04.2022,CENTRAL FUNCTIONS,SKYGUARD LIMITED,410,OPERATIONAL TEAM,TELEPHONES (MOBILES),5902518601,1000063623
01.04.2022,CHILDREN AND FAMILIES,REALITY FAMILY SUPPORT SERVICES LTD,346.5,EDGE OF CARE DECIS�S,OTHER PAYMENTS FOR CLIENTS,5902517664,1000087878
01.04.2022,CUSTOMER EXPERIENCE HGF,REDACTED PERSONAL DATA,291,REGISTRARS,MANDATORY STATUTORY FEES & CHARGES,REDACTED,REDACTED
01.04.2022,EDUCATION,MARTINS UPHOLSTERY SUPPLIES LTD,254.4,ALC  DIRECT DELIVERY,MATERIALS,5902517756,1000049444
01.04.2022,ENVIRONMENT AND LEISURE,WF EDUCATION GROUP LIMITED,825,CAPITAL PS (LEISURE),"PLANT, MACHINERY & EQUIPMENT ACQUISITION",5902517568,1000086286
01.04.2022,ENVIRONMENT DIRECTORATE,LOCK IT SAFE LTD,"17,643.00","ROAD SAFETY EDUCATION,TRAINING&PUBLICITY",EQUIPMENT PURCHASE & REPAIR,5902517564,1000080623
01.04.2022,F & C S EXCLUDING CORPORATE BUDGETS,BETTER BANKSIDE,"25,040.04",BETTER BANKSIDE,EXTERNAL AGENCIES AND BODIES,5902518651,1000036227
01.04.2022,HOUSING HRA,PINNACLE BUILDING SERVICES,"9,034.00",CAPITAL PS (HOUSING GF),CAPITAL GRANTS,5902518114,1000082308
01.04.2022,HOUSING HRA,CALFORD SEADEN LLP,772.24,CAPITAL PS (HRA),CONSTRUCTION FEES  - EXTERNAL,5902517571,1061592
01.04.2022,HOUSING HRA,STEVEN VAUGHAN ASSOCIATES,750,CAPITAL PS (HRA),CONSTRUCTION FEES  - EXTERNAL,5902518986,1000086873
01.04.2022,HOUSING HRA,AIR QUALITY ASSESSMENTS LTD,"1,620.00",CAPITAL PS (HRA),CONSTRUCTION FEES  - EXTERNAL,5902517608,1000086945
01.04.2022,HOUSING HRA,FPWS PARTY WALL SURVEYORS LTD,"1,350.00",CAPITAL PS (HRA),CONSTRUCTION FEES  - EXTERNAL,5902518984,1000088129
01.04.2022,HOUSING HRA,BONDS BUILDERS AND CONTRACTORS LTD,"11,643.50",CAPITAL PS (HRA),CONSTRUCTION MAIN CONTRACT -CERTIFICATED,2103407336,3000002137
01.04.2022,HOUSING HRA,BONDS BUILDERS AND CONTRACTORS LTD,"13,060.30",CAPITAL PS (HRA),CONSTRUCTION MAIN CONTRACT -CERTIFICATED,2103407337,3000002137
01.04.2022,LEISURE DIRECTORATE,NPOWER LTD,278.65,BURGESS AREA TEAM,ELECTRICITY,5902518443,1000078994
01.04.2022,LEISURE DIRECTORATE,NPOWER LTD,410.08,BURGESS AREA TEAM,ELECTRICITY,5902518429,1000078994
01.04.2022,LEISURE DIRECTORATE,NPOWER LTD,793.93,BURGESS AREA TEAM,ELECTRICITY,5902518387,1000078994
01.04.2022,LEISURE DIRECTORATE,NPOWER LTD,963.86,BURGESS AREA TEAM,ELECTRICITY,5902518440,1000078994
01.04.2022,LEISURE DIRECTORATE,NPOWER LTD,647.41,DULWICH AREA TEAM,ELECTRICITY,5902518412,1000078994
01.04.2022,LEISURE DIRECTORATE,BRESLIN CONSTRUCTION LTD,900,HOMERSTALL ROAD SPORTS GROUND,BUILDING R&M,2103410455,3000001948
01.04.2022,PLANNING AND TRANSPORT,BPS CHARTERED SURVEYORS,"4,640.00",STRATEGIC APPLICATIONS,PROFESSIONAL FEES,5902517599,1000077923
01.04.2022,PUBLIC HEALTH,PAXTON GREEN TIME BANK,"2,925.00",COVID-19 CONTROL OUTBREAK MGMNT.FUND,EXTERNAL AGENCIES AND BODIES,5902519093,1000070648
01.04.2022,SBS SUPPORT,NPOWER LTD,290.92,R & M OVERHEADS,ELECTRICITY,5902517591,1000078994
02.04.2022,ADULT SOCIAL CARE,SYKES CHOICE LTD,"1,057.00",SAFEGUARDING & DOLS,EXTERNAL AGENCIES AND BODIES,5902517750,1000082690
02.04.2022,ASSET MANAGEMENT,FRANKHAM CONSULTANCY GROUP LTD,"1,250.00",DISREPAIR,PAYMENTS FOR LEGAL SERVICES,5902518296,1000043952
02.04.2022,ASSET MANAGEMENT,FRANKHAM CONSULTANCY GROUP LTD,"1,250.00",DISREPAIR,PAYMENTS FOR LEGAL SERVICES,5902518297,1000043952
02.04.2022,ASSET MANAGEMENT,ARMINA LTD,"1,166.35",DISREPAIR,PAYMENTS FOR LEGAL SERVICES,2103408142,3000002121
02.04.2022,CENTRAL FUNCTIONS,KENT COUNTY COUNCIL - LASER,"115,883.04",HEATING ACCOUNT,ELECTRICITY,5902517720,1000012926
02.04.2022,CENTRAL FUNCTIONS,KENT COUNTY COUNCIL - LASER,"477,621.20",HEATING ACCOUNT,GAS,5902517722,1000012926
02.04.2022,CENTRAL FUNCTIONS,POSTURITE LTD,"1,312.46",OPERATIONAL TEAM,EQUIPMENT PURCHASE & REPAIR,5902517470,11015468
02.04.2022,CHILDREN AND FAMILIES,SOUTH LONDON & MAUDSLEY HOSPITAL,"8,700.00",MGMT & PARENTING,PROFESSIONAL FEES,5902517759,1000013096
02.04.2022,CUSTOMER EXPERIENCE HGF,IMPERIAL COLLEGE PROJECTS LTD,432,CORONER'S,PROFESSIONAL FEES,5902518413,1000080106
02.04.2022,ENVIRONMENT AND LEISURE,SEATED FURNITURE,"1,890.00",CAPITAL PS (LEISURE),"PLANT, MACHINERY & EQUIPMENT ACQUISITION",5902518277,1000088110
02.04.2022,ENVIRONMENT DIRECTORATE,BARRETTINE ENVIRONMENTAL HEALTH,727,PEST CONTROL,MATERIALS,5902519087,1000050556
02.04.2022,ENVIRONMENT DIRECTORATE,GALLEYWALL PRIMARY SCHOOL,393.99,"ROAD SAFETY EDUCATION,TRAINING&PUBLICITY",GRANTS,5902517740,1000078128
02.04.2022,F & C S EXCLUDING CORPORATE BUDGETS,HB EDITORIAL SERVICES LTD,"2,995.00",LEGAL SVCES MANAGEMENT,SUBSCRIPTIONS,5902518650,1000088213
02.04.2022,HOUSING HRA,SOUTH EAST BUILDING CONTRACTORS LTD,810,CAPITAL PS (HOUSING GF),CAPITAL GRANTS,5902517934,1000049893
02.04.2022,HOUSING HRA,SOUTH EAST BUILDING CONTRACTORS LTD,"3,000.00",CAPITAL PS (HOUSING GF),CAPITAL GRANTS,5902518121,1000049893
02.04.2022,HOUSING HRA,SOUTH EAST BUILDING CONTRACTORS LTD,"12,539.50",CAPITAL PS (HOUSING GF),CAPITAL GRANTS,5902517929,1000049893
02.04.2022,HOUSING HRA,PINNACLE BUILDING SERVICES,"1,850.00",CAPITAL PS (HOUSING GF),CAPITAL GRANTS,5902518123,1000082308
02.04.2022,HOUSING HRA,CALFORD SEADEN LLP,"2,368.00",CAPITAL PS (HRA),CONSTRUCTION FEES - EMPLOYERS AGENT,5902518332,1061592
02.04.2022,HOUSING HRA,CALFORD SEADEN LLP,"2,579.00",CAPITAL PS (HRA),CONSTRUCTION FEES - EMPLOYERS AGENT,5902518348,1061592
02.04.2022,HOUSING HRA,MONTAGU EVANS LLP,495,CAPITAL PS (HRA),CONSTRUCTION FEES  - EXTERNAL,5902518892,1000073283
02.04.2022,HOUSING HRA,MONTAGU EVANS LLP,495,CAPITAL PS (HRA),CONSTRUCTION FEES  - EXTERNAL,5902518892,1000073283
02.04.2022,HOUSING HRA,MONTAGU EVANS LLP,"1,980.00",CAPITAL PS (HRA),CONSTRUCTION FEES  - EXTERNAL,5902518892,1000073283
02.04.2022,HOUSING HRA,PINNACLE BUILDING SERVICES,980,CAPITAL PS (HRA),UTILITIES INSTALLATION,5902518280,1000082308
02.04.2022,HOUSING HRA,BUILDING ASSOCIATES LTD,"48,432.24",CAPITAL PS (HRA),CONSTRUCTION MAIN CONTRACT,2103411220,3000002218
02.04.2022,HOUSING HRA,GLENMAN CORPORATION LTD,"76,409.92",CAPITAL PS (REGEN),CONSTRUCTION FEES  - EXTERNAL,5902518954,1000088145
02.04.2022,LEISURE DIRECTORATE,JO BUNKER TRAINING,550,LIBRARIES DEVELOPMENT,TRAINING,5902518264,1000083291
02.04.2022,PUBLIC HEALTH,FIT FOR SPORT LTD,"1,705.00",HOLIDAY ACTIVITIES & FOOD,EXTERNAL AGENCIES AND BODIES,5902517604,1000067092
02.04.2022,RESIDENT SERVICES,METIS CONSULTANTS LIMITED,"1,573.00",GREAT ESTATES,CONSULTANTS SERVICES,5902517643,1000086330
03.04.2022,ADULT SOCIAL CARE,HUNTERSJOY LTD,670,ASW - PROFESSIONAL DEVELOPMENT,TRAINING,5902517773,1000077343
03.04.2022,ASSET MANAGEMENT,BRYHILL TECHNICAL SERVICES,"7,722.65",DISREPAIR,PAYMENTS FOR LEGAL SERVICES,2103408170,3000001722
03.04.2022,ASSET MANAGEMENT,GC CONSTRUCT LTD,"3,444.31",DISREPAIR,BUILDING R&M,2103411217,3000002106
03.04.2022,CENTRAL FUNCTIONS,CAPITA BUSINESS SERVICES LTD,"102,468.00",EXCHEQUER RENTS,OTHER CONTRACTORS,5902518286,1000006291
03.04.2022,CHIEF EXECUTIVE'S OFFICE,CASTELLAN SOLUTIONS LIMITED,"14,000.00",RESILIENCE AND EMERGENCY PLANNING,COMMS & COMPUTING CONTRACT CHARGES,5902517708,1000086924
03.04.2022,CHILDREN AND FAMILIES,REDACTED PERSONAL DATA,"2,500.00",ADOPTION SUPP FUND,EXTERNAL AGENCIES AND BODIES,REDACTED,REDACTED
03.04.2022,CHILDREN AND FAMILIES,REDACTED PERSONAL DATA,"2,500.00",ADOPTION SUPP FUND,EXTERNAL AGENCIES AND BODIES,REDACTED,REDACTED
03.04.2022,CUSTOMER EXPERIENCE,ROL SOLUTIONS LTD,"2,126.12",PECKHAM MSSP,HARDWARE,5902517718,1000069512
03.04.2022,DIRECTORATE,CAPITA PROPERTY & INFRASTRUCTURE LTD,"5,950.00",STRATEGIC BUSINESS PLANNING,SUBSCRIPTIONS,5902518266,1000049453
03.04.2022,EDUCATION,PULSE HEALTHCARE LTD,308,SCH TRANS � TRAVEL,AGENCY STAFF,5902518894,1000035063
03.04.2022,ENVIRONMENT AND LEISURE,CROWN OIL LTD,"1,042.18",SANDGATE STREET,VEHICLE FUEL,5902518260,1000081749
03.04.2022,ENVIRONMENT DIRECTORATE,THE OUT OF HOME MEDIA CONSULTANCY LTD,"2,125.00",ADVERTISING HOARDINGS,HIGHWAYS TERM CONTRACT,5902517721,1000078969
03.04.2022,ENVIRONMENT DIRECTORATE,TOWN & COUNTRY TURF,"2,480.25",GROUNDS MAINTENANCE - GENERAL,MATERIALS,5902518256,1000079312
03.04.2022,ENVIRONMENT DIRECTORATE,RATHBONE ADVERTISING LTD,"1,166.67",RESIDENTIAL SERVICES,MARKETING & PUBLICITY SERVICES,5902518904,1000086971
03.04.2022,HOUSING HRA,AJM ADAPTIONS LTD,"4,387.50",CAPITAL PS (HOUSING GF),CAPITAL GRANTS,5902518033,1000080297
03.04.2022,HOUSING HRA,AJM ADAPTIONS LTD,"4,500.00",CAPITAL PS (HOUSING GF),CAPITAL GRANTS,5902518502,1000080297
03.04.2022,HOUSING HRA,CALFORD SEADEN LLP,"2,646.00",CAPITAL PS (HRA),CONSTRUCTION FEES  - EXTERNAL,5902518931,1061592
03.04.2022,HOUSING HRA,SHERGROUP LTD,"3,360.00",CAPITAL PS (HRA),CONSTRUCTION FEES  - EXTERNAL,5902517789,1000087977
03.04.2022,HOUSING HRA,EQUANS REGENERATION LTD,"199,736.62",CAPITAL PS (HRA),CONSTRUCTION MAIN CONTRACT -CERTIFICATED,2103408173,3000002035
03.04.2022,NEW BUILD,RICS,"1,135.00",DEVELOPMENT DELIVERY,TRAINING,5902518707,1000015523
03.04.2022,PLANNING AND TRANSPORT,STEER DAVIES & GLEAVE LIMITED,"16,250.00",OKR MASTER PLANNING,PROFESSIONAL FEES,5902519006,1823348
03.04.2022,RESIDENT SERVICES HGF,LIFE SKILLZ CIC,"3,375.36",AFEO,EXTERNAL AGENCIES AND BODIES,5902519124,1000088098
03.04.2022,RESIDENT SERVICES HGF,PRIME UK MANAGEMENT LTD,"2,500.00",HOMELESS PROJECTS,GRANTS,5902517923,1000081616
03.04.2022,SBS SUPPORT,LOWER MEAD LTD,"2,745.00",REORGANISATION COSTS,PROFESSIONAL FEES,5902518318,1000082508
03.04.2022,SBS SUPPORT,LOWER MEAD LTD,"3,050.00",REORGANISATION COSTS,PROFESSIONAL FEES,5902518319,1000082508
04.04.2022,ADULT SOCIAL CARE,REDACTED PERSONAL DATA,600,APPOINTEESHIPS,OTHER PAYMENTS FOR CLIENTS,REDACTED,REDACTED
04.04.2022,ADULT SOCIAL CARE,REDACTED PERSONAL DATA,488,APPOINTEESHIPS,OTHER PAYMENTS FOR CLIENTS,REDACTED,REDACTED
04.04.2022,ADULT SOCIAL CARE,OXFORD BROOKES ENTERPRISES LTD,"51,830.00",DIR OF ASC,EXTERNAL AGENCIES AND BODIES,5902519259,1000076102
04.04.2022,ADULT SOCIAL CARE,COMMUNITY BUILDING MANAGEMENT,"1,494.00",DISABILITIES LAC,EXTERNAL AGENCIES AND BODIES,2103411670,1000078932
04.04.2022,ADULT SOCIAL CARE,COMMUNITY BUILDING MANAGEMENT,"1,494.00",DISABILITIES LAC,EXTERNAL AGENCIES AND BODIES,2103411671,1000078932
04.04.2022,ADULT SOCIAL CARE,COMMUNITY BUILDING MANAGEMENT,"1,494.00",DISABILITIES LAC,EXTERNAL AGENCIES AND BODIES,2103411672,1000078932
04.04.2022,ADULT SOCIAL CARE,COMMUNITY BUILDING MANAGEMENT,"1,494.00",DISABILITIES LAC,EXTERNAL AGENCIES AND BODIES,2103411677,1000078932
04.04.2022,ADULT SOCIAL CARE,COMMUNITY BUILDING MANAGEMENT,"1,494.00",DISABILITIES LAC,EXTERNAL AGENCIES AND BODIES,2103411678,1000078932
04.04.2022,ADULT SOCIAL CARE,COMMUNITY BUILDING MANAGEMENT,"1,494.00",DISABILITIES LAC,EXTERNAL AGENCIES AND BODIES,2103411679,1000078932
04.04.2022,ADULT SOCIAL CARE,THAMES HOMECARE SERVICE LTD,421.2,DISCHARGE TO ACCESS,HOMECARE - SPOT,2103411542,1000079295
04.04.2022,ADULT SOCIAL CARE,THAMES HOMECARE SERVICE LTD,"1,132.56",DISCHARGE TO ACCESS,HOMECARE - SPOT,2103411575,1000079295
04.04.2022,ADULT SOCIAL CARE,MEDACS HOMECARE,"1,028.98",LD LTS 18-64,HOMECARE - C&V,2103411453,11287415
04.04.2022,ADULT SOCIAL CARE,THAMES HOMECARE SERVICE LTD,524.16,LD LTS 18-64,HOMECARE - SPOT,2103411572,1000079295
04.04.2022,ADULT SOCIAL CARE,MEDACS HOMECARE,"1,010.47",MEM LTS 65+,HOMECARE - C&V,2103411450,11287415
04.04.2022,ADULT SOCIAL CARE,MEDACS HOMECARE,"1,617.80",MEM LTS 65+,HOMECARE - C&V,2103411469,11287415
04.04.2022,ADULT SOCIAL CARE,THAMES HOMECARE SERVICE LTD,804.96,MEM LTS 65+,HOMECARE - C&V,2103411637,1000079295
04.04.2022,ADULT SOCIAL CARE,THAMES HOMECARE SERVICE LTD,655.2,MEM LTS 65+,HOMECARE - SPOT,2103411595,1000079295
04.04.2022,ADULT SOCIAL CARE,MEDACS HOMECARE,733.25,MH LTS 18-64,HOMECARE - C&V,2103411458,11287415
04.04.2022,ADULT SOCIAL CARE,MEDACS HOMECARE,"1,696.50",MH LTS 18-64,HOMECARE - C&V,2103411395,11287415
04.04.2022,ADULT SOCIAL CARE,MEDACS HOMECARE,323.49,PHY LTS 18-64,HOMECARE - C&V,2103411448,11287415
04.04.2022,ADULT SOCIAL CARE,MEDACS HOMECARE,338.39,PHY LTS 18-64,HOMECARE - C&V,2103411386,11287415
04.04.2022,ADULT SOCIAL CARE,MEDACS HOMECARE,370.93,PHY LTS 18-64,HOMECARE - C&V,2103411452,11287415
04.04.2022,ADULT SOCIAL CARE,MEDACS HOMECARE,398.75,PHY LTS 18-64,HOMECARE - C&V,2103411398,11287415
04.04.2022,ADULT SOCIAL CARE,MEDACS HOMECARE,444.99,PHY LTS 18-64,HOMECARE - C&V,2103411466,11287415
04.04.2022,ADULT SOCIAL CARE,MEDACS HOMECARE,547.87,PHY LTS 18-64,HOMECARE - C&V,2103411468,11287415
04.04.2022,ADULT SOCIAL CARE,MEDACS HOMECARE,631.5,PHY LTS 18-64,HOMECARE - C&V,2103411465,11287415
04.04.2022,ADULT SOCIAL CARE,MEDACS HOMECARE,732.45,PHY LTS 18-64,HOMECARE - C&V,2103411401,11287415
04.04.2022,ADULT SOCIAL CARE,MEDACS HOMECARE,820.47,PHY LTS 18-64,HOMECARE - C&V,2103411451,11287415
04.04.2022,ADULT SOCIAL CARE,MEDACS HOMECARE,848.35,PHY LTS 18-64,HOMECARE - C&V,2103411400,11287415
04.04.2022,ADULT SOCIAL CARE,MEDACS HOMECARE,"1,029.23",PHY LTS 18-64,HOMECARE - C&V,2103411396,11287415
04.04.2022,ADULT SOCIAL CARE,MEDACS HOMECARE,"1,121.83",PHY LTS 18-64,HOMECARE - C&V,2103411460,11287415
04.04.2022,ADULT SOCIAL CARE,MEDACS HOMECARE,"1,437.09",PHY LTS 18-64,HOMECARE - C&V,2103411464,11287415
04.04.2022,ADULT SOCIAL CARE,MEDACS HOMECARE,"1,464.92",PHY LTS 18-64,HOMECARE - C&V,2103411415,11287415
04.04.2022,ADULT SOCIAL CARE,THAMES HOMECARE SERVICE LTD,379.08,PHY LTS 18-64,HOMECARE - C&V,2103411642,1000079295
04.04.2022,ADULT SOCIAL CARE,THAMES HOMECARE SERVICE LTD,262.08,PHY LTS 18-64,HOMECARE - SPOT,2103411579,1000079295
04.04.2022,ADULT SOCIAL CARE,THAMES HOMECARE SERVICE LTD,266.76,PHY LTS 18-64,HOMECARE - SPOT,2103411522,1000079295
04.04.2022,ADULT SOCIAL CARE,THAMES HOMECARE SERVICE LTD,313.56,PHY LTS 18-64,HOMECARE - SPOT,2103411550,1000079295
04.04.2022,ADULT SOCIAL CARE,THAMES HOMECARE SERVICE LTD,332.28,PHY LTS 18-64,HOMECARE - SPOT,2103411481,1000079295
04.04.2022,ADULT SOCIAL CARE,THAMES HOMECARE SERVICE LTD,332.28,PHY LTS 18-64,HOMECARE - SPOT,2103411626,1000079295
04.04.2022,ADULT SOCIAL CARE,THAMES HOMECARE SERVICE LTD,374.4,PHY LTS 18-64,HOMECARE - SPOT,2103411551,1000079295
04.04.2022,ADULT SOCIAL CARE,THAMES HOMECARE SERVICE LTD,379.08,PHY LTS 18-64,HOMECARE - SPOT,2103411549,1000079295
04.04.2022,ADULT SOCIAL CARE,THAMES HOMECARE SERVICE LTD,589.68,PHY LTS 18-64,HOMECARE - SPOT,2103411553,1000079295
04.04.2022,ADULT SOCIAL CARE,THAMES HOMECARE SERVICE LTD,589.68,PHY LTS 18-64,HOMECARE - SPOT,2103411556,1000079295
04.04.2022,ADULT SOCIAL CARE,THAMES HOMECARE SERVICE LTD,589.68,PHY LTS 18-64,HOMECARE - SPOT,2103411604,1000079295
04.04.2022,ADULT SOCIAL CARE,THAMES HOMECARE SERVICE LTD,655.2,PHY LTS 18-64,HOMECARE - SPOT,2103411519,1000079295
04.04.2022,ADULT SOCIAL CARE,THAMES HOMECARE SERVICE LTD,720.72,PHY LTS 18-64,HOMECARE - SPOT,2103411491,1000079295
04.04.2022,ADULT SOCIAL CARE,THAMES HOMECARE SERVICE LTD,870.48,PHY LTS 18-64,HOMECARE - SPOT,2103411638,1000079295
04.04.2022,ADULT SOCIAL CARE,THAMES HOMECARE SERVICE LTD,936,PHY LTS 18-64,HOMECARE - SPOT,2103411480,1000079295
04.04.2022,ADULT SOCIAL CARE,THAMES HOMECARE SERVICE LTD,964.08,PHY LTS 18-64,HOMECARE - SPOT,2103411636,1000079295
04.04.2022,ADULT SOCIAL CARE,MEDACS HOMECARE,259.56,PHY LTS 65+,HOMECARE - C&V,2103411430,11287415
04.04.2022,ADULT SOCIAL CARE,MEDACS HOMECARE,268.24,PHY LTS 65+,HOMECARE - C&V,2103411472,11287415
04.04.2022,ADULT SOCIAL CARE,MEDACS HOMECARE,301.32,PHY LTS 65+,HOMECARE - C&V,2103411390,11287415
04.04.2022,ADULT SOCIAL CARE,MEDACS HOMECARE,310.58,PHY LTS 65+,HOMECARE - C&V,2103411429,11287415
04.04.2022,ADULT SOCIAL CARE,MEDACS HOMECARE,315.24,PHY LTS 65+,HOMECARE - C&V,2103411407,11287415
04.04.2022,ADULT SOCIAL CARE,MEDACS HOMECARE,324.49,PHY LTS 65+,HOMECARE - C&V,2103411424,11287415
04.04.2022,ADULT SOCIAL CARE,MEDACS HOMECARE,347.64,PHY LTS 65+,HOMECARE - C&V,2103411399,11287415
04.04.2022,ADULT SOCIAL CARE,MEDACS HOMECARE,352.38,PHY LTS 65+,HOMECARE - C&V,2103411416,11287415
04.04.2022,ADULT SOCIAL CARE,MEDACS HOMECARE,388.18,PHY LTS 65+,HOMECARE - C&V,2103411438,11287415
04.04.2022,ADULT SOCIAL CARE,MEDACS HOMECARE,421.8,PHY LTS 65+,HOMECARE - C&V,2103411421,11287415
04.04.2022,ADULT SOCIAL CARE,MEDACS HOMECARE,435.8,PHY LTS 65+,HOMECARE - C&V,2103411434,11287415
04.04.2022,ADULT SOCIAL CARE,MEDACS HOMECARE,496,PHY LTS 65+,HOMECARE - C&V,2103411413,11287415
04.04.2022,ADULT SOCIAL CARE,MEDACS HOMECARE,500.71,PHY LTS 65+,HOMECARE - C&V,2103411441,11287415
04.04.2022,ADULT SOCIAL CARE,MEDACS HOMECARE,565.13,PHY LTS 65+,HOMECARE - C&V,2103411461,11287415
04.04.2022,ADULT SOCIAL CARE,MEDACS HOMECARE,746.38,PHY LTS 65+,HOMECARE - C&V,2103411412,11287415
04.04.2022,ADULT SOCIAL CARE,MEDACS HOMECARE,829.8,PHY LTS 65+,HOMECARE - C&V,2103411425,11287415
04.04.2022,ADULT SOCIAL CARE,MEDACS HOMECARE,890.09,PHY LTS 65+,HOMECARE - C&V,2103411457,11287415
04.04.2022,ADULT SOCIAL CARE,MEDACS HOMECARE,899.25,PHY LTS 65+,HOMECARE - C&V,2103411428,11287415
04.04.2022,ADULT SOCIAL CARE,MEDACS HOMECARE,917.9,PHY LTS 65+,HOMECARE - C&V,2103411422,11287415
04.04.2022,ADULT SOCIAL CARE,MEDACS HOMECARE,936.15,PHY LTS 65+,HOMECARE - C&V,2103411471,11287415
04.04.2022,ADULT SOCIAL CARE,MEDACS HOMECARE,936.43,PHY LTS 65+,HOMECARE - C&V,2103411420,11287415
04.04.2022,ADULT SOCIAL CARE,MEDACS HOMECARE,968.78,PHY LTS 65+,HOMECARE - C&V,2103411411,11287415
04.04.2022,ADULT SOCIAL CARE,MEDACS HOMECARE,992.22,PHY LTS 65+,HOMECARE - C&V,2103411446,11287415
04.04.2022,ADULT SOCIAL CARE,MEDACS HOMECARE,"1,043.02",PHY LTS 65+,HOMECARE - C&V,2103411426,11287415
04.04.2022,ADULT SOCIAL CARE,MEDACS HOMECARE,"1,122.23",PHY LTS 65+,HOMECARE - C&V,2103411410,11287415
04.04.2022,ADULT SOCIAL CARE,MEDACS HOMECARE,"1,140.37",PHY LTS 65+,HOMECARE - C&V,2103411423,11287415
04.04.2022,ADULT SOCIAL CARE,MEDACS HOMECARE,"1,154.20",PHY LTS 65+,HOMECARE - C&V,2103411455,11287415
04.04.2022,ADULT SOCIAL CARE,MEDACS HOMECARE,"1,158.92",PHY LTS 65+,HOMECARE - C&V,2103411427,11287415
04.04.2022,ADULT SOCIAL CARE,MEDACS HOMECARE,"1,172.67",PHY LTS 65+,HOMECARE - C&V,2103411463,11287415
04.04.2022,ADULT SOCIAL CARE,MEDACS HOMECARE,"1,177.68",PHY LTS 65+,HOMECARE - C&V,2103411393,11287415
04.04.2022,ADULT SOCIAL CARE,MEDACS HOMECARE,"1,247.03",PHY LTS 65+,HOMECARE - C&V,2103411391,11287415
04.04.2022,ADULT SOCIAL CARE,MEDACS HOMECARE,"1,297.90",PHY LTS 65+,HOMECARE - C&V,2103411403,11287415
04.04.2022,ADULT SOCIAL CARE,MEDACS HOMECARE,"1,668.83",PHY LTS 65+,HOMECARE - C&V,2103411462,11287415
04.04.2022,ADULT SOCIAL CARE,MEDACS HOMECARE,"1,775.57",PHY LTS 65+,HOMECARE - C&V,2103411467,11287415
04.04.2022,ADULT SOCIAL CARE,MEDACS HOMECARE,"2,178.73",PHY LTS 65+,HOMECARE - C&V,2103411433,11287415
04.04.2022,ADULT SOCIAL CARE,MEDACS HOMECARE,"2,178.90",PHY LTS 65+,HOMECARE - C&V,2103411397,11287415
04.04.2022,ADULT SOCIAL CARE,MEDACS HOMECARE,"2,271.50",PHY LTS 65+,HOMECARE - C&V,2103411409,11287415
04.04.2022,ADULT SOCIAL CARE,MEDACS HOMECARE,"2,498.40",PHY LTS 65+,HOMECARE - C&V,2103411443,11287415
04.04.2022,ADULT SOCIAL CARE,MEDACS HOMECARE,"2,553.57",PHY LTS 65+,HOMECARE - C&V,2103411449,11287415
04.04.2022,ADULT SOCIAL CARE,MEDACS HOMECARE,"2,554.40",PHY LTS 65+,HOMECARE - C&V,2103411445,11287415
04.04.2022,ADULT SOCIAL CARE,MEDACS HOMECARE,"2,647.50",PHY LTS 65+,HOMECARE - C&V,2103411388,11287415
04.04.2022,ADULT SOCIAL CARE,MEDACS HOMECARE,"2,651.68",PHY LTS 65+,HOMECARE - C&V,2103411392,11287415
04.04.2022,ADULT SOCIAL CARE,MEDACS HOMECARE,"2,744.62",PHY LTS 65+,HOMECARE - C&V,2103411419,11287415
04.04.2022,ADULT SOCIAL CARE,MEDACS HOMECARE,"2,781.34",PHY LTS 65+,HOMECARE - C&V,2103411418,11287415
04.04.2022,ADULT SOCIAL CARE,MEDACS HOMECARE,523.84,PHY LTS 65+,HOMECARE - SPOT,2103411432,11287415
04.04.2022,ADULT SOCIAL CARE,THAMES HOMECARE SERVICE LTD,332.28,PHY LTS 65+,HOMECARE - C&V,2103411639,1000079295
04.04.2022,ADULT SOCIAL CARE,THAMES HOMECARE SERVICE LTD,393.12,PHY LTS 65+,HOMECARE - C&V,2103411634,1000079295
04.04.2022,ADULT SOCIAL CARE,THAMES HOMECARE SERVICE LTD,458.64,PHY LTS 65+,HOMECARE - C&V,2103411544,1000079295
04.04.2022,ADULT SOCIAL CARE,THAMES HOMECARE SERVICE LTD,262.08,PHY LTS 65+,HOMECARE - SPOT,2103411582,1000079295
04.04.2022,ADULT SOCIAL CARE,THAMES HOMECARE SERVICE LTD,262.08,PHY LTS 65+,HOMECARE - SPOT,2103411623,1000079295
04.04.2022,ADULT SOCIAL CARE,THAMES HOMECARE SERVICE LTD,271.44,PHY LTS 65+,HOMECARE - SPOT,2103411502,1000079295
04.04.2022,ADULT SOCIAL CARE,THAMES HOMECARE SERVICE LTD,276.12,PHY LTS 65+,HOMECARE - SPOT,2103411523,1000079295
04.04.2022,ADULT SOCIAL CARE,THAMES HOMECARE SERVICE LTD,280.8,PHY LTS 65+,HOMECARE - SPOT,2103411606,1000079295
04.04.2022,ADULT SOCIAL CARE,THAMES HOMECARE SERVICE LTD,290.16,PHY LTS 65+,HOMECARE - SPOT,2103411662,1000079295
04.04.2022,ADULT SOCIAL CARE,THAMES HOMECARE SERVICE LTD,294.84,PHY LTS 65+,HOMECARE - SPOT,2103411500,1000079295
04.04.2022,ADULT SOCIAL CARE,THAMES HOMECARE SERVICE LTD,294.84,PHY LTS 65+,HOMECARE - SPOT,2103411516,1000079295
04.04.2022,ADULT SOCIAL CARE,THAMES HOMECARE SERVICE LTD,294.84,PHY LTS 65+,HOMECARE - SPOT,2103411570,1000079295
04.04.2022,ADULT SOCIAL CARE,THAMES HOMECARE SERVICE LTD,318.24,PHY LTS 65+,HOMECARE - SPOT,2103411565,1000079295
04.04.2022,ADULT SOCIAL CARE,THAMES HOMECARE SERVICE LTD,327.6,PHY LTS 65+,HOMECARE - SPOT,2103411580,1000079295
04.04.2022,ADULT SOCIAL CARE,THAMES HOMECARE SERVICE LTD,327.6,PHY LTS 65+,HOMECARE - SPOT,2103411647,1000079295
04.04.2022,ADULT SOCIAL CARE,THAMES HOMECARE SERVICE LTD,332.28,PHY LTS 65+,HOMECARE - SPOT,2103411473,1000079295
04.04.2022,ADULT SOCIAL CARE,THAMES HOMECARE SERVICE LTD,332.28,PHY LTS 65+,HOMECARE - SPOT,2103411640,1000079295
04.04.2022,ADULT SOCIAL CARE,THAMES HOMECARE SERVICE LTD,355.68,PHY LTS 65+,HOMECARE - SPOT,2103411654,1000079295
04.04.2022,ADULT SOCIAL CARE,THAMES HOMECARE SERVICE LTD,360.36,PHY LTS 65+,HOMECARE - SPOT,2103411496,1000079295
04.04.2022,ADULT SOCIAL CARE,THAMES HOMECARE SERVICE LTD,360.36,PHY LTS 65+,HOMECARE - SPOT,2103411631,1000079295
04.04.2022,ADULT SOCIAL CARE,THAMES HOMECARE SERVICE LTD,360.36,PHY LTS 65+,HOMECARE - SPOT,2103411632,1000079295
04.04.2022,ADULT SOCIAL CARE,THAMES HOMECARE SERVICE LTD,393.12,PHY LTS 65+,HOMECARE - SPOT,2103411518,1000079295
04.04.2022,ADULT SOCIAL CARE,THAMES HOMECARE SERVICE LTD,402.48,PHY LTS 65+,HOMECARE - SPOT,2103411503,1000079295
04.04.2022,ADULT SOCIAL CARE,THAMES HOMECARE SERVICE LTD,407.16,PHY LTS 65+,HOMECARE - SPOT,2103411641,1000079295
04.04.2022,ADULT SOCIAL CARE,THAMES HOMECARE SERVICE LTD,458.64,PHY LTS 65+,HOMECARE - SPOT,2103411513,1000079295
04.04.2022,ADULT SOCIAL CARE,THAMES HOMECARE SERVICE LTD,458.64,PHY LTS 65+,HOMECARE - SPOT,2103411658,1000079295
04.04.2022,ADULT SOCIAL CARE,THAMES HOMECARE SERVICE LTD,477.36,PHY LTS 65+,HOMECARE - SPOT,2103411557,1000079295
04.04.2022,ADULT SOCIAL CARE,THAMES HOMECARE SERVICE LTD,505.44,PHY LTS 65+,HOMECARE - SPOT,2103411628,1000079295
04.04.2022,ADULT SOCIAL CARE,THAMES HOMECARE SERVICE LTD,524.16,PHY LTS 65+,HOMECARE - SPOT,2103411507,1000079295
04.04.2022,ADULT SOCIAL CARE,THAMES HOMECARE SERVICE LTD,524.16,PHY LTS 65+,HOMECARE - SPOT,2103411610,1000079295
04.04.2022,ADULT SOCIAL CARE,THAMES HOMECARE SERVICE LTD,533.52,PHY LTS 65+,HOMECARE - SPOT,2103411512,1000079295
04.04.2022,ADULT SOCIAL CARE,THAMES HOMECARE SERVICE LTD,561.6,PHY LTS 65+,HOMECARE - SPOT,2103411484,1000079295
04.04.2022,ADULT SOCIAL CARE,THAMES HOMECARE SERVICE LTD,561.6,PHY LTS 65+,HOMECARE - SPOT,2103411609,1000079295
04.04.2022,ADULT SOCIAL CARE,THAMES HOMECARE SERVICE LTD,589.68,PHY LTS 65+,HOMECARE - SPOT,2103411554,1000079295
04.04.2022,ADULT SOCIAL CARE,THAMES HOMECARE SERVICE LTD,589.68,PHY LTS 65+,HOMECARE - SPOT,2103411578,1000079295
04.04.2022,ADULT SOCIAL CARE,THAMES HOMECARE SERVICE LTD,589.68,PHY LTS 65+,HOMECARE - SPOT,2103411630,1000079295
04.04.2022,ADULT SOCIAL CARE,THAMES HOMECARE SERVICE LTD,617.76,PHY LTS 65+,HOMECARE - SPOT,2103411649,1000079295
04.04.2022,ADULT SOCIAL CARE,THAMES HOMECARE SERVICE LTD,622.44,PHY LTS 65+,HOMECARE - SPOT,2103411562,1000079295
04.04.2022,ADULT SOCIAL CARE,THAMES HOMECARE SERVICE LTD,627.12,PHY LTS 65+,HOMECARE - SPOT,2103411573,1000079295
04.04.2022,ADULT SOCIAL CARE,THAMES HOMECARE SERVICE LTD,631.8,PHY LTS 65+,HOMECARE - SPOT,2103411661,1000079295
04.04.2022,ADULT SOCIAL CARE,THAMES HOMECARE SERVICE LTD,655.2,PHY LTS 65+,HOMECARE - SPOT,2103411514,1000079295
04.04.2022,ADULT SOCIAL CARE,THAMES HOMECARE SERVICE LTD,655.2,PHY LTS 65+,HOMECARE - SPOT,2103411515,1000079295
04.04.2022,ADULT SOCIAL CARE,THAMES HOMECARE SERVICE LTD,655.2,PHY LTS 65+,HOMECARE - SPOT,2103411569,1000079295
04.04.2022,ADULT SOCIAL CARE,THAMES HOMECARE SERVICE LTD,655.2,PHY LTS 65+,HOMECARE - SPOT,2103411581,1000079295
04.04.2022,ADULT SOCIAL CARE,THAMES HOMECARE SERVICE LTD,655.2,PHY LTS 65+,HOMECARE - SPOT,2103411619,1000079295
04.04.2022,ADULT SOCIAL CARE,THAMES HOMECARE SERVICE LTD,655.2,PHY LTS 65+,HOMECARE - SPOT,2103411622,1000079295
04.04.2022,ADULT SOCIAL CARE,THAMES HOMECARE SERVICE LTD,659.88,PHY LTS 65+,HOMECARE - SPOT,2103411646,1000079295
04.04.2022,ADULT SOCIAL CARE,THAMES HOMECARE SERVICE LTD,664.56,PHY LTS 65+,HOMECARE - SPOT,2103411586,1000079295
04.04.2022,ADULT SOCIAL CARE,THAMES HOMECARE SERVICE LTD,673.92,PHY LTS 65+,HOMECARE - SPOT,2103411597,1000079295
04.04.2022,ADULT SOCIAL CARE,THAMES HOMECARE SERVICE LTD,683.28,PHY LTS 65+,HOMECARE - SPOT,2103411577,1000079295
04.04.2022,ADULT SOCIAL CARE,THAMES HOMECARE SERVICE LTD,692.64,PHY LTS 65+,HOMECARE - SPOT,2103411616,1000079295
04.04.2022,ADULT SOCIAL CARE,THAMES HOMECARE SERVICE LTD,702,PHY LTS 65+,HOMECARE - SPOT,2103411566,1000079295
04.04.2022,ADULT SOCIAL CARE,THAMES HOMECARE SERVICE LTD,706.68,PHY LTS 65+,HOMECARE - SPOT,2103411493,1000079295
04.04.2022,ADULT SOCIAL CARE,THAMES HOMECARE SERVICE LTD,720.72,PHY LTS 65+,HOMECARE - SPOT,2103411521,1000079295
04.04.2022,ADULT SOCIAL CARE,THAMES HOMECARE SERVICE LTD,786.24,PHY LTS 65+,HOMECARE - SPOT,2103411477,1000079295
04.04.2022,ADULT SOCIAL CARE,THAMES HOMECARE SERVICE LTD,786.24,PHY LTS 65+,HOMECARE - SPOT,2103411490,1000079295
04.04.2022,ADULT SOCIAL CARE,THAMES HOMECARE SERVICE LTD,786.24,PHY LTS 65+,HOMECARE - SPOT,2103411555,1000079295
04.04.2022,ADULT SOCIAL CARE,THAMES HOMECARE SERVICE LTD,786.24,PHY LTS 65+,HOMECARE - SPOT,2103411645,1000079295
04.04.2022,ADULT SOCIAL CARE,THAMES HOMECARE SERVICE LTD,804.96,PHY LTS 65+,HOMECARE - SPOT,2103411520,1000079295
04.04.2022,ADULT SOCIAL CARE,THAMES HOMECARE SERVICE LTD,804.96,PHY LTS 65+,HOMECARE - SPOT,2103411618,1000079295
04.04.2022,ADULT SOCIAL CARE,THAMES HOMECARE SERVICE LTD,814.32,PHY LTS 65+,HOMECARE - SPOT,2103411650,1000079295
04.04.2022,ADULT SOCIAL CARE,THAMES HOMECARE SERVICE LTD,851.76,PHY LTS 65+,HOMECARE - SPOT,2103411585,1000079295
04.04.2022,ADULT SOCIAL CARE,THAMES HOMECARE SERVICE LTD,851.76,PHY LTS 65+,HOMECARE - SPOT,2103411601,1000079295
04.04.2022,ADULT SOCIAL CARE,THAMES HOMECARE SERVICE LTD,954.72,PHY LTS 65+,HOMECARE - SPOT,2103411568,1000079295
04.04.2022,ADULT SOCIAL CARE,THAMES HOMECARE SERVICE LTD,"1,010.88",PHY LTS 65+,HOMECARE - SPOT,2103411497,1000079295
04.04.2022,ADULT SOCIAL CARE,THAMES HOMECARE SERVICE LTD,"1,076.40",PHY LTS 65+,HOMECARE - SPOT,2103411501,1000079295
04.04.2022,ADULT SOCIAL CARE,THAMES HOMECARE SERVICE LTD,589.68,PHY STS 18-64,HOMECARE - IC,2103411531,1000079295
04.04.2022,ADULT SOCIAL CARE,THAMES HOMECARE SERVICE LTD,711.36,PHY STS 18-64,HOMECARE - IC,2103411495,1000079295
04.04.2022,ADULT SOCIAL CARE,THAMES HOMECARE SERVICE LTD,276.12,PHY STS 65+,HOMECARE - IC,2103411482,1000079295
04.04.2022,ADULT SOCIAL CARE,THAMES HOMECARE SERVICE LTD,294.84,PHY STS 65+,HOMECARE - IC,2103411487,1000079295
04.04.2022,ADULT SOCIAL CARE,THAMES HOMECARE SERVICE LTD,327.6,PHY STS 65+,HOMECARE - IC,2103411558,1000079295
04.04.2022,ADULT SOCIAL CARE,THAMES HOMECARE SERVICE LTD,327.6,PHY STS 65+,HOMECARE - IC,2103411574,1000079295
04.04.2022,ADULT SOCIAL CARE,THAMES HOMECARE SERVICE LTD,360.36,PHY STS 65+,HOMECARE - IC,2103411530,1000079295
04.04.2022,ADULT SOCIAL CARE,THAMES HOMECARE SERVICE LTD,397.8,PHY STS 65+,HOMECARE - IC,2103411655,1000079295
04.04.2022,ADULT SOCIAL CARE,THAMES HOMECARE SERVICE LTD,655.2,PHY STS 65+,HOMECARE - IC,2103411508,1000079295
04.04.2022,ADULT SOCIAL CARE,THAMES HOMECARE SERVICE LTD,720.72,PHY STS 65+,HOMECARE - IC,2103411492,1000079295
04.04.2022,ADULT SOCIAL CARE,THAMES HOMECARE SERVICE LTD,313.56,SEN LTS 65+,HOMECARE - SPOT,2103411600,1000079295
04.04.2022,ADULT SOCIAL CARE,THAMES HOMECARE SERVICE LTD,294.84,SOCIAL ISOLATION,HOMECARE - SPOT,2103411564,1000079295
04.04.2022,ADULT SOCIAL CARE,MEDACS HOMECARE,407.98,SUB LTS 18-64,HOMECARE - C&V,2103411456,11287415
04.04.2022,ADULT SOCIAL CARE,MEDACS HOMECARE,"1,103.25",SUB LTS 18-64,HOMECARE - SPOT,2103411439,11287415
04.04.2022,ASSET MANAGEMENT,FRANKHAM CONSULTANCY GROUP LTD,"1,250.00",DISREPAIR,PAYMENTS FOR LEGAL SERVICES,5902518298,1000043952
04.04.2022,ASSET MANAGEMENT,FRANKHAM CONSULTANCY GROUP LTD,"1,250.00",DISREPAIR,PAYMENTS FOR LEGAL SERVICES,5902518299,1000043952
04.04.2022,ASSET MANAGEMENT,FRANKHAM CONSULTANCY GROUP LTD,"1,250.00",DISREPAIR,PAYMENTS FOR LEGAL SERVICES,5902518300,1000043952
04.04.2022,ASSET MANAGEMENT,FRANKHAM CONSULTANCY GROUP LTD,"1,250.00",DISREPAIR,PAYMENTS FOR LEGAL SERVICES,5902518301,1000043952
04.04.2022,ASSET MANAGEMENT,FRANKHAM CONSULTANCY GROUP LTD,"1,250.00",DISREPAIR,PAYMENTS FOR LEGAL SERVICES,5902518302,1000043952
04.04.2022,ASSET MANAGEMENT,FRANKHAM CONSULTANCY GROUP LTD,"1,250.00",DISREPAIR,PAYMENTS FOR LEGAL SERVICES,5902518303,1000043952
04.04.2022,ASSET MANAGEMENT,FRANKLYN SHAW ASSOCIATES LTD,"1,040.53",DISREPAIR,PAYMENTS FOR LEGAL SERVICES,5902518403,1000068289
04.04.2022,ASSET MANAGEMENT,ASHFORDS LLP OFFICE ACCOUNT,"1,750.00",DISREPAIR,PAYMENTS FOR LEGAL SERVICES,5902518446,1000082695
04.04.2022,ASSET MANAGEMENT,ARMINA LTD,"2,349.08",DISREPAIR,PAYMENTS FOR LEGAL SERVICES,2103410528,3000002121
04.04.2022,ASSET MANAGEMENT,GC CONSTRUCT LTD,730.9,MAJOR REPAIRS,BUILDING R&M,2103411218,3000002106
04.04.2022,ASSET MANAGEMENT,GC CONSTRUCT LTD,"3,168.05",MAJOR REPAIRS,BUILDING R&M,2103411218,3000002106
04.04.2022,ASSET MANAGEMENT,GC CONSTRUCT LTD,"34,999.62",MAJOR REPAIRS,BUILDING R&M,2103411218,3000002106
04.04.2022,CENTRAL FUNCTIONS,STANBURY BUILDING SERVICES LTD,"3,850.00",COMMERCIAL PROPERTIES,BUILDING R&M,2103411331,3000001967
04.04.2022,CHIEF EXECUTIVE,NETWORK RAIL INFRASTRUCTURE LTD,"12,000.00",CAPITAL PS (REGEN),CONSTRUCTION FEES  - EXTERNAL,5902518221,1000053596
04.04.2022,CHIEF EXECUTIVE,MARKIDES ASSOCIATES LIMITED,"4,500.00",CAPITAL PS (REGEN),CONSTRUCTION FEES  - EXTERNAL,5902518929,1000087836
04.04.2022,CHIEF EXECUTIVE,KN NETWORK SERVICES LTD,"165,499.61",CAPITAL PS (REGEN),CONSTRUCTION MAIN CONTRACT -CERTIFICATED,2103410429,3000002134
04.04.2022,CHILDREN AND FAMILIES,CORAM FAMILY,768.5,ADOPTION SUPP FUND,EXTERNAL AGENCIES AND BODIES,5902519197,1000023579
04.04.2022,CHILDREN AND FAMILIES,PLAY TOGETHER LIMITED,"1,920.00",ADOPTION SUPP FUND,PROFESSIONAL FEES,5902519145,1000085787
04.04.2022,CHILDREN AND FAMILIES,REDFERN PSYCHOLOGY SERVICES LTD,450,ADOPTION SUPP FUND,EXTERNAL AGENCIES AND BODIES,5902519144,1000087276
04.04.2022,CHILDREN AND FAMILIES,REDACTED PERSONAL DATA,"1,320.00",ADOPTION SUPP FUND,EXTERNAL AGENCIES AND BODIES,REDACTED,REDACTED
04.04.2022,CHILDREN AND FAMILIES,REDACTED PERSONAL DATA,"1,320.00",ADOPTION SUPP FUND,EXTERNAL AGENCIES AND BODIES,REDACTED,REDACTED
04.04.2022,CHILDREN AND FAMILIES,REDACTED PERSONAL DATA,"2,099.50",ADOPTION SUPP FUND,EXTERNAL AGENCIES AND BODIES,REDACTED,REDACTED
04.04.2022,CHILDREN AND FAMILIES,REDACTED PERSONAL DATA,850,ADOPTION SUPP FUND,EXTERNAL AGENCIES AND BODIES,REDACTED,REDACTED
04.04.2022,CHILDREN AND FAMILIES,REDACTED PERSONAL DATA,"1,350.00",ADOPTION SUPP FUND,EXTERNAL AGENCIES AND BODIES,REDACTED,REDACTED
04.04.2022,CHILDREN AND FAMILIES,TRIPOD PARTNERS LTD,854.95,DIRECTOR OF C&F,PAYMENTS FOR PERSONNEL MANAGEMENT SERVS,5902519148,1000087988
04.04.2022,CHILDREN AND FAMILIES,TRIPOD PARTNERS LTD,"1,391.49",DIRECTOR OF C&F,PAYMENTS FOR PERSONNEL MANAGEMENT SERVS,5902519149,1000087988
04.04.2022,CHILDREN AND FAMILIES,CORAL COMMUNITY ASSESSMENTS LTD,"3,188.00",FAMILY ASSESSMENTS,EXTERNAL AGENCIES AND BODIES,5902518666,1000056464
04.04.2022,CHILDREN AND FAMILIES,REDACTED PERSONAL DATA,367.2,FAMILY GROUP CONF�S,PROFESSIONAL FEES,REDACTED,REDACTED
04.04.2022,CHILDREN AND FAMILIES,PCS SERVICES LIMITED,300,FE SUPPORT,CLIENT TRANSPORT,5902519242,1000087059
04.04.2022,CHILDREN AND FAMILIES,PCS SERVICES LIMITED,300,FE SUPPORT,CLIENT TRANSPORT,5902519251,1000087059
04.04.2022,CHILDREN AND FAMILIES,PCS SERVICES LIMITED,300,FE SUPPORT,CLIENT TRANSPORT,5902519267,1000087059
04.04.2022,CHILDREN AND FAMILIES,PCS SERVICES LIMITED,300,FE SUPPORT,CLIENT TRANSPORT,5902519272,1000087059
04.04.2022,CHILDREN AND FAMILIES,PCS SERVICES LIMITED,300,FE SUPPORT,CLIENT TRANSPORT,5902519280,1000087059
04.04.2022,CHILDREN AND FAMILIES,PCS SERVICES LIMITED,400,FE SUPPORT,OTHER PAYMENTS FOR CLIENTS,5902519242,1000087059
04.04.2022,CHILDREN AND FAMILIES,PCS SERVICES LIMITED,400,FE SUPPORT,OTHER PAYMENTS FOR CLIENTS,5902519272,1000087059
04.04.2022,CHILDREN AND FAMILIES,PCS SERVICES LIMITED,400,FE SUPPORT,OTHER PAYMENTS FOR CLIENTS,5902519277,1000087059
04.04.2022,CHILDREN AND FAMILIES,TACT,981.65,FRIENDS & FAMILY FOSTERING,EXTERNAL AGENCIES AND BODIES,2103411682,1000012941
04.04.2022,CHILDREN AND FAMILIES,FIVE RIVERS CHILD CARE LTD,"3,576.96",FRIENDS & FAMILY FOSTERING,EXTERNAL AGENCIES AND BODIES,2103411680,1000018792
04.04.2022,CHILDREN AND FAMILIES,FIVE RIVERS CHILD CARE LTD,"3,576.96",FRIENDS & FAMILY FOSTERING,EXTERNAL AGENCIES AND BODIES,2103411681,1000018792
04.04.2022,CHILDREN AND FAMILIES,REDACTED PERSONAL DATA,300,FRIENDS &FAMILY FOST,OTHER PAYMENTS FOR CLIENTS,REDACTED,REDACTED
04.04.2022,CHILDREN AND FAMILIES,REDACTED PERSONAL DATA,"1,435.29",FRIENDS &FAMILY FOST,PAYMENTS TO CARERS,REDACTED,REDACTED
04.04.2022,CHILDREN AND FAMILIES,REDACTED PERSONAL DATA,343.72,P & R CARE TEAM,OTHER PAYMENTS FOR CLIENTS,REDACTED,REDACTED
04.04.2022,CHILDREN AND FAMILIES,REDACTED PERSONAL DATA,300,P & R CARE TEAM,OTHER PAYMENTS FOR CLIENTS,REDACTED,REDACTED
04.04.2022,CHILDREN AND FAMILIES,FUTURE FOUNDATIONS LTD,"-1,146.25",SEMI-IND CARELEAVERS,COSTS RECOVERED,2103411684,1000063272
04.04.2022,CHILDREN AND FAMILIES,FUTURE FOUNDATIONS LTD,"-1,146.25",SEMI-IND CARELEAVERS,COSTS RECOVERED,2103411686,1000063272
04.04.2022,CHILDREN AND FAMILIES,FUTURE FOUNDATIONS LTD,-500,SEMI-IND CARELEAVERS,COSTS RECOVERED,2103411685,1000063272
04.04.2022,CHILDREN AND FAMILIES,FUTURE FOUNDATIONS LTD,611.28,SEMI-IND CARELEAVERS,EXTERNAL AGENCIES AND BODIES,2103411668,1000063272
04.04.2022,CHILDREN AND FAMILIES,PURPLE PEBBLES(CHILD CARE) SERVICES,"1,800.00",SEMI-IND CARELEAVERS,EXTERNAL AGENCIES AND BODIES,2103411666,1000070705
04.04.2022,CHILDREN AND FAMILIES,FUTURE FOUNDATIONS LTD,-390,SEMI-IND LAC 16-17,EXTERNAL AGENCIES AND BODIES,2103411673,1000063272
04.04.2022,CHILDREN AND FAMILIES,FUTURE FOUNDATIONS LTD,628.57,SEMI-IND LAC 16-17,EXTERNAL AGENCIES AND BODIES,2103411674,1000063272
04.04.2022,CHILDREN AND FAMILIES,REDACTED PERSONAL DATA,804,SEMI-IND LAC 16-17,OTHER PAYMENTS FOR CLIENTS,REDACTED,REDACTED
04.04.2022,CHILDREN AND FAMILIES,NICHOLAS O'BRIEN,625,SFS MGMT & SUPPORT,LEGAL FEES & COURT COSTS,2103411264,1817607
04.04.2022,CHILDREN AND FAMILIES,NICHOLAS O'BRIEN,625,SFS MGMT & SUPPORT,LEGAL FEES & COURT COSTS,2103411265,1817607
04.04.2022,CHILDREN AND FAMILIES,NICHOLAS O'BRIEN,"1,600.00",SFS MGMT & SUPPORT,LEGAL FEES & COURT COSTS,2103411266,1817607
04.04.2022,CHILDREN AND FAMILIES,NURSERIES BY GYMFINITY KIDS MAIDSTONE,994.5,SPECIAL GUARDIANSHIP,OTHER PAYMENTS FOR CLIENTS,5902518018,1000087919
04.04.2022,CHILDREN AND FAMILIES,FUTURE FOUNDATIONS LTD,-793,UASC CARELEAVERS,COSTS RECOVERED,2103411683,1000063272
04.04.2022,CHILDREN AND FAMILIES,FUTURE FOUNDATIONS LTD,253.26,UASC CARELEAVERS,EXTERNAL AGENCIES AND BODIES,2103411669,1000063272
04.04.2022,CHILDREN AND FAMILIES,FUTURE FOUNDATIONS LTD,"3,564.28",UASC LAC 16-17,EXTERNAL AGENCIES AND BODIES,2103411676,1000063272
04.04.2022,CHILDREN AND FAMILIES,ASA ASSESSMENT & CONSULTANCY LIMITED,600,UASC LAC 16-17,EXTERNAL AGENCIES AND BODIES,5902518640,1000087272
04.04.2022,CHILDREN AND FAMILIES,ASA ASSESSMENT & CONSULTANCY LIMITED,600,UASC LAC 16-17,EXTERNAL AGENCIES AND BODIES,5902518641,1000087272
04.04.2022,CHILDREN AND FAMILIES,ASA ASSESSMENT & CONSULTANCY LIMITED,625,UASC LAC 16-17,EXTERNAL AGENCIES AND BODIES,5902518637,1000087272
04.04.2022,CHILDREN AND FAMILIES,ASA ASSESSMENT & CONSULTANCY LIMITED,625,UASC LAC 16-17,EXTERNAL AGENCIES AND BODIES,5902518638,1000087272
04.04.2022,CHILDREN AND FAMILIES,ASA ASSESSMENT & CONSULTANCY LIMITED,625,UASC LAC 16-17,EXTERNAL AGENCIES AND BODIES,5902518639,1000087272
04.04.2022,CHILDREN AND FAMILIES,ASA ASSESSMENT & CONSULTANCY LIMITED,625,UASC LAC 16-17,EXTERNAL AGENCIES AND BODIES,5902518642,1000087272
04.04.2022,COMMUNITIES,SOUTHWARK PENSIONERS CENTRE,"1,170.00",COMMUNITY COUNCILS TEAM,GRANTS,5902519693,1000027831
04.04.2022,COMMUNITIES,THAMES HOMECARE SERVICE LTD,421.2,NO RECOURSE TO PUBLIC FUNDS,HOMECARE - C&V,2103411587,1000079295
04.04.2022,COMMUNITIES,ST FAITHS COMMUNITY CENTRE,"5,000.00",VCS GRANTS,GRANTS,5902519286,1039446
04.04.2022,COMMUNITIES,TIME & TALENTS ASSOCIATION,"4,500.00",VCS GRANTS,GRANTS,5902519287,1757632
04.04.2022,COMMUNITIES,LONDON WILDLIFE TRUST,"7,500.00",VCS GRANTS,GRANTS,5902519288,1832374
04.04.2022,COMMUNITIES,SOUTHWARK CITIZENS ADVICE,"5,600.00",VCS GRANTS,GRANTS,5902519289,1874379
04.04.2022,COMMUNITIES,GOLDEN OLDIES COMMUNITY CARE PROJECT,"2,500.00",VCS GRANTS,GRANTS,5902519290,11122958
04.04.2022,COMMUNITIES,BEDE HSE,"4,500.00",VCS GRANTS,GRANTS,5902519291,11248731
04.04.2022,COMMUNITIES,CAMBRIDGE HOUSE & TALBOT,"4,500.00",VCS GRANTS,GRANTS,5902519292,11248874
04.04.2022,COMMUNITIES,SURREY DOCKS FARM PROVIDENT SOCIETY,"10,000.00",VCS GRANTS,GRANTS,5902519293,1000000958
04.04.2022,COMMUNITIES,AAINA WOMEN GROUP,"8,018.25",VCS GRANTS,GRANTS,5902519294,1000002442
04.04.2022,COMMUNITIES,BANKSIDE OPEN SPACES TRUST,"4,208.00",VCS GRANTS,GRANTS,5902519295,1000018290
04.04.2022,COMMUNITIES,SWK DAY CTR FOR ASYLUM SEEKERS,"11,330.25",VCS GRANTS,GRANTS,5902519296,1000040491
04.04.2022,COMMUNITIES,SOUTHWARK EVERY WOMAN'S CENTRE,"5,500.00",VCS GRANTS,GRANTS,5902519297,1000042216
04.04.2022,COMMUNITIES,FUTURE MEN,"4,125.00",VCS GRANTS,GRANTS,5902519298,1000046010
04.04.2022,COMMUNITIES,MENTAL FIGHT CLUB,"2,500.00",VCS GRANTS,GRANTS,5902519299,1000051170
04.04.2022,COMMUNITIES,CRYSTAL PALACE COMM DEV TRUST,"3,000.00",VCS GRANTS,GRANTS,5902519300,1000054200
04.04.2022,COMMUNITIES,LATIN AMERICAN DISABLED PEOPLE PROJECT,"4,625.00",VCS GRANTS,GRANTS,5902519301,1000058588
04.04.2022,COMMUNITIES,LATIN AMERICAN WOMEN'S RIGHTS SERVICES,"4,625.00",VCS GRANTS,GRANTS,5902519309,1000068356
04.04.2022,COMMUNITIES,PAXTON GREEN TIME BANK,"4,250.00",VCS GRANTS,GRANTS,5902519313,1000070648
04.04.2022,COMMUNITIES,BLACKFRIARS SETTLEMENT,"4,500.00",VCS GRANTS,GRANTS,5902519314,1000071456
04.04.2022,COMMUNITIES,PEMBROKE COLLEGE SETTLEMENT,"4,500.00",VCS GRANTS,GRANTS,5902519316,1000073444
04.04.2022,COMMUNITIES,BERMONDSEY COMMUNITY KITCHEN,"3,750.00",VCS GRANTS,GRANTS,5902519319,1000075477
04.04.2022,COMMUNITIES,THE BIKE PROJECT,"3,851.00",VCS GRANTS,GRANTS,5902519321,1000077217
04.04.2022,COMMUNITIES,SOUTHWARK TRAVELLERS' ACTION,"5,750.00",VCS GRANTS,GRANTS,5902519322,1000077795
04.04.2022,COMMUNITIES,GLOBAL GENERATION,"4,250.00",VCS GRANTS,GRANTS,5902519323,1000080135
04.04.2022,COMMUNITIES,SPRING COMMUNITY HUB,"5,250.00",VCS GRANTS,GRANTS,5902519327,1000083089
04.04.2022,COMMUNITIES,OPENING DOORS LONDON,"4,750.00",VCS GRANTS,GRANTS,5902519329,1000086261
04.04.2022,CUSTOMER EXPERIENCE,TURCAN CONNELL,633.37,SALES & ACQUISITIONS,LEGAL FEES & COURT COSTS,5902519168,1000087684
04.04.2022,DSG,ALBION PRIMARY SCHOOL,"269,660.00",ALBION PRIMARY SCHOOL,SCHOOLS CAPITATION,5902519331,5001000000
04.04.2022,DSG,ALFRED SALTER PRIMARY SCHOOL,"230,585.00",ALFRED SALTER PRIMARY SCHOOL,SCHOOLS CAPITATION,5902519335,5001000005
04.04.2022,DSG,ANN BERNADT NURSERY SCHOOL,"27,937.00",ANN BERNADT (SUMNER),EARLY YEARS - 3 AND 4 YEAR OLDS,5902519527,5001000085
04.04.2022,DSG,ANN BERNADT NURSERY SCHOOL,"29,127.00",ANN BERNADT (SUMNER),EARLY YEARS - 3 AND 4 YEAR OLDS,5902519529,5001000085
04.04.2022,DSG,BELLENDEN PRIMARY SCHOOL,"116,261.00",BELLENDEN PRIMARY SCHOOL,SCHOOLS CAPITATION,5902519339,5001000007
04.04.2022,DSG,BESSEMER GRANGE PRIMARY SCHOOL,"317,629.00",BESSEMER GRANGE PRIMARY SCHOOL,SCHOOLS CAPITATION,5902519343,5001000009
04.04.2022,DSG,BOUCHER C OF E PRIMARY SCHOOL,"149,376.00",BOUTCHER CE PRIMARY SCHOOL,SCHOOLS CAPITATION,5902519347,5001000011
04.04.2022,DSG,BRUNSWICK PARK PRIMARY SCHOOL,"238,395.00",BRUNSWICK PARK PRIMARY SCHOOL,SCHOOLS CAPITATION,5902519348,5001000013
04.04.2022,DSG,CAMELOT PRIMARY SCHOOL,"209,592.00",CAMELOT PRIMARY SCHOOL,SCHOOLS CAPITATION,5902519352,5001000014
04.04.2022,DSG,CHARLOTTE  SHARMAN PRIMARY SCHOOL,"112,708.00",CHARLOTTE SHARMAN PRIMARY SCHOOL,SCHOOLS CAPITATION,5902519356,5001000016
04.04.2022,DSG,COBOURG PRIMARY SCHOOL,"168,877.00",COBOURG PRIMARY SCHOOL,SCHOOLS CAPITATION,5902519367,5001000021
04.04.2022,DSG,COMBER GROVE PRIMARY SCHOOL,"140,076.00",COMBER GROVE PRIMARY SCHOOL,SCHOOLS CAPITATION,5902519371,5001000022
04.04.2022,DSG,CRAMPTON PRIMARY SCHOOL,"147,572.00",CRAMPTON PRIMARY SCHOOL,SCHOOLS CAPITATION,5902519375,5001000023
04.04.2022,DSG,CRAWFORD PRIMARY SCHOOL,"287,411.00",CRAWFORD PRIMARY SCHOOL,SCHOOLS CAPITATION,5902519376,5001000024
04.04.2022,DSG,DOG KENNEL HILL PRIMARY SCHOOL,"210,485.00",DOG KENNEL HILL PRIMARY SCHOOL,SCHOOLS CAPITATION,5902519380,5001000025
04.04.2022,DSG,DULWICH VILLAGE CE INFANTS SCHOOL,"166,224.00",DULWICH VILLAGE CE INFANTS' SCHOOL,SCHOOLS CAPITATION,5902519384,5001000027
04.04.2022,DSG,DULWICH WOOD CHILDRENS CENTRE,"21,155.00",DULWICH WOOD NURSERY SCHOOL,EARLY YEARS - 3 AND 4 YEAR OLDS,5902519547,5001000099
04.04.2022,DSG,DULWICH WOOD CHILDRENS CENTRE,"29,729.00",DULWICH WOOD NURSERY SCHOOL,EARLY YEARS - 3 AND 4 YEAR OLDS,5902519549,5001000099
04.04.2022,DSG,DULWICH WOOD PRIMARY SCHOOL,"230,393.00",DULWICH WOOD PRIMARY SCHOOL,SCHOOLS CAPITATION,5902519426,5001000042
04.04.2022,DSG,ENGLISH MARTYRS RC PRIMARY SCHOOL,"209,508.00",ENGLISH MARTYRS RC PRIMARY SCHOOL,SCHOOLS CAPITATION,5902519393,5001000030
04.04.2022,DSG,FRIARS PRIMARY (FOUNDATION) SCHOOL,"127,576.00",FRIARS FOUNDATION PRIMARY SCHOOL,SCHOOLS CAPITATION,5902519401,5001000033
04.04.2022,DSG,GOODRICH PRIMARY SCHOOL,"307,628.00",GOODRICH PRIMARY SCHOOL,SCHOOLS CAPITATION,5902519385,5001000028
04.04.2022,DSG,GRANGE PRIMARY SCHOOL,"233,347.00",GRANGE PRIMARY SCHOOL,SCHOOLS CAPITATION,5902519389,5001000029
04.04.2022,DSG,HEBER PRIMARY SCHOOL,"222,596.00",HEBER PRIMARY SCHOOL,SCHOOLS CAPITATION,5902519405,5001000035
04.04.2022,DSG,HOLLYDALE PRIMARY SCHOOL,"122,837.00",HOLLYDALE PRIMARY SCHOOL,SCHOOLS CAPITATION,5902519409,5001000036
04.04.2022,DSG,ILDERTON PRIMARY SCHOOL,"180,469.00",ILDERTON PRIMARY SCHOOL,SCHOOLS CAPITATION,5902519410,5001000037
04.04.2022,DSG,IVYDALE PRIMARY SCHOOL,"231,204.20",IVYDALE PRIMARY SCHOOL,SCHOOLS CAPITATION,5902519414,5001000038
04.04.2022,DSG,JOHN RUSKIN PRIMARY SCHOOL,"283,297.00",JOHN RUSKIN PRIMARY SCHOOL,SCHOOLS CAPITATION,5902519418,5001000040
04.04.2022,DSG,KEYWORTH PRIMARY SCHOOL,"213,097.00",KEYWORTH PRIMARY SCHOOL,SCHOOLS CAPITATION,5902519422,5001000041
04.04.2022,DSG,KINTORE WAY CHILDRENS CENTRE,"40,809.00",KINTORE WAY CHILDRENS CENTRE,EARLY YEARS - 3 AND 4 YEAR OLDS,5902519427,5001000047
04.04.2022,DSG,KINTORE WAY CHILDRENS CENTRE,"75,930.00",KINTORE WAY CHILDRENS CENTRE,EARLY YEARS - 3 AND 4 YEAR OLDS,5902519429,5001000047
04.04.2022,DSG,MICHAEL FARADAY PRIMARY SCHOOL,"239,005.00",MICHAEL FARADAY PRIMARY SCHOOL,SCHOOLS CAPITATION,5902519430,5001000048
04.04.2022,DSG,NELL GWYNN NURSERY SCHOOL,"29,691.00",NELL GWYNN CHILDRENS CENTRE,EARLY YEARS - 3 AND 4 YEAR OLDS,5902519434,5001000049
04.04.2022,DSG,NELL GWYNN NURSERY SCHOOL,"40,624.00",NELL GWYNN CHILDRENS CENTRE,EARLY YEARS - 3 AND 4 YEAR OLDS,5902519436,5001000049
04.04.2022,DSG,NOTRE DAME RC GIRLS SCHOOL,"520,871.00",NOTRE DAME RC GIRLS' SCHOOL,SCHOOLS CAPITATION,5902519437,5001000050
04.04.2022,DSG,ALBION PRIMARY SCHOOL,"2,336.00",NURSERY ED GRANT 3 AND 4 YR OLDS,EARLY YEARS - 3 AND 4 YEAR OLDS,5902519332,5001000000
04.04.2022,DSG,ALBION PRIMARY SCHOOL,"15,675.00",NURSERY ED GRANT 3 AND 4 YR OLDS,EARLY YEARS - 3 AND 4 YEAR OLDS,5902519334,5001000000
04.04.2022,DSG,ALFRED SALTER PRIMARY SCHOOL,"1,290.00",NURSERY ED GRANT 3 AND 4 YR OLDS,EARLY YEARS - 3 AND 4 YEAR OLDS,5902519336,5001000005
04.04.2022,DSG,ALFRED SALTER PRIMARY SCHOOL,"15,063.00",NURSERY ED GRANT 3 AND 4 YR OLDS,EARLY YEARS - 3 AND 4 YEAR OLDS,5902519338,5001000005
04.04.2022,DSG,BELLENDEN PRIMARY SCHOOL,824,NURSERY ED GRANT 3 AND 4 YR OLDS,EARLY YEARS - 3 AND 4 YEAR OLDS,5902519340,5001000007
04.04.2022,DSG,BELLENDEN PRIMARY SCHOOL,"11,822.00",NURSERY ED GRANT 3 AND 4 YR OLDS,EARLY YEARS - 3 AND 4 YEAR OLDS,5902519342,5001000007
04.04.2022,DSG,BESSEMER GRANGE PRIMARY SCHOOL,"1,240.00",NURSERY ED GRANT 3 AND 4 YR OLDS,EARLY YEARS - 3 AND 4 YEAR OLDS,5902519344,5001000009
04.04.2022,DSG,BESSEMER GRANGE PRIMARY SCHOOL,"26,545.00",NURSERY ED GRANT 3 AND 4 YR OLDS,EARLY YEARS - 3 AND 4 YEAR OLDS,5902519346,5001000009
04.04.2022,DSG,BRUNSWICK PARK PRIMARY SCHOOL,"1,791.00",NURSERY ED GRANT 3 AND 4 YR OLDS,EARLY YEARS - 3 AND 4 YEAR OLDS,5902519349,5001000013
04.04.2022,DSG,BRUNSWICK PARK PRIMARY SCHOOL,"12,539.00",NURSERY ED GRANT 3 AND 4 YR OLDS,EARLY YEARS - 3 AND 4 YEAR OLDS,5902519351,5001000013
04.04.2022,DSG,CAMELOT PRIMARY SCHOOL,"2,129.00",NURSERY ED GRANT 3 AND 4 YR OLDS,EARLY YEARS - 3 AND 4 YEAR OLDS,5902519353,5001000014
04.04.2022,DSG,CAMELOT PRIMARY SCHOOL,"13,315.00",NURSERY ED GRANT 3 AND 4 YR OLDS,EARLY YEARS - 3 AND 4 YEAR OLDS,5902519355,5001000014
04.04.2022,DSG,CHARLOTTE  SHARMAN PRIMARY SCHOOL,"1,174.00",NURSERY ED GRANT 3 AND 4 YR OLDS,EARLY YEARS - 3 AND 4 YEAR OLDS,5902519357,5001000016
04.04.2022,DSG,CHARLOTTE  SHARMAN PRIMARY SCHOOL,"6,100.00",NURSERY ED GRANT 3 AND 4 YR OLDS,EARLY YEARS - 3 AND 4 YEAR OLDS,5902519359,5001000016
04.04.2022,DSG,ST JUDES CHURCH OF ENGLAND PRIMARY,297,NURSERY ED GRANT 3 AND 4 YR OLDS,EARLY YEARS - 3 AND 4 YEAR OLDS,5902519363,5001000019
04.04.2022,DSG,ST JUDES CHURCH OF ENGLAND PRIMARY,"3,225.00",NURSERY ED GRANT 3 AND 4 YR OLDS,EARLY YEARS - 3 AND 4 YEAR OLDS,5902519365,5001000019
04.04.2022,DSG,COBOURG PRIMARY SCHOOL,"1,541.00",NURSERY ED GRANT 3 AND 4 YR OLDS,EARLY YEARS - 3 AND 4 YEAR OLDS,5902519368,5001000021
04.04.2022,DSG,COBOURG PRIMARY SCHOOL,"7,776.00",NURSERY ED GRANT 3 AND 4 YR OLDS,EARLY YEARS - 3 AND 4 YEAR OLDS,5902519370,5001000021
04.04.2022,DSG,COMBER GROVE PRIMARY SCHOOL,433,NURSERY ED GRANT 3 AND 4 YR OLDS,EARLY YEARS - 3 AND 4 YEAR OLDS,5902519372,5001000022
04.04.2022,DSG,COMBER GROVE PRIMARY SCHOOL,"5,384.00",NURSERY ED GRANT 3 AND 4 YR OLDS,EARLY YEARS - 3 AND 4 YEAR OLDS,5902519374,5001000022
04.04.2022,DSG,CRAWFORD PRIMARY SCHOOL,"1,124.00",NURSERY ED GRANT 3 AND 4 YR OLDS,EARLY YEARS - 3 AND 4 YEAR OLDS,5902519377,5001000024
04.04.2022,DSG,CRAWFORD PRIMARY SCHOOL,"7,419.00",NURSERY ED GRANT 3 AND 4 YR OLDS,EARLY YEARS - 3 AND 4 YEAR OLDS,5902519379,5001000024
04.04.2022,DSG,DOG KENNEL HILL PRIMARY SCHOOL,825,NURSERY ED GRANT 3 AND 4 YR OLDS,EARLY YEARS - 3 AND 4 YEAR OLDS,5902519381,5001000025
04.04.2022,DSG,DOG KENNEL HILL PRIMARY SCHOOL,"11,188.00",NURSERY ED GRANT 3 AND 4 YR OLDS,EARLY YEARS - 3 AND 4 YEAR OLDS,5902519383,5001000025
04.04.2022,DSG,GOODRICH PRIMARY SCHOOL,"24,444.00",NURSERY ED GRANT 3 AND 4 YR OLDS,EARLY YEARS - 3 AND 4 YEAR OLDS,5902519388,5001000028
04.04.2022,DSG,GRANGE PRIMARY SCHOOL,"1,007.00",NURSERY ED GRANT 3 AND 4 YR OLDS,EARLY YEARS - 3 AND 4 YEAR OLDS,5902519390,5001000029
04.04.2022,DSG,GRANGE PRIMARY SCHOOL,"9,304.00",NURSERY ED GRANT 3 AND 4 YR OLDS,EARLY YEARS - 3 AND 4 YEAR OLDS,5902519392,5001000029
04.04.2022,DSG,ENGLISH MARTYRS RC PRIMARY SCHOOL,"1,807.00",NURSERY ED GRANT 3 AND 4 YR OLDS,EARLY YEARS - 3 AND 4 YEAR OLDS,5902519394,5001000030
04.04.2022,DSG,ENGLISH MARTYRS RC PRIMARY SCHOOL,"10,526.00",NURSERY ED GRANT 3 AND 4 YR OLDS,EARLY YEARS - 3 AND 4 YEAR OLDS,5902519396,5001000030
04.04.2022,DSG,PHOENIX PRIMARY SCHOOL,"1,381.00",NURSERY ED GRANT 3 AND 4 YR OLDS,EARLY YEARS - 3 AND 4 YEAR OLDS,5902519398,5001000032
04.04.2022,DSG,PHOENIX PRIMARY SCHOOL,"12,084.00",NURSERY ED GRANT 3 AND 4 YR OLDS,EARLY YEARS - 3 AND 4 YEAR OLDS,5902519400,5001000032
04.04.2022,DSG,FRIARS PRIMARY (FOUNDATION) SCHOOL,812,NURSERY ED GRANT 3 AND 4 YR OLDS,EARLY YEARS - 3 AND 4 YEAR OLDS,5902519402,5001000033
04.04.2022,DSG,FRIARS PRIMARY (FOUNDATION) SCHOOL,"6,205.00",NURSERY ED GRANT 3 AND 4 YR OLDS,EARLY YEARS - 3 AND 4 YEAR OLDS,5902519404,5001000033
04.04.2022,DSG,HEBER PRIMARY SCHOOL,"13,757.00",NURSERY ED GRANT 3 AND 4 YR OLDS,EARLY YEARS - 3 AND 4 YEAR OLDS,5902519408,5001000035
04.04.2022,DSG,ILDERTON PRIMARY SCHOOL,948,NURSERY ED GRANT 3 AND 4 YR OLDS,EARLY YEARS - 3 AND 4 YEAR OLDS,5902519411,5001000037
04.04.2022,DSG,ILDERTON PRIMARY SCHOOL,"4,632.00",NURSERY ED GRANT 3 AND 4 YR OLDS,EARLY YEARS - 3 AND 4 YEAR OLDS,5902519413,5001000037
04.04.2022,DSG,IVYDALE PRIMARY SCHOOL,"1,047.00",NURSERY ED GRANT 3 AND 4 YR OLDS,EARLY YEARS - 3 AND 4 YEAR OLDS,5902519415,5001000038
04.04.2022,DSG,IVYDALE PRIMARY SCHOOL,"15,696.00",NURSERY ED GRANT 3 AND 4 YR OLDS,EARLY YEARS - 3 AND 4 YEAR OLDS,5902519417,5001000038
04.04.2022,DSG,JOHN RUSKIN PRIMARY SCHOOL,"3,599.00",NURSERY ED GRANT 3 AND 4 YR OLDS,EARLY YEARS - 3 AND 4 YEAR OLDS,5902519419,5001000040
04.04.2022,DSG,JOHN RUSKIN PRIMARY SCHOOL,"28,169.00",NURSERY ED GRANT 3 AND 4 YR OLDS,EARLY YEARS - 3 AND 4 YEAR OLDS,5902519421,5001000040
04.04.2022,DSG,KEYWORTH PRIMARY SCHOOL,"1,639.00",NURSERY ED GRANT 3 AND 4 YR OLDS,EARLY YEARS - 3 AND 4 YEAR OLDS,5902519423,5001000041
04.04.2022,DSG,KEYWORTH PRIMARY SCHOOL,"12,580.00",NURSERY ED GRANT 3 AND 4 YR OLDS,EARLY YEARS - 3 AND 4 YEAR OLDS,5902519425,5001000041
04.04.2022,DSG,MICHAEL FARADAY PRIMARY SCHOOL,"2,939.00",NURSERY ED GRANT 3 AND 4 YR OLDS,EARLY YEARS - 3 AND 4 YEAR OLDS,5902519431,5001000048
04.04.2022,DSG,MICHAEL FARADAY PRIMARY SCHOOL,"18,263.00",NURSERY ED GRANT 3 AND 4 YR OLDS,EARLY YEARS - 3 AND 4 YEAR OLDS,5902519433,5001000048
04.04.2022,DSG,OLIVER GOLDSMITH PRIMARY SCHOOL,"1,399.00",NURSERY ED GRANT 3 AND 4 YR OLDS,EARLY YEARS - 3 AND 4 YEAR OLDS,5902519439,5001000051
04.04.2022,DSG,OLIVER GOLDSMITH PRIMARY SCHOOL,"10,394.00",NURSERY ED GRANT 3 AND 4 YR OLDS,EARLY YEARS - 3 AND 4 YEAR OLDS,5902519441,5001000051
04.04.2022,DSG,PETER HILLS CE SCHOOL,672,NURSERY ED GRANT 3 AND 4 YR OLDS,EARLY YEARS - 3 AND 4 YEAR OLDS,5902519443,5001000053
04.04.2022,DSG,PETER HILLS CE SCHOOL,"5,687.00",NURSERY ED GRANT 3 AND 4 YR OLDS,EARLY YEARS - 3 AND 4 YEAR OLDS,5902519445,5001000053
04.04.2022,DSG,PILGRIM'S WAY PRIMARY SCHOOL,"1,043.00",NURSERY ED GRANT 3 AND 4 YR OLDS,EARLY YEARS - 3 AND 4 YEAR OLDS,5902519447,5001000054
04.04.2022,DSG,PILGRIM'S WAY PRIMARY SCHOOL,"8,183.00",NURSERY ED GRANT 3 AND 4 YR OLDS,EARLY YEARS - 3 AND 4 YEAR OLDS,5902519449,5001000054
04.04.2022,DSG,RIVERSIDE PRIMARY SCHOOL,612,NURSERY ED GRANT 3 AND 4 YR OLDS,EARLY YEARS - 3 AND 4 YEAR OLDS,5902519451,5001000056
04.04.2022,DSG,RIVERSIDE PRIMARY SCHOOL,"5,024.00",NURSERY ED GRANT 3 AND 4 YR OLDS,EARLY YEARS - 3 AND 4 YEAR OLDS,5902519453,5001000056
04.04.2022,DSG,ROBERT BROWNING PRIMARY SCHOOL,"1,027.00",NURSERY ED GRANT 3 AND 4 YR OLDS,EARLY YEARS - 3 AND 4 YEAR OLDS,5902519455,5001000057
04.04.2022,DSG,ROBERT BROWNING PRIMARY SCHOOL,"7,168.00",NURSERY ED GRANT 3 AND 4 YR OLDS,EARLY YEARS - 3 AND 4 YEAR OLDS,5902519457,5001000057
04.04.2022,DSG,ROTHERHITHE PRIMARY SCHOOL,"2,517.00",NURSERY ED GRANT 3 AND 4 YR OLDS,EARLY YEARS - 3 AND 4 YEAR OLDS,5902519459,5001000058
04.04.2022,DSG,ROTHERHITHE PRIMARY SCHOOL,"11,188.00",NURSERY ED GRANT 3 AND 4 YR OLDS,EARLY YEARS - 3 AND 4 YEAR OLDS,5902519461,5001000058
04.04.2022,DSG,RYE OAK PRIMARY SCHOOL,"2,223.00",NURSERY ED GRANT 3 AND 4 YR OLDS,EARLY YEARS - 3 AND 4 YEAR OLDS,5902519463,5001000059
04.04.2022,DSG,RYE OAK PRIMARY SCHOOL,"15,291.00",NURSERY ED GRANT 3 AND 4 YR OLDS,EARLY YEARS - 3 AND 4 YEAR OLDS,5902519465,5001000059
04.04.2022,DSG,SNOWSFIELDS PRIMARY SCHOOL,829,NURSERY ED GRANT 3 AND 4 YR OLDS,EARLY YEARS - 3 AND 4 YEAR OLDS,5902519467,5001000061
04.04.2022,DSG,SNOWSFIELDS PRIMARY SCHOOL,"5,397.00",NURSERY ED GRANT 3 AND 4 YR OLDS,EARLY YEARS - 3 AND 4 YEAR OLDS,5902519469,5001000061
04.04.2022,DSG,SOUTHWARK PARK PRIMARY SCHOOL,"2,679.00",NURSERY ED GRANT 3 AND 4 YR OLDS,EARLY YEARS - 3 AND 4 YEAR OLDS,5902519471,5001000062
04.04.2022,DSG,SOUTHWARK PARK PRIMARY SCHOOL,"17,841.00",NURSERY ED GRANT 3 AND 4 YR OLDS,EARLY YEARS - 3 AND 4 YEAR OLDS,5902519473,5001000062
04.04.2022,DSG,ST ANTHONYS RC SCHOOL,492,NURSERY ED GRANT 3 AND 4 YR OLDS,EARLY YEARS - 3 AND 4 YEAR OLDS,5902519475,5001000064
04.04.2022,DSG,ST ANTHONYS RC SCHOOL,"15,315.00",NURSERY ED GRANT 3 AND 4 YR OLDS,EARLY YEARS - 3 AND 4 YEAR OLDS,5902519477,5001000064
04.04.2022,DSG,ST FRANCESCA CABRINI PRIMARY SCHOOL,548,NURSERY ED GRANT 3 AND 4 YR OLDS,EARLY YEARS - 3 AND 4 YEAR OLDS,5902519479,5001000065
04.04.2022,DSG,ST FRANCESCA CABRINI PRIMARY SCHOOL,"5,831.00",NURSERY ED GRANT 3 AND 4 YR OLDS,EARLY YEARS - 3 AND 4 YEAR OLDS,5902519481,5001000065
04.04.2022,DSG,ST FRANCIS'S RC PRIMARY SCHOOL,889,NURSERY ED GRANT 3 AND 4 YR OLDS,EARLY YEARS - 3 AND 4 YEAR OLDS,5902519483,5001000067
04.04.2022,DSG,ST FRANCIS'S RC PRIMARY SCHOOL,"4,859.00",NURSERY ED GRANT 3 AND 4 YR OLDS,EARLY YEARS - 3 AND 4 YEAR OLDS,5902519485,5001000067
04.04.2022,DSG,ST GEORGES RC SCHOOL,692,NURSERY ED GRANT 3 AND 4 YR OLDS,EARLY YEARS - 3 AND 4 YEAR OLDS,5902519487,5001000068
04.04.2022,DSG,ST GEORGES RC SCHOOL,"1,776.00",NURSERY ED GRANT 3 AND 4 YR OLDS,EARLY YEARS - 3 AND 4 YEAR OLDS,5902519489,5001000068
04.04.2022,DSG,ST JAMES CE PRIMARY SCHOOL,"4,029.00",NURSERY ED GRANT 3 AND 4 YR OLDS,EARLY YEARS - 3 AND 4 YEAR OLDS,5902519492,5001000070
04.04.2022,DSG,ST JAMES CE PRIMARY SCHOOL,"24,165.00",NURSERY ED GRANT 3 AND 4 YR OLDS,EARLY YEARS - 3 AND 4 YEAR OLDS,5902519494,5001000070
04.04.2022,DSG,ST JAMES THE GREAT RC SCHOOL,"1,457.00",NURSERY ED GRANT 3 AND 4 YR OLDS,EARLY YEARS - 3 AND 4 YEAR OLDS,5902519496,5001000071
04.04.2022,DSG,ST JAMES THE GREAT RC SCHOOL,"11,863.00",NURSERY ED GRANT 3 AND 4 YR OLDS,EARLY YEARS - 3 AND 4 YEAR OLDS,5902519498,5001000071
04.04.2022,DSG,ST JOHNS RC PRIMARY SCHOOL,928,NURSERY ED GRANT 3 AND 4 YR OLDS,EARLY YEARS - 3 AND 4 YEAR OLDS,5902519504,5001000075
04.04.2022,DSG,ST JOHNS RC PRIMARY SCHOOL,"10,824.00",NURSERY ED GRANT 3 AND 4 YR OLDS,EARLY YEARS - 3 AND 4 YEAR OLDS,5902519506,5001000075
04.04.2022,DSG,ST JOSEPHS CATHOLIC SCHOOL,"1,107.00",NURSERY ED GRANT 3 AND 4 YR OLDS,EARLY YEARS - 3 AND 4 YEAR OLDS,5902519508,5001000076
04.04.2022,DSG,ST JOSEPHS CATHOLIC SCHOOL,"6,171.00",NURSERY ED GRANT 3 AND 4 YR OLDS,EARLY YEARS - 3 AND 4 YEAR OLDS,5902519510,5001000076
04.04.2022,DSG,ST JOSEPHS RC PRIMARY SCHOOL,"1,533.00",NURSERY ED GRANT 3 AND 4 YR OLDS,EARLY YEARS - 3 AND 4 YEAR OLDS,5902519512,5001000077
04.04.2022,DSG,ST JOSEPHS RC PRIMARY SCHOOL,"12,156.00",NURSERY ED GRANT 3 AND 4 YR OLDS,EARLY YEARS - 3 AND 4 YEAR OLDS,5902519514,5001000077
04.04.2022,DSG,ST JOSEPHS CATHOLIC PRIMARY SCHOOL,"1,385.00",NURSERY ED GRANT 3 AND 4 YR OLDS,EARLY YEARS - 3 AND 4 YEAR OLDS,5902519516,5001000078
04.04.2022,DSG,ST JOSEPHS CATHOLIC PRIMARY SCHOOL,"9,480.00",NURSERY ED GRANT 3 AND 4 YR OLDS,EARLY YEARS - 3 AND 4 YEAR OLDS,5902519518,5001000078
04.04.2022,DSG,ST PETERS CE SCHOOL,967,NURSERY ED GRANT 3 AND 4 YR OLDS,EARLY YEARS - 3 AND 4 YEAR OLDS,5902519521,5001000083
04.04.2022,DSG,ST PETERS CE SCHOOL,"7,709.00",NURSERY ED GRANT 3 AND 4 YR OLDS,EARLY YEARS - 3 AND 4 YEAR OLDS,5902519523,5001000083
04.04.2022,DSG,CATHEDRAL SCHOOL OF ST SAVIOUR & MARY,"4,255.00",NURSERY ED GRANT 3 AND 4 YR OLDS,EARLY YEARS - 3 AND 4 YEAR OLDS,5902519533,5001000088
04.04.2022,DSG,TOWER BRIDGE PRIMARY SCHOOL,593,NURSERY ED GRANT 3 AND 4 YR OLDS,EARLY YEARS - 3 AND 4 YEAR OLDS,5902519538,5001000095
04.04.2022,DSG,TOWER BRIDGE PRIMARY SCHOOL,"4,389.00",NURSERY ED GRANT 3 AND 4 YR OLDS,EARLY YEARS - 3 AND 4 YEAR OLDS,5902519540,5001000095
04.04.2022,DSG,VICTORY SCHOOL,335,NURSERY ED GRANT 3 AND 4 YR OLDS,EARLY YEARS - 3 AND 4 YEAR OLDS,5902519544,5001000098
04.04.2022,DSG,VICTORY SCHOOL,"1,310.00",NURSERY ED GRANT 3 AND 4 YR OLDS,EARLY YEARS - 3 AND 4 YEAR OLDS,5902519546,5001000098
04.04.2022,DSG,OLIVER GOLDSMITH PRIMARY SCHOOL,"233,087.00",OLIVER GOLDSMITH PRIMARY SCHOOL,SCHOOLS CAPITATION,5902519438,5001000051
04.04.2022,DSG,PETER HILLS CE SCHOOL,"99,629.00",PETER HILLS CE PRIMARY SCHOOL,SCHOOLS CAPITATION,5902519442,5001000053
04.04.2022,DSG,PHOENIX PRIMARY SCHOOL,"378,497.00",PHOENIX PRIMARY SCHOOL,SCHOOLS CAPITATION,5902519397,5001000032
04.04.2022,DSG,PILGRIM'S WAY PRIMARY SCHOOL,"141,033.00",PILGRIMS WAY PRIMARY SCHOOL,SCHOOLS CAPITATION,5902519446,5001000054
04.04.2022,DSG,RIVERSIDE PRIMARY SCHOOL,"201,373.00",RIVERSIDE PRIMARY SCHOOL,SCHOOLS CAPITATION,5902519450,5001000056
04.04.2022,DSG,ROBERT BROWNING PRIMARY SCHOOL,"131,889.00",ROBERT BROWNING PRIMARY SCHOOL,SCHOOLS CAPITATION,5902519454,5001000057
04.04.2022,DSG,ROTHERHITHE PRIMARY SCHOOL,"235,143.00",ROTHERHITHE PRIMARY SCHOOL,SCHOOLS CAPITATION,5902519458,5001000058
04.04.2022,DSG,RYE OAK PRIMARY SCHOOL,"165,592.00",RYE OAK PRIMARY SCHOOL,SCHOOLS CAPITATION,5902519462,5001000059
04.04.2022,DSG,SNOWSFIELDS PRIMARY SCHOOL,"134,197.00",SNOWSFIELDS PRIMARY SCHOOL,SCHOOLS CAPITATION,5902519466,5001000061
04.04.2022,DSG,SOUTHWARK PARK PRIMARY SCHOOL,"268,189.00",SOUTHWARK PARK PRIMARY SCHOOL,SCHOOLS CAPITATION,5902519470,5001000062
04.04.2022,DSG,ST ANTHONYS RC SCHOOL,"233,895.00",ST ANTHONY'S CATHOLIC PRIMARY SCHOOL,SCHOOLS CAPITATION,5902519474,5001000064
04.04.2022,DSG,ST FRANCESCA CABRINI PRIMARY SCHOOL,"133,349.00",ST FRANCESCA CABRINI PRIMARY SCHOOL,SCHOOLS CAPITATION,5902519478,5001000065
04.04.2022,DSG,ST FRANCIS'S RC PRIMARY SCHOOL,"226,247.00",ST FRANCIS RC PRIMARY SCHOOL,SCHOOLS CAPITATION,5902519482,5001000067
04.04.2022,DSG,ST GEORGES RC SCHOOL,"118,871.00",ST GEORGE'S CATHEDRAL RC PRIMARY SCHOOL,SCHOOLS CAPITATION,5902519486,5001000068
04.04.2022,DSG,ST GEORGES CE SCHOOL,"120,913.00",ST GEORGE'S CE PRIMARY SCHOOL,SCHOOLS CAPITATION,5902519490,5001000069
04.04.2022,DSG,ST JAMES CE PRIMARY SCHOOL,"284,229.00",ST JAMES' CE PRIMARY SCHOOL,SCHOOLS CAPITATION,5902519491,5001000070
04.04.2022,DSG,ST JAMES THE GREAT RC SCHOOL,"144,123.00",ST JAMES THE GREAT RC PRIMARY SCHOOL,SCHOOLS CAPITATION,5902519495,5001000071
04.04.2022,DSG,ST JOHNS & ST CLEMENTS CE SCHOOL,"227,409.00",ST JOHN'S & ST CLEMENT'S CE PRIMARY SCHO,SCHOOLS CAPITATION,5902519499,5001000073
04.04.2022,DSG,ST JOHNS RC PRIMARY SCHOOL,"146,275.00",ST JOHN'S RC PRIMARY SCHOOL,SCHOOLS CAPITATION,5902519503,5001000075
04.04.2022,DSG,ST JOSEPHS RC PRIMARY SCHOOL,"196,361.00",ST JOSEPHS RC (3475) PRIMARY SCHOOL,SCHOOLS CAPITATION,5902519511,5001000077
04.04.2022,DSG,ST JOSEPHS CATHOLIC PRIMARY SCHOOL,"131,900.00",ST JOSEPHS RC (3476) PRIMARY SCHOOL,SCHOOLS CAPITATION,5902519515,5001000078
04.04.2022,DSG,ST JOSEPHS CATHOLIC SCHOOL,"134,827.00",ST JOSEPHS RC (3484) SCHOOL,SCHOOLS CAPITATION,5902519507,5001000076
04.04.2022,DSG,ST JOSEPHS CATHOLIC INFANTS SCHOOL,"107,984.00",ST JOSEPHS RC INFANT(5204),SCHOOLS CAPITATION,5902519361,5001000018
04.04.2022,DSG,ST JOSEPHS RC JUNIOR  SCHOOL,"158,792.00",ST JOSEPHS RC JUNIOR(5203) SCHOOL,SCHOOLS CAPITATION,5902519360,5001000017
04.04.2022,DSG,ST JUDES CHURCH OF ENGLAND PRIMARY,"80,015.00",ST JUDE'S CE PRIMARY SCHOOL,SCHOOLS CAPITATION,5902519362,5001000019
04.04.2022,DSG,ST PETERS CE SCHOOL,"128,498.00",ST PETER'S CE PRIMARY SCHOOL,SCHOOLS CAPITATION,5902519520,5001000083
04.04.2022,DSG,ST SAVIOURS & ST OLAVES SCHOOL,"581,268.00",ST SAVIOUR & OLAVE'S CE,SCHOOLS CAPITATION,5902519524,5001000084
04.04.2022,DSG,CATHEDRAL SCHOOL OF ST SAVIOUR & MARY,"138,908.00",THE CATHEDRAL OF ST. SAVIOUR & ST OLAVES,SCHOOLS CAPITATION,5902519530,5001000088
04.04.2022,DSG,THE GROVE CHILDRENS CENTRE,"27,815.00",THE GROVE NURSERY SCHOOL,EARLY YEARS - 3 AND 4 YEAR OLDS,5902519534,5001000090
04.04.2022,DSG,THE GROVE CHILDRENS CENTRE,"30,087.00",THE GROVE NURSERY SCHOOL,EARLY YEARS - 3 AND 4 YEAR OLDS,5902519536,5001000090
04.04.2022,DSG,THE ST THOMAS THE APOSTLE COLLEGE,"734,494.00",THE ST THOMAS THE APOSTLE COLLEGE,SCHOOLS CAPITATION,5902519500,5001000074
04.04.2022,DSG,TOWER BRIDGE PRIMARY SCHOOL,"126,917.00",TOWER BRIDGE PRIMARY SCHOOL,SCHOOLS CAPITATION,5902519537,5001000095
04.04.2022,DSG,TOWNSEND PRIMARY SCHOOL,"109,151.00",TOWNSEND PRIMARY SCHOOL,SCHOOLS CAPITATION,5902519541,5001000096
04.04.2022,DSG,VICTORY SCHOOL,"97,632.00",VICTORY PRIMARY SCHOOL,SCHOOLS CAPITATION,5902519543,5001000098
04.04.2022,DSG,THE ST THOMAS THE APOSTLE COLLEGE,"10,617.10",YPLA SCHL SIXTH FORM,SCHOOLS CAPITATION,5902519502,5001000074
04.04.2022,DSG,THE ST THOMAS THE APOSTLE COLLEGE,"109,825.22",YPLA SCHL SIXTH FORM,SCHOOLS CAPITATION,5902519501,5001000074
04.04.2022,DSG,ST SAVIOURS & ST OLAVES SCHOOL,"5,047.79",YPLA SCHL SIXTH FORM,SCHOOLS CAPITATION,5902519526,5001000084
04.04.2022,DSG,ST SAVIOURS & ST OLAVES SCHOOL,"63,988.47",YPLA SCHL SIXTH FORM,SCHOOLS CAPITATION,5902519525,5001000084
04.04.2022,EDUCATION,ANGEL OAK ACADEMY,847,FREE HEALTHY SCHOOL MEALS,SCHOOLS CAPITATION,5902519318,1000075379
04.04.2022,EDUCATION,NELL GWYNN NURSERY SCHOOL,"7,867.00",FREE HEALTHY SCHOOL MEALS,SCHOOLS CAPITATION,5902519435,5001000049
04.04.2022,EDUCATION,ANN BERNADT NURSERY SCHOOL,"5,124.00",FREE HEALTHY SCHOOL MEALS,SCHOOLS CAPITATION,5902519528,5001000085
04.04.2022,EDUCATION,THE GROVE CHILDRENS CENTRE,"5,366.00",FREE HEALTHY SCHOOL MEALS,SCHOOLS CAPITATION,5902519535,5001000090
04.04.2022,EDUCATION,DULWICH WOOD CHILDRENS CENTRE,"7,000.00",FREE HEALTHY SCHOOL MEALS,SCHOOLS CAPITATION,5902519548,5001000099
04.04.2022,EDUCATION,REDRIFF PRIMARY SCHOOL,"3,974.00",FREE HEALTHY SCHOOL MEALS,SCHOOLS CAPITATION,5902519307,1000067877
04.04.2022,EDUCATION,HARRIS PRIMARY ACADEMY PECKHAM PARK,968,FREE HEALTHY SCHOOL MEALS,SCHOOLS CAPITATION,5902519308,1000068029
04.04.2022,EDUCATION,ALBION PRIMARY SCHOOL,"3,409.00",FREE HEALTHY SCHOOL MEALS,SCHOOLS CAPITATION,5902519333,5001000000
04.04.2022,EDUCATION,ALFRED SALTER PRIMARY SCHOOL,"2,723.00",FREE HEALTHY SCHOOL MEALS,SCHOOLS CAPITATION,5902519337,5001000005
04.04.2022,EDUCATION,BELLENDEN PRIMARY SCHOOL,"2,118.00",FREE HEALTHY SCHOOL MEALS,SCHOOLS CAPITATION,5902519341,5001000007
04.04.2022,EDUCATION,BESSEMER GRANGE PRIMARY SCHOOL,"6,153.00",FREE HEALTHY SCHOOL MEALS,SCHOOLS CAPITATION,5902519345,5001000009
04.04.2022,EDUCATION,BRUNSWICK PARK PRIMARY SCHOOL,"2,623.00",FREE HEALTHY SCHOOL MEALS,SCHOOLS CAPITATION,5902519350,5001000013
04.04.2022,EDUCATION,CAMELOT PRIMARY SCHOOL,"2,844.00",FREE HEALTHY SCHOOL MEALS,SCHOOLS CAPITATION,5902519354,5001000014
04.04.2022,EDUCATION,CHARLOTTE  SHARMAN PRIMARY SCHOOL,"1,271.00",FREE HEALTHY SCHOOL MEALS,SCHOOLS CAPITATION,5902519358,5001000016
04.04.2022,EDUCATION,ST JUDES CHURCH OF ENGLAND PRIMARY,484,FREE HEALTHY SCHOOL MEALS,SCHOOLS CAPITATION,5902519364,5001000019
04.04.2022,EDUCATION,CHERRY GARDEN SCHOOL,303,FREE HEALTHY SCHOOL MEALS,SCHOOLS CAPITATION,5902519366,5001000020
04.04.2022,EDUCATION,COBOURG PRIMARY SCHOOL,"1,695.00",FREE HEALTHY SCHOOL MEALS,SCHOOLS CAPITATION,5902519369,5001000021
04.04.2022,EDUCATION,COMBER GROVE PRIMARY SCHOOL,"1,029.00",FREE HEALTHY SCHOOL MEALS,SCHOOLS CAPITATION,5902519373,5001000022
04.04.2022,EDUCATION,CRAWFORD PRIMARY SCHOOL,"1,513.00",FREE HEALTHY SCHOOL MEALS,SCHOOLS CAPITATION,5902519378,5001000024
04.04.2022,EDUCATION,DOG KENNEL HILL PRIMARY SCHOOL,"2,158.00",FREE HEALTHY SCHOOL MEALS,SCHOOLS CAPITATION,5902519382,5001000025
04.04.2022,EDUCATION,GOODRICH PRIMARY SCHOOL,"4,518.00",FREE HEALTHY SCHOOL MEALS,SCHOOLS CAPITATION,5902519387,5001000028
04.04.2022,EDUCATION,GRANGE PRIMARY SCHOOL,"1,674.00",FREE HEALTHY SCHOOL MEALS,SCHOOLS CAPITATION,5902519391,5001000029
04.04.2022,EDUCATION,ENGLISH MARTYRS RC PRIMARY SCHOOL,"2,058.00",FREE HEALTHY SCHOOL MEALS,SCHOOLS CAPITATION,5902519395,5001000030
04.04.2022,EDUCATION,PHOENIX PRIMARY SCHOOL,"2,118.00",FREE HEALTHY SCHOOL MEALS,SCHOOLS CAPITATION,5902519399,5001000032
04.04.2022,EDUCATION,FRIARS PRIMARY (FOUNDATION) SCHOOL,"1,029.00",FREE HEALTHY SCHOOL MEALS,SCHOOLS CAPITATION,5902519403,5001000033
04.04.2022,EDUCATION,HEBER PRIMARY SCHOOL,"2,380.00",FREE HEALTHY SCHOOL MEALS,SCHOOLS CAPITATION,5902519407,5001000035
04.04.2022,EDUCATION,ILDERTON PRIMARY SCHOOL,"1,029.00",FREE HEALTHY SCHOOL MEALS,SCHOOLS CAPITATION,5902519412,5001000037
04.04.2022,EDUCATION,IVYDALE PRIMARY SCHOOL,"3,026.00",FREE HEALTHY SCHOOL MEALS,SCHOOLS CAPITATION,5902519416,5001000038
04.04.2022,EDUCATION,JOHN RUSKIN PRIMARY SCHOOL,"5,265.00",FREE HEALTHY SCHOOL MEALS,SCHOOLS CAPITATION,5902519420,5001000040
04.04.2022,EDUCATION,KEYWORTH PRIMARY SCHOOL,"2,885.00",FREE HEALTHY SCHOOL MEALS,SCHOOLS CAPITATION,5902519424,5001000041
04.04.2022,EDUCATION,KINTORE WAY CHILDRENS CENTRE,"14,019.00",FREE HEALTHY SCHOOL MEALS,SCHOOLS CAPITATION,5902519428,5001000047
04.04.2022,EDUCATION,MICHAEL FARADAY PRIMARY SCHOOL,"3,389.00",FREE HEALTHY SCHOOL MEALS,SCHOOLS CAPITATION,5902519432,5001000048
04.04.2022,EDUCATION,OLIVER GOLDSMITH PRIMARY SCHOOL,"2,320.00",FREE HEALTHY SCHOOL MEALS,SCHOOLS CAPITATION,5902519440,5001000051
04.04.2022,EDUCATION,PETER HILLS CE SCHOOL,"1,170.00",FREE HEALTHY SCHOOL MEALS,SCHOOLS CAPITATION,5902519444,5001000053
04.04.2022,EDUCATION,PILGRIM'S WAY PRIMARY SCHOOL,"1,331.00",FREE HEALTHY SCHOOL MEALS,SCHOOLS CAPITATION,5902519448,5001000054
04.04.2022,EDUCATION,RIVERSIDE PRIMARY SCHOOL,968,FREE HEALTHY SCHOOL MEALS,SCHOOLS CAPITATION,5902519452,5001000056
04.04.2022,EDUCATION,ROBERT BROWNING PRIMARY SCHOOL,"1,331.00",FREE HEALTHY SCHOOL MEALS,SCHOOLS CAPITATION,5902519456,5001000057
04.04.2022,EDUCATION,ROTHERHITHE PRIMARY SCHOOL,"2,259.00",FREE HEALTHY SCHOOL MEALS,SCHOOLS CAPITATION,5902519460,5001000058
04.04.2022,EDUCATION,RYE OAK PRIMARY SCHOOL,"4,357.00",FREE HEALTHY SCHOOL MEALS,SCHOOLS CAPITATION,5902519464,5001000059
04.04.2022,EDUCATION,SNOWSFIELDS PRIMARY SCHOOL,"1,150.00",FREE HEALTHY SCHOOL MEALS,SCHOOLS CAPITATION,5902519468,5001000061
04.04.2022,EDUCATION,SOUTHWARK PARK PRIMARY SCHOOL,"3,187.00",FREE HEALTHY SCHOOL MEALS,SCHOOLS CAPITATION,5902519472,5001000062
04.04.2022,EDUCATION,ST ANTHONYS RC SCHOOL,"2,542.00",FREE HEALTHY SCHOOL MEALS,SCHOOLS CAPITATION,5902519476,5001000064
04.04.2022,EDUCATION,ST FRANCESCA CABRINI PRIMARY SCHOOL,"1,311.00",FREE HEALTHY SCHOOL MEALS,SCHOOLS CAPITATION,5902519480,5001000065
04.04.2022,EDUCATION,ST FRANCIS'S RC PRIMARY SCHOOL,"1,331.00",FREE HEALTHY SCHOOL MEALS,SCHOOLS CAPITATION,5902519484,5001000067
04.04.2022,EDUCATION,ST GEORGES RC SCHOOL,746,FREE HEALTHY SCHOOL MEALS,SCHOOLS CAPITATION,5902519488,5001000068
04.04.2022,EDUCATION,ST JAMES CE PRIMARY SCHOOL,"5,749.00",FREE HEALTHY SCHOOL MEALS,SCHOOLS CAPITATION,5902519493,5001000070
04.04.2022,EDUCATION,ST JAMES THE GREAT RC SCHOOL,"2,098.00",FREE HEALTHY SCHOOL MEALS,SCHOOLS CAPITATION,5902519497,5001000071
04.04.2022,EDUCATION,ST JOHNS RC PRIMARY SCHOOL,"1,715.00",FREE HEALTHY SCHOOL MEALS,SCHOOLS CAPITATION,5902519505,5001000075
04.04.2022,EDUCATION,ST JOSEPHS CATHOLIC SCHOOL,"1,352.00",FREE HEALTHY SCHOOL MEALS,SCHOOLS CAPITATION,5902519509,5001000076
04.04.2022,EDUCATION,ST JOSEPHS RC PRIMARY SCHOOL,"2,300.00",FREE HEALTHY SCHOOL MEALS,SCHOOLS CAPITATION,5902519513,5001000077
04.04.2022,EDUCATION,ST JOSEPHS CATHOLIC PRIMARY SCHOOL,"1,815.00",FREE HEALTHY SCHOOL MEALS,SCHOOLS CAPITATION,5902519517,5001000078
04.04.2022,EDUCATION,ST PETERS CE SCHOOL,"1,331.00",FREE HEALTHY SCHOOL MEALS,SCHOOLS CAPITATION,5902519522,5001000083
04.04.2022,EDUCATION,CATHEDRAL SCHOOL OF ST SAVIOUR & MARY,908,FREE HEALTHY SCHOOL MEALS,SCHOOLS CAPITATION,5902519532,5001000088
04.04.2022,EDUCATION,TOWER BRIDGE PRIMARY SCHOOL,847,FREE HEALTHY SCHOOL MEALS,SCHOOLS CAPITATION,5902519539,5001000095
04.04.2022,EDUCATION,VICTORY SCHOOL,363,FREE HEALTHY SCHOOL MEALS,SCHOOLS CAPITATION,5902519545,5001000098
04.04.2022,EDUCATION,HATS GROUP LTD,"27,366.80",SCH TRANS � TRAVEL,CAB FARES,5902517854,1000042743
04.04.2022,EDUCATION,HATS GROUP LTD,"160,432.59",SCH TRANS � TRAVEL,CAB FARES,5902517867,1000042743
04.04.2022,ENVIRONMENT AND LEISURE,BARCHAM TREES PLC,"7,159.00",CAPITAL PS (LEISURE),CONSTRUCTION FEES,5902518282,11254891
04.04.2022,ENVIRONMENT AND LEISURE,SITE ENGINEERING SURVEYS LTD,300,CAPITAL PS (LEISURE),CONSTRUCTION FEES  - EXTERNAL,5902518938,1000004916
04.04.2022,ENVIRONMENT AND LEISURE,BREEZE LANDSCAPE ARCHITECTS LTD,800,CAPITAL PS (LEISURE),CONSTRUCTION FEES - ARCHITECT,5902518283,1000078053
04.04.2022,ENVIRONMENT AND LEISURE,CLIMATE VIEW,"4,750.00",CLIMATE CHANGE,CONSULTANTS SERVICES,6102021987,INTERNATIONAL PAYMENT
04.04.2022,ENVIRONMENT DIRECTORATE,TRANSPORT FOR LONDON,"6,347.50",COMMERCIAL VEH CTRL A/C,CONGESTION CHARGE,5902519717,1000023986
04.04.2022,ENVIRONMENT DIRECTORATE,DAWSON RENTALS SWEEPERS,"2,346.43",COMMERCIAL VEH CTRL A/C,HIRED VEHICLES,5902519720,1000068168
04.04.2022,ENVIRONMENT DIRECTORATE,DAWSON RENTALS SWEEPERS,"2,346.43",COMMERCIAL VEH CTRL A/C,HIRED VEHICLES,5902519726,1000068168
04.04.2022,ENVIRONMENT DIRECTORATE,DAWSON RENTALS SWEEPERS,"2,346.43",COMMERCIAL VEH CTRL A/C,HIRED VEHICLES,5902519733,1000068168
04.04.2022,ENVIRONMENT DIRECTORATE,DAWSON RENTALS SWEEPERS,"2,346.43",COMMERCIAL VEH CTRL A/C,HIRED VEHICLES,5902519742,1000068168
04.04.2022,ENVIRONMENT DIRECTORATE,DAWSON RENTALS SWEEPERS,"2,824.41",COMMERCIAL VEH CTRL A/C,HIRED VEHICLES,5902519688,1000068168
04.04.2022,ENVIRONMENT DIRECTORATE,DAWSON RENTALS SWEEPERS,"2,824.41",COMMERCIAL VEH CTRL A/C,HIRED VEHICLES,5902519697,1000068168
04.04.2022,ENVIRONMENT DIRECTORATE,DAWSON RENTALS SWEEPERS,"3,041.67",COMMERCIAL VEH CTRL A/C,HIRED VEHICLES,5902519709,1000068168
04.04.2022,ENVIRONMENT DIRECTORATE,DAWSON RENTALS SWEEPERS,"3,041.67",COMMERCIAL VEH CTRL A/C,HIRED VEHICLES,5902519718,1000068168
04.04.2022,ENVIRONMENT DIRECTORATE,PACE ACCIDENT REPAIRS CENTRE LTD,380,COMMERCIAL VEH CTRL A/C,HIRED VEHICLES,5902519704,1000069899
04.04.2022,ENVIRONMENT DIRECTORATE,PACE ACCIDENT REPAIRS CENTRE LTD,380,COMMERCIAL VEH CTRL A/C,HIRED VEHICLES,5902519711,1000069899
04.04.2022,ENVIRONMENT DIRECTORATE,E. H. ROBERTS - PENET GROUP LTD,299,COMMERCIAL VEH CTRL A/C,HIRED VEHICLES,5902519715,1000082787
04.04.2022,ENVIRONMENT DIRECTORATE,CIVICA UK LTD,"78,107.00",EH & TS MANAGER,SOFTWARE,5902519175,1730625
04.04.2022,ENVIRONMENT DIRECTORATE,LONDON TOOLS LIMITED,975,FLEET SERVICES MANAGEMENT,MATERIALS,5902519189,1000003017
04.04.2022,ENVIRONMENT DIRECTORATE,TRAVIS PERKINS TRADING COMPANY LTD,653.4,PEST CONTROL,MATERIALS,5902519747,1514319
04.04.2022,ENVIRONMENT DIRECTORATE,LONDON TOOLS LIMITED,292.05,PUBLIC LIGHTING,"CLOTHING, UNIFORMS & LAUNDRY",5902519202,1000003017
04.04.2022,ENVIRONMENT DIRECTORATE,LONDON TOOLS LIMITED,"5,311.10",PUBLIC LIGHTING,MATERIALS,5902519212,1000003017
04.04.2022,EXTERNAL AFFAIRS,BETA DISTRIBUTION (SOUTH) LTD,"9,667.69",SOUTHWARK LIFE,DELIVERY CHARGES,5902518614,1000044844
04.04.2022,F & C S EXCLUDING CORPORATE BUDGETS,DSI BILLING SERVICES LTD,"57,964.53",ADMINISTRATIVE SUPPORT,POSTAGES,5902518426,1000058640
04.04.2022,F & C S EXCLUDING CORPORATE BUDGETS,NEC SOFTWARE SOLUTIONS UK LTD,550,ADMINISTRATIVE SUPPORT,TRAINING,5902519205,1000087043
04.04.2022,F & C S EXCLUDING CORPORATE BUDGETS,BDO LLP,"2,083.33",RISK ADMIN,PROFESSIONAL FEES,5902518269,1000057898
04.04.2022,F & C S EXCLUDING CORPORATE BUDGETS,REDACTED PERSONAL DATA,500,SESS,OTHER PAYMENTS FOR CLIENTS,REDACTED,REDACTED
04.04.2022,F & C S EXCLUDING CORPORATE BUDGETS,REDACTED PERSONAL DATA,500,SESS,OTHER PAYMENTS FOR CLIENTS,REDACTED,REDACTED
04.04.2022,F & C S EXCLUDING CORPORATE BUDGETS,REDACTED PERSONAL DATA,500,SESS,OTHER PAYMENTS FOR CLIENTS,REDACTED,REDACTED
04.04.2022,F & C S EXCLUDING CORPORATE BUDGETS,REDACTED PERSONAL DATA,500,SESS,OTHER PAYMENTS FOR CLIENTS,REDACTED,REDACTED
04.04.2022,F & C S EXCLUDING CORPORATE BUDGETS,REDACTED PERSONAL DATA,500,SESS,OTHER PAYMENTS FOR CLIENTS,REDACTED,REDACTED
04.04.2022,F & C S EXCLUDING CORPORATE BUDGETS,REDACTED PERSONAL DATA,500,SESS,OTHER PAYMENTS FOR CLIENTS,REDACTED,REDACTED
04.04.2022,F & C S EXCLUDING CORPORATE BUDGETS,REDACTED PERSONAL DATA,500,SESS,OTHER PAYMENTS FOR CLIENTS,REDACTED,REDACTED
04.04.2022,F & C S EXCLUDING CORPORATE BUDGETS,REDACTED PERSONAL DATA,500,SESS,OTHER PAYMENTS FOR CLIENTS,REDACTED,REDACTED
04.04.2022,F & C S EXCLUDING CORPORATE BUDGETS,REDACTED PERSONAL DATA,500,SESS,OTHER PAYMENTS FOR CLIENTS,REDACTED,REDACTED
04.04.2022,F & C S EXCLUDING CORPORATE BUDGETS,REDACTED PERSONAL DATA,500,SESS,OTHER PAYMENTS FOR CLIENTS,REDACTED,REDACTED
04.04.2022,F & C S EXCLUDING CORPORATE BUDGETS,REDACTED PERSONAL DATA,500,SESS,OTHER PAYMENTS FOR CLIENTS,REDACTED,REDACTED
04.04.2022,F & C S EXCLUDING CORPORATE BUDGETS,REDACTED PERSONAL DATA,500,SESS,OTHER PAYMENTS FOR CLIENTS,REDACTED,REDACTED
04.04.2022,F & C S EXCLUDING CORPORATE BUDGETS,REDACTED PERSONAL DATA,500,SESS,OTHER PAYMENTS FOR CLIENTS,REDACTED,REDACTED
04.04.2022,F & C S EXCLUDING CORPORATE BUDGETS,REDACTED PERSONAL DATA,500,SESS,OTHER PAYMENTS FOR CLIENTS,REDACTED,REDACTED
04.04.2022,F & C S EXCLUDING CORPORATE BUDGETS,REDACTED PERSONAL DATA,500,SESS,OTHER PAYMENTS FOR CLIENTS,REDACTED,REDACTED
04.04.2022,F & C S EXCLUDING CORPORATE BUDGETS,REDACTED PERSONAL DATA,500,SESS,OTHER PAYMENTS FOR CLIENTS,REDACTED,REDACTED
04.04.2022,F & C S EXCLUDING CORPORATE BUDGETS,REDACTED PERSONAL DATA,500,SESS,OTHER PAYMENTS FOR CLIENTS,REDACTED,REDACTED
04.04.2022,F & C S EXCLUDING CORPORATE BUDGETS,REDACTED PERSONAL DATA,500,SESS,OTHER PAYMENTS FOR CLIENTS,REDACTED,REDACTED
04.04.2022,F & C S EXCLUDING CORPORATE BUDGETS,REDACTED PERSONAL DATA,500,SESS,OTHER PAYMENTS FOR CLIENTS,REDACTED,REDACTED
04.04.2022,F & C S EXCLUDING CORPORATE BUDGETS,REDACTED PERSONAL DATA,500,SESS,OTHER PAYMENTS FOR CLIENTS,REDACTED,REDACTED
04.04.2022,F & C S EXCLUDING CORPORATE BUDGETS,REDACTED PERSONAL DATA,500,SESS,OTHER PAYMENTS FOR CLIENTS,REDACTED,REDACTED
04.04.2022,F & C S EXCLUDING CORPORATE BUDGETS,REDACTED PERSONAL DATA,500,SESS,OTHER PAYMENTS FOR CLIENTS,REDACTED,REDACTED
04.04.2022,HOUSING,PROPERTY FACILITIES GROUP PLC,"63,485.76",PROPERTY FACILITIES GROUP,I-WORLD CONTRACTORS HOLDING ACCOUNT,2103411330,3000001420
04.04.2022,HOUSING GENERAL FUND,EQUANS REGENERATION LTD,"24,647.78",CAPITAL PS (EDUCATION),CONSTRUCTION,2103410434,3000002035
04.04.2022,HOUSING GENERAL FUND,REALLY LOCAL GROUP (OLD BLUE) LIMITED,"2,772.00",CAPITAL PS (REGEN),CONSTRUCTION FEES,5902519779,1000087521
04.04.2022,HOUSING GENERAL FUND,REALLY LOCAL GROUP (OLD BLUE) LIMITED,"23,891.40",CAPITAL PS (REGEN),CONSTRUCTION FEES,5902519779,1000087521
04.04.2022,HOUSING HRA,SOUTH EAST BUILDING CONTRACTORS LTD,"10,467.54",CAPITAL PS (HOUSING GF),CAPITAL GRANTS,5902518314,1000049893
04.04.2022,HOUSING HRA,PINNACLE BUILDING SERVICES,"8,961.00",CAPITAL PS (HOUSING GF),CAPITAL GRANTS,5902517925,1000082308
04.04.2022,HOUSING HRA,CALFORD SEADEN LLP,"3,975.00",CAPITAL PS (HRA),CONSTRUCTION FEES  - EXTERNAL,5902518311,1061592
04.04.2022,HOUSING HRA,CALFORD SEADEN LLP,"61,519.50",CAPITAL PS (HRA),CONSTRUCTION FEES  - EXTERNAL,5902519744,1061592
04.04.2022,HOUSING HRA,CALFORD SEADEN LLP,"-18,620.00",CAPITAL PS (HRA),CONSTRUCTION FEES - EMPLOYERS AGENT,5902519191,1061592
04.04.2022,HOUSING HRA,CALFORD SEADEN LLP,"1,176.00",CAPITAL PS (HRA),CONSTRUCTION FEES - EMPLOYERS AGENT,5902518315,1061592
04.04.2022,HOUSING HRA,CALFORD SEADEN LLP,"18,188.76",CAPITAL PS (HRA),CONSTRUCTION FEES - EMPLOYERS AGENT,5902519266,1061592
04.04.2022,HOUSING HRA,STANNAH LIFT SERVICES LTD,"2,510.00",CAPITAL PS (HRA),UTILITIES INSTALLATION,5902517879,1063595
04.04.2022,HOUSING HRA,MOTT MACDONALD LTD,"4,975.00",CAPITAL PS (HRA),CONSTRUCTION FEES,5902519774,1000067305
04.04.2022,HOUSING HRA,CARTER JONAS LLP,"2,900.00",CAPITAL PS (HRA),LAND & BUILDINGS ACQUISITION FEES,5902519777,1000073124
04.04.2022,LEISURE DIRECTORATE,CASTLE WATER LTD,"1,003.42",DULWICH AREA TEAM,WATER,5902519752,1000078867
04.04.2022,LEISURE DIRECTORATE,SPORTS AND LEISURE MANAGEMENT LTD,"2,196.00",FACILITIES MAINTENANCE,BUILDING R&M,5902518276,1000077862
04.04.2022,LEISURE DIRECTORATE,RH WROUGHT IRON,330,SOUTHWARK AREA TEAM,OTHER R&M,2103410450,3000000680
04.04.2022,LEISURE DIRECTORATE,RH WROUGHT IRON,460,SOUTHWARK AREA TEAM,OTHER R&M,2103410435,3000000680
04.04.2022,NEW BUILD,SHARPE PRITCHARD LLP,700,DEVELOPMENT DELIVERY,PROFESSIONAL FEES,5902519723,1790085
04.04.2022,REGENERATION,STANBURY BUILDING SERVICES LTD,"9,850.00",14-20 SHAND STREET,BUILDING R&M,2103411692,3000001967
04.04.2022,RESIDENT SERVICES,C BREWER & SONS LTD,-276.6,TA HOSTELS,MATERIALS,5902503473,1056028
04.04.2022,RESIDENT SERVICES HGF,LONDON CLAPHAM SOUTH LTD,"79,300.00",COVID-19 SUPPORT,EXTERNAL AGENCIES AND BODIES,5902518946,1000087760
04.04.2022,RESIDENT SERVICES HGF,CLARION HOUSING ASSOCIATION LTD,"16,667.00",HOUSING OPTIONS,EXTERNAL AGENCIES AND BODIES,5902519269,1000088255
04.04.2022,RESIDENT SERVICES HGF,J & M OASIS LTD,-767,NIGHTLY TA (NSC),EXTERNAL AGENCIES AND BODIES,5902519179,1000072169
04.04.2022,RESIDENT SERVICES HGF,J & M OASIS LTD,"5,850.00",NIGHTLY TA (NSC),EXTERNAL AGENCIES AND BODIES,5902519177,1000072169
04.04.2022,SBS OPERATIONS,C A BALDWIN & CO LTD,960,CAMBERWELL DD,MATERIALS,5902519572,1000699
04.04.2022,SBS OPERATIONS,TRAVIS PERKINS TRADING COMPANY LTD,277.04,CAMBERWELL DD,MATERIALS,5902519644,1514319
04.04.2022,SBS OPERATIONS,TRAVIS PERKINS TRADING COMPANY LTD,294.51,ELECTRICIANS - DAY TO DAY,MATERIALS,5902519703,1514319
04.04.2022,SBS OPERATIONS,TRAVIS PERKINS TRADING COMPANY LTD,414.75,ELECTRICIANS - DAY TO DAY,MATERIALS,5902519745,1514319
04.04.2022,SBS OPERATIONS,TRAVIS PERKINS TRADING COMPANY LTD,556.82,ELECTRICIANS - SUPPORTED HOUSING,MATERIALS,5902519731,1514319
04.04.2022,SBS OPERATIONS,TRAVIS PERKINS TRADING COMPANY LTD,490.35,NUNHEAD DD,MATERIALS,5902519740,1514319
04.04.2022,SBS OPERATIONS,AKW MEDI-CARE LTD,327.93,SBS AIDS AND ADAPTATIONS,MATERIALS,5902519646,1000047103
04.04.2022,SBS OPERATIONS,LONDON TOOLS LIMITED,590,SBS IN-HOUR EMERGENCIES,MATERIALS,5902519173,1000003017
04.04.2022,SBS OPERATIONS,LONDON TOOLS LIMITED,590,SBS IN-HOUR EMERGENCIES,MATERIALS,5902519176,1000003017
04.04.2022,SBS OPERATIONS,LONDON TOOLS LIMITED,"1,610.00",SBS IN-HOUR EMERGENCIES,MATERIALS,5902519221,1000003017
04.04.2022,SBS OPERATIONS,HOWDENS JOINERY CO,390.06,SUPPORTED HOUSING - REPAIRS,MATERIALS,5902519567,1000027491
04.04.2022,SBS OPERATIONS,TRAVIS PERKINS TRADING COMPANY LTD,398.2,WALWORTH DD,MATERIALS,5902519610,1514319
04.04.2022,SBS SUPPORT,TOTALMOBILE LTD,"8,000.00",ICT & COMMUNICATIONS,SOFTWARE,5902519103,1000085502
04.04.2022,SBS SUPPORT,C A BALDWIN & CO LTD,960,R & M OVERHEADS,MATERIALS,5902519619,1000699
04.04.2022,SBS SUPPORT,TRAVIS PERKINS TRADING COMPANY LTD,317.98,R & M OVERHEADS,MATERIALS,5902519699,1514319
04.04.2022,SBS SUPPORT,LONDON TOOLS LIMITED,915,R & M OVERHEADS,EQUIPMENT PURCHASE & REPAIR,5902519200,1000003017
04.04.2022,SBS SUPPORT,LONDON TOOLS LIMITED,390,R & M OVERHEADS,MATERIALS,5902519203,1000003017
04.04.2022,SBS SUPPORT,AGBW - QS LIMITED,"1,425.00",REORGANISATION COSTS,PROFESSIONAL FEES,5902517981,1000087604
04.04.2022,SBS SUPPORT,ARMINA LTD,"104,457.46",SBS - HOLDING ACCOUNT,OTHER CONTRACTORS,2103411689,3000002121
04.04.2022,SOUTHWARK BUILDING SERVICES,LONDON TOOLS LIMITED,"1,180.00",STORES/LOGISTICS,CREDITORS -GR/IR CLEARING ACCOUNT,5902519192,1000003017
04.04.2022,SOUTHWARK BUILDING SERVICES,LONDON TOOLS LIMITED,"1,650.00",STORES/LOGISTICS,CREDITORS -GR/IR CLEARING ACCOUNT,5902519196,1000003017
04.04.2022,SOUTHWARK BUILDING SERVICES,LONDON TOOLS LIMITED,"2,394.00",STORES/LOGISTICS,CREDITORS -GR/IR CLEARING ACCOUNT,5902519194,1000003017
04.04.2022,SOUTHWARK BUILDING SERVICES,LONDON TOOLS LIMITED,"2,473.80",STORES/LOGISTICS,CREDITORS -GR/IR CLEARING ACCOUNT,5902519186,1000003017
04.04.2022,SOUTHWARK BUILDING SERVICES,LONDON TOOLS LIMITED,"2,835.00",STORES/LOGISTICS,CREDITORS -GR/IR CLEARING ACCOUNT,5902519170,1000003017
04.04.2022,SOUTHWARK BUILDING SERVICES,LONDON TOOLS LIMITED,"3,105.00",STORES/LOGISTICS,CREDITORS -GR/IR CLEARING ACCOUNT,5902519170,1000003017
04.04.2022,SOUTHWARK BUILDING SERVICES,LONDON TOOLS LIMITED,"5,760.00",STORES/LOGISTICS,CREDITORS -GR/IR CLEARING ACCOUNT,5902519161,1000003017
04.04.2022,SOUTHWARK BUILDING SERVICES,LONDON TOOLS LIMITED,"6,120.00",STORES/LOGISTICS,CREDITORS -GR/IR CLEARING ACCOUNT,5902519206,1000003017
04.04.2022,SOUTHWARK BUILDING SERVICES,LONDON TOOLS LIMITED,"8,400.00",STORES/LOGISTICS,CREDITORS -GR/IR CLEARING ACCOUNT,5902519150,1000003017
04.04.2022,SOUTHWARK BUILDING SERVICES,AKW MEDI-CARE LTD,346,STORES/LOGISTICS,CREDITORS -GR/IR CLEARING ACCOUNT,5902519589,1000047103
05.04.2022,ADULT SOCIAL CARE,BEDE HOUSE ASSOCIATION,"10,000.00",DIR OF ASC,EXTERNAL AGENCIES AND BODIES,5902519866,1553877
05.04.2022,ADULT SOCIAL CARE,SOUTH EAST LONDON BAPTIST HOME,579.83,DIR OF ASC,EXTERNAL AGENCIES AND BODIES,5902519984,1670766
05.04.2022,ADULT SOCIAL CARE,LONDON CARE LTD,"13,191.15",DIR OF ASC,EXTERNAL AGENCIES AND BODIES,5902519948,1000003398
05.04.2022,ADULT SOCIAL CARE,LONDON CARE LTD,"24,000.00",DIR OF ASC,EXTERNAL AGENCIES AND BODIES,5902520009,1000003398
05.04.2022,ADULT SOCIAL CARE,PLUS SERVICES,"10,000.00",DIR OF ASC,EXTERNAL AGENCIES AND BODIES,5902520014,1000021241
05.04.2022,ADULT SOCIAL CARE,SOUTHWARK PENSIONERS CENTRE,"10,000.00",DIR OF ASC,EXTERNAL AGENCIES AND BODIES,5902519884,1000027831
05.04.2022,ADULT SOCIAL CARE,LINK AGE SOUTHWARK,"10,000.00",DIR OF ASC,EXTERNAL AGENCIES AND BODIES,5902519875,1000034150
05.04.2022,ADULT SOCIAL CARE,SOUTHWARK IRISH PENSIONERS PROJECT,"20,000.00",DIR OF ASC,EXTERNAL AGENCIES AND BODIES,5902519879,1000082558
05.04.2022,ADULT SOCIAL CARE,SAGECARE LTD,"1,807.12",DISCHARGE TO ACCESS,HOMECARE - C&V,2103411898,1000080924
05.04.2022,ADULT SOCIAL CARE,REDACTED PERSONAL DATA,277.6,DISCHARGE TO ACCESS,SUPPORTED LIVING,REDACTED,REDACTED
05.04.2022,ADULT SOCIAL CARE,BEDE HOUSE ASSOCIATION,300,LD LTS 18-64,DAYCARE,2103411917,1553877
05.04.2022,ADULT SOCIAL CARE,BEDE HOUSE ASSOCIATION,300,LD LTS 18-64,DAYCARE,2103411918,1553877
05.04.2022,ADULT SOCIAL CARE,BEDE HOUSE ASSOCIATION,300,LD LTS 18-64,DAYCARE,2103411936,1553877
05.04.2022,ADULT SOCIAL CARE,BEDE HOUSE ASSOCIATION,300,LD LTS 18-64,DAYCARE,2103411945,1553877
05.04.2022,ADULT SOCIAL CARE,BEDE HOUSE ASSOCIATION,384,LD LTS 18-64,DAYCARE,2103411928,1553877
05.04.2022,ADULT SOCIAL CARE,BEDE HOUSE ASSOCIATION,460,LD LTS 18-64,DAYCARE,2103411935,1553877
05.04.2022,ADULT SOCIAL CARE,BEDE HOUSE ASSOCIATION,600,LD LTS 18-64,DAYCARE,2103411915,1553877
05.04.2022,ADULT SOCIAL CARE,BEDE HOUSE ASSOCIATION,600,LD LTS 18-64,DAYCARE,2103411916,1553877
05.04.2022,ADULT SOCIAL CARE,BEDE HOUSE ASSOCIATION,600,LD LTS 18-64,DAYCARE,2103411922,1553877
05.04.2022,ADULT SOCIAL CARE,BEDE HOUSE ASSOCIATION,600,LD LTS 18-64,DAYCARE,2103411923,1553877
05.04.2022,ADULT SOCIAL CARE,BEDE HOUSE ASSOCIATION,600,LD LTS 18-64,DAYCARE,2103411931,1553877
05.04.2022,ADULT SOCIAL CARE,BEDE HOUSE ASSOCIATION,600,LD LTS 18-64,DAYCARE,2103411932,1553877
05.04.2022,ADULT SOCIAL CARE,BEDE HOUSE ASSOCIATION,600,LD LTS 18-64,DAYCARE,2103411934,1553877
05.04.2022,ADULT SOCIAL CARE,BEDE HOUSE ASSOCIATION,600,LD LTS 18-64,DAYCARE,2103411946,1553877
05.04.2022,ADULT SOCIAL CARE,BEDE HOUSE ASSOCIATION,600,LD LTS 18-64,DAYCARE,2103411948,1553877
05.04.2022,ADULT SOCIAL CARE,BEDE HOUSE ASSOCIATION,600,LD LTS 18-64,DAYCARE,2103411950,1553877
05.04.2022,ADULT SOCIAL CARE,BEDE HOUSE ASSOCIATION,676,LD LTS 18-64,DAYCARE,2103411933,1553877
05.04.2022,ADULT SOCIAL CARE,BEDE HOUSE ASSOCIATION,738.4,LD LTS 18-64,DAYCARE,2103411930,1553877
05.04.2022,ADULT SOCIAL CARE,BEDE HOUSE ASSOCIATION,792,LD LTS 18-64,DAYCARE,2103411921,1553877
05.04.2022,ADULT SOCIAL CARE,BEDE HOUSE ASSOCIATION,900,LD LTS 18-64,DAYCARE,2103411938,1553877
05.04.2022,ADULT SOCIAL CARE,BEDE HOUSE ASSOCIATION,900,LD LTS 18-64,DAYCARE,2103411939,1553877
05.04.2022,ADULT SOCIAL CARE,BEDE HOUSE ASSOCIATION,"1,200.00",LD LTS 18-64,DAYCARE,2103411913,1553877
05.04.2022,ADULT SOCIAL CARE,BEDE HOUSE ASSOCIATION,"1,200.00",LD LTS 18-64,DAYCARE,2103411914,1553877
05.04.2022,ADULT SOCIAL CARE,BEDE HOUSE ASSOCIATION,"1,200.00",LD LTS 18-64,DAYCARE,2103411925,1553877
05.04.2022,ADULT SOCIAL CARE,BEDE HOUSE ASSOCIATION,"1,200.00",LD LTS 18-64,DAYCARE,2103411937,1553877
05.04.2022,ADULT SOCIAL CARE,BEDE HOUSE ASSOCIATION,"1,200.00",LD LTS 18-64,DAYCARE,2103411942,1553877
05.04.2022,ADULT SOCIAL CARE,BEDE HOUSE ASSOCIATION,"1,200.00",LD LTS 18-64,DAYCARE,2103411947,1553877
05.04.2022,ADULT SOCIAL CARE,BEDE HOUSE ASSOCIATION,"1,200.00",LD LTS 18-64,DAYCARE,2103411951,1553877
05.04.2022,ADULT SOCIAL CARE,BEDE HOUSE ASSOCIATION,"1,260.00",LD LTS 18-64,DAYCARE,2103411941,1553877
05.04.2022,ADULT SOCIAL CARE,BEDE HOUSE ASSOCIATION,"1,440.00",LD LTS 18-64,DAYCARE,2103411949,1553877
05.04.2022,ADULT SOCIAL CARE,BEDE HOUSE ASSOCIATION,"1,680.00",LD LTS 18-64,DAYCARE,2103411926,1553877
05.04.2022,ADULT SOCIAL CARE,BEDE HOUSE ASSOCIATION,"1,730.00",LD LTS 18-64,DAYCARE,2103411919,1553877
05.04.2022,ADULT SOCIAL CARE,BEDE HOUSE ASSOCIATION,"1,800.00",LD LTS 18-64,DAYCARE,2103411924,1553877
05.04.2022,ADULT SOCIAL CARE,BEDE HOUSE ASSOCIATION,"3,000.00",LD LTS 18-64,DAYCARE,2103411920,1553877
05.04.2022,ADULT SOCIAL CARE,REDACTED PERSONAL DATA,624.6,LD LTS 18-64,SUPPORTED LIVING,REDACTED,REDACTED
05.04.2022,ADULT SOCIAL CARE,REDACTED PERSONAL DATA,832.8,LD LTS 18-64,SUPPORTED LIVING,REDACTED,REDACTED
05.04.2022,ADULT SOCIAL CARE,BEDE HOUSE ASSOCIATION,460,LD LTS 65+,DAYCARE,2103411940,1553877
05.04.2022,ADULT SOCIAL CARE,BEDE HOUSE ASSOCIATION,"1,678.40",LD LTS 65+,DAYCARE,2103411944,1553877
05.04.2022,ADULT SOCIAL CARE,SAGECARE LTD,447.17,MEM LTS 65+,HOMECARE - C&V,2103411895,1000080924
05.04.2022,ADULT SOCIAL CARE,BEDE HOUSE ASSOCIATION,320,MH LTS 18-64,DAYCARE,2103411929,1553877
05.04.2022,ADULT SOCIAL CARE,REDACTED PERSONAL DATA,277.6,MH LTS 18-64,SUPPORTED LIVING,REDACTED,REDACTED
05.04.2022,ADULT SOCIAL CARE,REDACTED PERSONAL DATA,277.6,MH LTS 18-64,SUPPORTED LIVING,REDACTED,REDACTED
05.04.2022,ADULT SOCIAL CARE,REDACTED PERSONAL DATA,277.6,MH LTS 18-64,SUPPORTED LIVING,REDACTED,REDACTED
05.04.2022,ADULT SOCIAL CARE,REDACTED PERSONAL DATA,277.6,MH LTS 18-64,SUPPORTED LIVING,REDACTED,REDACTED
05.04.2022,ADULT SOCIAL CARE,REDACTED PERSONAL DATA,277.6,MH LTS 18-64,SUPPORTED LIVING,REDACTED,REDACTED
05.04.2022,ADULT SOCIAL CARE,REDACTED PERSONAL DATA,277.6,MH LTS 18-64,SUPPORTED LIVING,REDACTED,REDACTED
05.04.2022,ADULT SOCIAL CARE,REDACTED PERSONAL DATA,277.6,MH LTS 18-64,SUPPORTED LIVING,REDACTED,REDACTED
05.04.2022,ADULT SOCIAL CARE,REDACTED PERSONAL DATA,277.6,MH LTS 18-64,SUPPORTED LIVING,REDACTED,REDACTED
05.04.2022,ADULT SOCIAL CARE,REDACTED PERSONAL DATA,282.75,MH LTS 18-64,SUPPORTED LIVING,REDACTED,REDACTED
05.04.2022,ADULT SOCIAL CARE,REDACTED PERSONAL DATA,312.3,MH LTS 18-64,SUPPORTED LIVING,REDACTED,REDACTED
05.04.2022,ADULT SOCIAL CARE,REDACTED PERSONAL DATA,312.3,MH LTS 18-64,SUPPORTED LIVING,REDACTED,REDACTED
05.04.2022,ADULT SOCIAL CARE,REDACTED PERSONAL DATA,347,MH LTS 18-64,SUPPORTED LIVING,REDACTED,REDACTED
05.04.2022,ADULT SOCIAL CARE,REDACTED PERSONAL DATA,347,MH LTS 18-64,SUPPORTED LIVING,REDACTED,REDACTED
05.04.2022,ADULT SOCIAL CARE,REDACTED PERSONAL DATA,347,MH LTS 18-64,SUPPORTED LIVING,REDACTED,REDACTED
05.04.2022,ADULT SOCIAL CARE,REDACTED PERSONAL DATA,347,MH LTS 18-64,SUPPORTED LIVING,REDACTED,REDACTED
05.04.2022,ADULT SOCIAL CARE,REDACTED PERSONAL DATA,347,MH LTS 18-64,SUPPORTED LIVING,REDACTED,REDACTED
05.04.2022,ADULT SOCIAL CARE,REDACTED PERSONAL DATA,416.4,MH LTS 18-64,SUPPORTED LIVING,REDACTED,REDACTED
05.04.2022,ADULT SOCIAL CARE,REDACTED PERSONAL DATA,416.4,MH LTS 18-64,SUPPORTED LIVING,REDACTED,REDACTED
05.04.2022,ADULT SOCIAL CARE,REDACTED PERSONAL DATA,416.4,MH LTS 18-64,SUPPORTED LIVING,REDACTED,REDACTED
05.04.2022,ADULT SOCIAL CARE,REDACTED PERSONAL DATA,416.4,MH LTS 18-64,SUPPORTED LIVING,REDACTED,REDACTED
05.04.2022,ADULT SOCIAL CARE,REDACTED PERSONAL DATA,416.4,MH LTS 18-64,SUPPORTED LIVING,REDACTED,REDACTED
05.04.2022,ADULT SOCIAL CARE,REDACTED PERSONAL DATA,416.4,MH LTS 18-64,SUPPORTED LIVING,REDACTED,REDACTED
05.04.2022,ADULT SOCIAL CARE,REDACTED PERSONAL DATA,451.1,MH LTS 18-64,SUPPORTED LIVING,REDACTED,REDACTED
05.04.2022,ADULT SOCIAL CARE,REDACTED PERSONAL DATA,485.8,MH LTS 18-64,SUPPORTED LIVING,REDACTED,REDACTED
05.04.2022,ADULT SOCIAL CARE,REDACTED PERSONAL DATA,485.8,MH LTS 18-64,SUPPORTED LIVING,REDACTED,REDACTED
05.04.2022,ADULT SOCIAL CARE,REDACTED PERSONAL DATA,485.8,MH LTS 18-64,SUPPORTED LIVING,REDACTED,REDACTED
05.04.2022,ADULT SOCIAL CARE,REDACTED PERSONAL DATA,485.8,MH LTS 18-64,SUPPORTED LIVING,REDACTED,REDACTED
05.04.2022,ADULT SOCIAL CARE,REDACTED PERSONAL DATA,485.8,MH LTS 18-64,SUPPORTED LIVING,REDACTED,REDACTED
05.04.2022,ADULT SOCIAL CARE,REDACTED PERSONAL DATA,520.5,MH LTS 18-64,SUPPORTED LIVING,REDACTED,REDACTED
05.04.2022,ADULT SOCIAL CARE,REDACTED PERSONAL DATA,520.5,MH LTS 18-64,SUPPORTED LIVING,REDACTED,REDACTED
05.04.2022,ADULT SOCIAL CARE,REDACTED PERSONAL DATA,555.2,MH LTS 18-64,SUPPORTED LIVING,REDACTED,REDACTED
05.04.2022,ADULT SOCIAL CARE,REDACTED PERSONAL DATA,555.2,MH LTS 18-64,SUPPORTED LIVING,REDACTED,REDACTED
05.04.2022,ADULT SOCIAL CARE,REDACTED PERSONAL DATA,555.2,MH LTS 18-64,SUPPORTED LIVING,REDACTED,REDACTED
05.04.2022,ADULT SOCIAL CARE,REDACTED PERSONAL DATA,607.25,MH LTS 18-64,SUPPORTED LIVING,REDACTED,REDACTED
05.04.2022,ADULT SOCIAL CARE,REDACTED PERSONAL DATA,624.6,MH LTS 18-64,SUPPORTED LIVING,REDACTED,REDACTED
05.04.2022,ADULT SOCIAL CARE,REDACTED PERSONAL DATA,624.6,MH LTS 18-64,SUPPORTED LIVING,REDACTED,REDACTED
05.04.2022,ADULT SOCIAL CARE,REDACTED PERSONAL DATA,624.6,MH LTS 18-64,SUPPORTED LIVING,REDACTED,REDACTED
05.04.2022,ADULT SOCIAL CARE,REDACTED PERSONAL DATA,728.7,MH LTS 18-64,SUPPORTED LIVING,REDACTED,REDACTED
05.04.2022,ADULT SOCIAL CARE,REDACTED PERSONAL DATA,971.6,MH LTS 18-64,SUPPORTED LIVING,REDACTED,REDACTED
05.04.2022,ADULT SOCIAL CARE,REDACTED PERSONAL DATA,"1,170.00",MH LTS 18-64,SUPPORTED LIVING,REDACTED,REDACTED
05.04.2022,ADULT SOCIAL CARE,REDACTED PERSONAL DATA,277.6,MH LTS 65+,SUPPORTED LIVING,REDACTED,REDACTED
05.04.2022,ADULT SOCIAL CARE,REDACTED PERSONAL DATA,277.6,MH LTS 65+,SUPPORTED LIVING,REDACTED,REDACTED
05.04.2022,ADULT SOCIAL CARE,REDACTED PERSONAL DATA,277.6,MH LTS 65+,SUPPORTED LIVING,REDACTED,REDACTED
05.04.2022,ADULT SOCIAL CARE,REDACTED PERSONAL DATA,312.3,MH LTS 65+,SUPPORTED LIVING,REDACTED,REDACTED
05.04.2022,ADULT SOCIAL CARE,REDACTED PERSONAL DATA,364.35,MH LTS 65+,SUPPORTED LIVING,REDACTED,REDACTED
05.04.2022,ADULT SOCIAL CARE,REDACTED PERSONAL DATA,399.05,MH LTS 65+,SUPPORTED LIVING,REDACTED,REDACTED
05.04.2022,ADULT SOCIAL CARE,REDACTED PERSONAL DATA,416.4,MH LTS 65+,SUPPORTED LIVING,REDACTED,REDACTED
05.04.2022,ADULT SOCIAL CARE,REDACTED PERSONAL DATA,694,MH LTS 65+,SUPPORTED LIVING,REDACTED,REDACTED
05.04.2022,ADULT SOCIAL CARE,REDACTED PERSONAL DATA,711.35,MH LTS 65+,SUPPORTED LIVING,REDACTED,REDACTED
05.04.2022,ADULT SOCIAL CARE,REDACTED PERSONAL DATA,763.4,MH LTS 65+,SUPPORTED LIVING,REDACTED,REDACTED
05.04.2022,ADULT SOCIAL CARE,REDACTED PERSONAL DATA,832.8,MH LTS 65+,SUPPORTED LIVING,REDACTED,REDACTED
05.04.2022,ADULT SOCIAL CARE,REDACTED PERSONAL DATA,"1,266.55",MH LTS 65+,SUPPORTED LIVING,REDACTED,REDACTED
05.04.2022,ADULT SOCIAL CARE,SAGECARE LTD,827.65,PHY LTS 18-64,HOMECARE - C&V,2103411903,1000080924
05.04.2022,ADULT SOCIAL CARE,SAGECARE LTD,903.56,PHY LTS 18-64,HOMECARE - C&V,2103411893,1000080924
05.04.2022,ADULT SOCIAL CARE,SAGECARE LTD,"1,845.84",PHY LTS 18-64,HOMECARE - C&V,2103411892,1000080924
05.04.2022,ADULT SOCIAL CARE,REDACTED PERSONAL DATA,659.3,PHY LTS 18-64,SUPPORTED LIVING,REDACTED,REDACTED
05.04.2022,ADULT SOCIAL CARE,PROFAD CARE AGENCY,"1,312.20",PHY LTS 65+,HOMECARE - SPOT,2103411735,1000079032
05.04.2022,ADULT SOCIAL CARE,THAMES HOMECARE SERVICE LTD,271.44,PHY LTS 65+,HOMECARE - SPOT,2103411731,1000079295
05.04.2022,ADULT SOCIAL CARE,THAMES HOMECARE SERVICE LTD,271.44,PHY LTS 65+,HOMECARE - SPOT,2103411733,1000079295
05.04.2022,ADULT SOCIAL CARE,THAMES HOMECARE SERVICE LTD,271.44,PHY LTS 65+,HOMECARE - SPOT,2103411734,1000079295
05.04.2022,ADULT SOCIAL CARE,THAMES HOMECARE SERVICE LTD,673.92,PHY LTS 65+,HOMECARE - SPOT,2103411732,1000079295
05.04.2022,ADULT SOCIAL CARE,SAGECARE LTD,258.16,PHY LTS 65+,HOMECARE - C&V,2103411900,1000080924
05.04.2022,ADULT SOCIAL CARE,SAGECARE LTD,258.16,PHY LTS 65+,HOMECARE - C&V,2103411902,1000080924
05.04.2022,ADULT SOCIAL CARE,SAGECARE LTD,299.65,PHY LTS 65+,HOMECARE - C&V,2103411908,1000080924
05.04.2022,ADULT SOCIAL CARE,SAGECARE LTD,322.7,PHY LTS 65+,HOMECARE - C&V,2103411907,1000080924
05.04.2022,ADULT SOCIAL CARE,SAGECARE LTD,424.12,PHY LTS 65+,HOMECARE - C&V,2103411883,1000080924
05.04.2022,ADULT SOCIAL CARE,SAGECARE LTD,470.22,PHY LTS 65+,HOMECARE - C&V,2103411889,1000080924
05.04.2022,ADULT SOCIAL CARE,SAGECARE LTD,474.83,PHY LTS 65+,HOMECARE - C&V,2103411910,1000080924
05.04.2022,ADULT SOCIAL CARE,SAGECARE LTD,590.08,PHY LTS 65+,HOMECARE - C&V,2103411884,1000080924
05.04.2022,ADULT SOCIAL CARE,SAGECARE LTD,645.4,PHY LTS 65+,HOMECARE - C&V,2103411886,1000080924
05.04.2022,ADULT SOCIAL CARE,SAGECARE LTD,645.4,PHY LTS 65+,HOMECARE - C&V,2103411912,1000080924
05.04.2022,ADULT SOCIAL CARE,SAGECARE LTD,732.99,PHY LTS 65+,HOMECARE - C&V,2103411911,1000080924
05.04.2022,ADULT SOCIAL CARE,SAGECARE LTD,807.36,PHY LTS 65+,HOMECARE - C&V,2103411899,1000080924
05.04.2022,ADULT SOCIAL CARE,SAGECARE LTD,"1,051.08",PHY LTS 65+,HOMECARE - C&V,2103411888,1000080924
05.04.2022,ADULT SOCIAL CARE,SAGECARE LTD,"2,996.50",PHY LTS 65+,HOMECARE - C&V,2103411896,1000080924
05.04.2022,ADULT SOCIAL CARE,SAGECARE LTD,"3,093.31",PHY LTS 65+,HOMECARE - C&V,2103411897,1000080924
05.04.2022,ADULT SOCIAL CARE,SAGECARE LTD,"3,300.76",PHY LTS 65+,HOMECARE - C&V,2103411905,1000080924
05.04.2022,ADULT SOCIAL CARE,SAGECARE LTD,"3,448.28",PHY LTS 65+,HOMECARE - C&V,2103411904,1000080924
05.04.2022,ADULT SOCIAL CARE,SAGECARE LTD,"3,466.72",PHY LTS 65+,HOMECARE - C&V,2103411906,1000080924
05.04.2022,ADULT SOCIAL CARE,SAGECARE LTD,571.64,PHY STS 18-64,HOMECARE - IC,2103411885,1000080924
05.04.2022,ADULT SOCIAL CARE,SAGECARE LTD,516.32,PHY STS 65+,HOMECARE - IC,2103411909,1000080924
05.04.2022,ADULT SOCIAL CARE,SAGECARE LTD,543.98,PHY STS 65+,HOMECARE - IC,2103411901,1000080924
05.04.2022,ADULT SOCIAL CARE,SAGECARE LTD,931.22,PHY STS 65+,HOMECARE - IC,2103411890,1000080924
05.04.2022,ADULT SOCIAL CARE,KIDS,472,SPECIALIST CARE,SECTION 17 PAYMENTS TO AGENCIES/CARERS,2103411766,1000030036
05.04.2022,ADULT SOCIAL CARE,ADVANTAGE HEALTHCARE LTD,"1,173.36",SPECIALIST CARE,SECTION 17 PAYMENTS TO AGENCIES/CARERS,2103411762,1000049612
05.04.2022,ADULT SOCIAL CARE,UNIQUE PERSONNEL (UK) LTD,252.42,SPECIALIST CARE,SECTION 17 PAYMENTS TO AGENCIES/CARERS,2103411767,1000075451
05.04.2022,ADULT SOCIAL CARE,UNIQUE PERSONNEL (UK) LTD,288.48,SPECIALIST CARE,SECTION 17 PAYMENTS TO AGENCIES/CARERS,2103411758,1000075451
05.04.2022,ADULT SOCIAL CARE,UNIQUE PERSONNEL (UK) LTD,288.48,SPECIALIST CARE,SECTION 17 PAYMENTS TO AGENCIES/CARERS,2103411759,1000075451
05.04.2022,ADULT SOCIAL CARE,UNIQUE PERSONNEL (UK) LTD,288.48,SPECIALIST CARE,SECTION 17 PAYMENTS TO AGENCIES/CARERS,2103411760,1000075451
05.04.2022,ADULT SOCIAL CARE,UNIQUE PERSONNEL (UK) LTD,288.48,SPECIALIST CARE,SECTION 17 PAYMENTS TO AGENCIES/CARERS,2103411768,1000075451
05.04.2022,ADULT SOCIAL CARE,UNIQUE PERSONNEL (UK) LTD,432.72,SPECIALIST CARE,SECTION 17 PAYMENTS TO AGENCIES/CARERS,2103411764,1000075451
05.04.2022,ADULT SOCIAL CARE,UNIQUE PERSONNEL (UK) LTD,432.72,SPECIALIST CARE,SECTION 17 PAYMENTS TO AGENCIES/CARERS,2103411765,1000075451
05.04.2022,ASSET MANAGEMENT,SIMON L TAYLOR LTD,825,DISREPAIR,BUILDING R&M,5902519896,1000056151
05.04.2022,ASSET MANAGEMENT,SIMON L TAYLOR LTD,825,DISREPAIR,BUILDING R&M,5902519901,1000056151
05.04.2022,ASSET MANAGEMENT,SIMON L TAYLOR LTD,825,DISREPAIR,BUILDING R&M,5902519909,1000056151
05.04.2022,ASSET MANAGEMENT,SIMON L TAYLOR LTD,825,DISREPAIR,BUILDING R&M,5902519910,1000056151
05.04.2022,ASSET MANAGEMENT,FRANKLYN SHAW ASSOCIATES LTD,"1,240.20",DISREPAIR,BUILDING R&M,5902520008,1000068289
05.04.2022,ASSET MANAGEMENT,FRANKLYN SHAW ASSOCIATES LTD,"2,309.82",DISREPAIR,BUILDING R&M,5902520007,1000068289
05.04.2022,ASSET MANAGEMENT,GC CONSTRUCT LTD,287,REPAIRS OPERATIONS,BUILDING R&M,2103411718,3000002106
05.04.2022,CENTRAL FUNCTIONS,PURCELL ARCHITECTURE LTD,"1,800.00",COMMERCIAL PROPERTIES,PROFESSIONAL FEES,5902519905,1000082955
05.04.2022,CHILDREN AND ADULT,FAITHFUL & GOULD,"13,453.96",CAPITAL PS (EDUCATION),CONSTRUCTION FEES,5902519988,1000061390
05.04.2022,CHILDREN AND ADULT,BURO HAPPOLD LIMITED,"12,300.00",CAPITAL PS (EDUCATION),CONSTRUCTION FEES,5902520069,1000086000
05.04.2022,CHILDREN AND FAMILIES,DOG KENNEL HILL ADVENTURE PLAYGROUND LTD,300,ADOPT LONDON SOUTH,EXTERNAL AGENCIES AND BODIES,5902519992,11134529
05.04.2022,CHILDREN AND FAMILIES,REDACTED PERSONAL DATA,"1,080.00",ADOPT LONDON SOUTH,EXTERNAL AGENCIES AND BODIES,REDACTED,REDACTED
05.04.2022,CHILDREN AND FAMILIES,SOUTH LONDON & MAUDSLEY HOSPITAL,"3,168.00",ADOPTION SUPP FUND,EXTERNAL AGENCIES AND BODIES,5902520031,1000013096
05.04.2022,CHILDREN AND FAMILIES,SOUTH LONDON & MAUDSLEY HOSPITAL,"3,836.00",ADOPTION SUPP FUND,EXTERNAL AGENCIES AND BODIES,5902520051,1000013096
05.04.2022,CHILDREN AND FAMILIES,SOUTH LONDON & MAUDSLEY HOSPITAL,"4,671.00",ADOPTION SUPP FUND,EXTERNAL AGENCIES AND BODIES,5902519969,1000013096
05.04.2022,CHILDREN AND FAMILIES,SOUTH LONDON & MAUDSLEY HOSPITAL,"2,500.00",ADOPTION SUPP FUND,PROFESSIONAL FEES,5902520046,1000013096
05.04.2022,CHILDREN AND FAMILIES,CORAM FAMILY,922.2,ADOPTION SUPP FUND,EXTERNAL AGENCIES AND BODIES,5902519926,1000023579
05.04.2022,CHILDREN AND FAMILIES,CLIFTON CHILDRENS SOCIETY,351.54,ADOPTION SUPP FUND,EXTERNAL AGENCIES AND BODIES,5902519925,1000049956
05.04.2022,CHILDREN AND FAMILIES,THE FAMILY PLACE LTD,758.43,ADOPTION SUPP FUND,EXTERNAL AGENCIES AND BODIES,5902520000,1000077965
05.04.2022,CHILDREN AND FAMILIES,THE FAMILY PLACE LTD,"1,560.00",ADOPTION SUPP FUND,EXTERNAL AGENCIES AND BODIES,5902519999,1000077965
05.04.2022,CHILDREN AND FAMILIES,ADOPTIONPLUS LTD,800,ADOPTION SUPP FUND,EXTERNAL AGENCIES AND BODIES,5902519958,1000083260
05.04.2022,CHILDREN AND FAMILIES,ADOPTIONPLUS LTD,"1,600.00",ADOPTION SUPP FUND,EXTERNAL AGENCIES AND BODIES,5902519957,1000083260
05.04.2022,CHILDREN AND FAMILIES,THE SENSORY SMART CHILD LTD,"1,750.00",ADOPTION SUPP FUND,EXTERNAL AGENCIES AND BODIES,5902520024,1000085374
05.04.2022,CHILDREN AND FAMILIES,CHROMA THERAPIES LTD,546,ADOPTION SUPP FUND,EXTERNAL AGENCIES AND BODIES,5902519998,1000085537
05.04.2022,CHILDREN AND FAMILIES,CHROMA THERAPIES LTD,780,ADOPTION SUPP FUND,EXTERNAL AGENCIES AND BODIES,5902519950,1000085537
05.04.2022,CHILDREN AND FAMILIES,CHROMA THERAPIES LTD,"1,014.00",ADOPTION SUPP FUND,EXTERNAL AGENCIES AND BODIES,5902519997,1000085537
05.04.2022,CHILDREN AND FAMILIES,PLAY THERAPY SERVICES LTD,650,ADOPTION SUPP FUND,EXTERNAL AGENCIES AND BODIES,5902519961,1000085546
05.04.2022,CHILDREN AND FAMILIES,PLAY THERAPY SERVICES LTD,855,ADOPTION SUPP FUND,EXTERNAL AGENCIES AND BODIES,5902519964,1000085546
05.04.2022,CHILDREN AND FAMILIES,PLAY THERAPY SERVICES LTD,"1,500.00",ADOPTION SUPP FUND,EXTERNAL AGENCIES AND BODIES,5902519963,1000085546
05.04.2022,CHILDREN AND FAMILIES,ELSIE PRICE,"1,450.00",ADOPTION SUPP FUND,EXTERNAL AGENCIES AND BODIES,5902519966,1000087308
05.04.2022,CHILDREN AND FAMILIES,REDACTED PERSONAL DATA,525,ADOPTION SUPP FUND,EXTERNAL AGENCIES AND BODIES,REDACTED,REDACTED
05.04.2022,CHILDREN AND FAMILIES,REDACTED PERSONAL DATA,734.8,ADOPTION SUPP FUND,EXTERNAL AGENCIES AND BODIES,REDACTED,REDACTED
05.04.2022,CHILDREN AND FAMILIES,REDACTED PERSONAL DATA,333,ADOPTION SUPP FUND,EXTERNAL AGENCIES AND BODIES,REDACTED,REDACTED
05.04.2022,CHILDREN AND FAMILIES,REDACTED PERSONAL DATA,426,ADOPTION SUPP FUND,EXTERNAL AGENCIES AND BODIES,REDACTED,REDACTED
05.04.2022,CHILDREN AND FAMILIES,REDACTED PERSONAL DATA,700,ADOPTION SUPP FUND,EXTERNAL AGENCIES AND BODIES,REDACTED,REDACTED
05.04.2022,CHILDREN AND FAMILIES,REDACTED PERSONAL DATA,660,ADOPTION SUPP FUND,EXTERNAL AGENCIES AND BODIES,REDACTED,REDACTED
05.04.2022,CHILDREN AND FAMILIES,RESTORATION CARE & SERVICES LTD,"15,436.00",CHILDREN�S RESID,RESIDENTIAL CARE,2103411727,1000081085
05.04.2022,CHILDREN AND FAMILIES,RESTORATION CARE & SERVICES LTD,"20,141.80",CHILDREN�S RESID,RESIDENTIAL CARE,2103411726,1000081085
05.04.2022,CHILDREN AND FAMILIES,OWNLIFE RESIDENTIAL LTD,"26,128.57",CHILDREN�S RESID,RESIDENTIAL CARE,2103411736,1000085398
05.04.2022,CHILDREN AND FAMILIES,COMPASS CHILDREN'S HOMES KENT LTD,"5,642.90",CHILDREN�S RESID,RESIDENTIAL CARE,2103411738,1000087062
05.04.2022,CHILDREN AND FAMILIES,CAMERON & COOPER LIMITED,"27,230.00",CHILDREN�S RESID,RESIDENTIAL CARE,2103411737,1000087598
05.04.2022,CHILDREN AND FAMILIES,PETALOUDA CONSULTANCY LTD,563.34,FAMILY GROUP CONF�S,PROFESSIONAL FEES,5902520001,1000081394
05.04.2022,CHILDREN AND FAMILIES,REDACTED PERSONAL DATA,795.17,FAMILY GROUP CONF�S,PROFESSIONAL FEES,REDACTED,REDACTED
05.04.2022,CHILDREN AND FAMILIES,THE BEXLEY DAY NURSERY LIMITED,335.55,P & R CARE TEAM,EXTERNAL AGENCIES AND BODIES,5902519929,1000033000
05.04.2022,CHILDREN AND FAMILIES,REDACTED PERSONAL DATA,400,P & R CARE TEAM,OTHER PAYMENTS FOR CLIENTS,REDACTED,REDACTED
05.04.2022,CHILDREN AND FAMILIES,NEXT STEP CARE MANAGEMENT LTD,"2,989.29",SEMI-IND CARELEAVERS,EXTERNAL AGENCIES AND BODIES,2103411751,1825556
05.04.2022,CHILDREN AND FAMILIES,NEXT STEP CARE MANAGEMENT LTD,"3,432.14",SEMI-IND CARELEAVERS,EXTERNAL AGENCIES AND BODIES,2103411757,1825556
05.04.2022,CHILDREN AND FAMILIES,NETPEX LTD CORPORATE SERVICES,"-4,379.30",SEMI-IND CARELEAVERS,COSTS RECOVERED,2103411952,1000076073
05.04.2022,CHILDREN AND FAMILIES,NETPEX LTD CORPORATE SERVICES,"-2,714.64",SEMI-IND CARELEAVERS,COSTS RECOVERED,2103411953,1000076073
05.04.2022,CHILDREN AND FAMILIES,NETPEX LTD CORPORATE SERVICES,"-1,349.97",SEMI-IND CARELEAVERS,COSTS RECOVERED,2103411954,1000076073
05.04.2022,CHILDREN AND FAMILIES,NETPEX LTD CORPORATE SERVICES,"2,546.40",SEMI-IND CARELEAVERS,EXTERNAL AGENCIES AND BODIES,2103411755,1000076073
05.04.2022,CHILDREN AND FAMILIES,NETPEX LTD CORPORATE SERVICES,"2,657.13",SEMI-IND CARELEAVERS,EXTERNAL AGENCIES AND BODIES,2103411747,1000076073
05.04.2022,CHILDREN AND FAMILIES,NETPEX LTD CORPORATE SERVICES,"2,767.99",SEMI-IND CARELEAVERS,EXTERNAL AGENCIES AND BODIES,2103411750,1000076073
05.04.2022,CHILDREN AND FAMILIES,NETPEX LTD CORPORATE SERVICES,"2,794.40",SEMI-IND CARELEAVERS,EXTERNAL AGENCIES AND BODIES,2103411749,1000076073
05.04.2022,CHILDREN AND FAMILIES,NETPEX LTD CORPORATE SERVICES,300,SEMI-IND CARELEAVERS,OTHER PAYMENTS FOR CLIENTS,2103411748,1000076073
05.04.2022,CHILDREN AND FAMILIES,SYDNEY CARE LTD,"8,464.28",SEMI-IND CARELEAVERS,EXTERNAL AGENCIES AND BODIES,2103411752,1000081598
05.04.2022,CHILDREN AND FAMILIES,SYDNEY CARE LTD,"7,612.71",SEMI-IND LAC 16-17,EXTERNAL AGENCIES AND BODIES,2103411740,1000081598
05.04.2022,CHILDREN AND FAMILIES,SYDNEY CARE LTD,265.71,SEMI-IND LAC 16-17,OTHER PAYMENTS FOR CLIENTS,2103411741,1000081598
05.04.2022,CHILDREN AND FAMILIES,SPRING CONSULT UK LTD,"7,000.00",SEMI-IND LAC 16-17,EXTERNAL AGENCIES AND BODIES,2103411739,1000087508
05.04.2022,CHILDREN AND FAMILIES,OWNLIFE LTD,"2,790.00",UASC CARELEAVERS,EXTERNAL AGENCIES AND BODIES,2103411754,1000056219
05.04.2022,CHILDREN AND FAMILIES,NETPEX LTD CORPORATE SERVICES,"2,170.00",UASC CARELEAVERS,EXTERNAL AGENCIES AND BODIES,2103411756,1000076073
05.04.2022,CHILDREN AND FAMILIES,DREAMFO HOUSING LTD,"3,321.43",UASC LAC 16-17,EXTERNAL AGENCIES AND BODIES,2103411742,1000087273
05.04.2022,CHILDREN AND FAMILIES,DREAMFO HOUSING LTD,"3,321.43",UASC LAC 16-17,EXTERNAL AGENCIES AND BODIES,2103411744,1000087273
05.04.2022,CHILDREN AND FAMILIES,DREAMFO HOUSING LTD,265.58,UASC LAC 16-17,OTHER PAYMENTS FOR CLIENTS,2103411743,1000087273
05.04.2022,CHILDREN AND FAMILIES,DREAMFO HOUSING LTD,265.58,UASC LAC 16-17,OTHER PAYMENTS FOR CLIENTS,2103411745,1000087273
05.04.2022,CHILDREN AND FAMILIES,IMAGO LTD,"27,819.00",YOUNG CARERS SERVICE,EXTERNAL AGENCIES AND BODIES,5902520074,1000076913
05.04.2022,COMMUNITIES,REDACTED PERSONAL DATA,"5,899.00",NO RECOURSE TO PUBLIC FUNDS,HOMECARE - C&V,REDACTED,REDACTED
05.04.2022,CUSTOMER EXPERIENCE HGF,KENT COUNTY COUNCIL - LASER,675.07,CORONER'S,ELECTRICITY,5902519939,1000012926
05.04.2022,CUSTOMER EXPERIENCE HGF,CORONERS' COURTS SUPPORT SERVICE,"1,392.00",CORONER'S,PROFESSIONAL FEES,5902519979,1000077579
05.04.2022,CUSTOMER EXPERIENCE HGF,IMPERIAL COLLEGE PROJECTS LTD,336,CORONER'S,PROFESSIONAL FEES,5902519976,1000080106
05.04.2022,CUSTOMER EXPERIENCE HGF,IMPERIAL COLLEGE PROJECTS LTD,336,CORONER'S,PROFESSIONAL FEES,5902520034,1000080106
05.04.2022,CUSTOMER EXPERIENCE HGF,IMPERIAL COLLEGE PROJECTS LTD,376,CORONER'S,PROFESSIONAL FEES,5902520028,1000080106
05.04.2022,CUSTOMER EXPERIENCE HGF,IMPERIAL COLLEGE PROJECTS LTD,388,CORONER'S,PROFESSIONAL FEES,5902520015,1000080106
05.04.2022,CUSTOMER EXPERIENCE HGF,IMPERIAL COLLEGE PROJECTS LTD,388,CORONER'S,PROFESSIONAL FEES,5902520018,1000080106
05.04.2022,CUSTOMER EXPERIENCE HGF,IMPERIAL COLLEGE PROJECTS LTD,388,CORONER'S,PROFESSIONAL FEES,5902520032,1000080106
05.04.2022,CUSTOMER EXPERIENCE HGF,IMPERIAL COLLEGE PROJECTS LTD,408,CORONER'S,PROFESSIONAL FEES,5902520036,1000080106
05.04.2022,CUSTOMER EXPERIENCE HGF,IMPERIAL COLLEGE PROJECTS LTD,568,CORONER'S,PROFESSIONAL FEES,5902520023,1000080106
05.04.2022,CUSTOMER EXPERIENCE HGF,IMPERIAL COLLEGE PROJECTS LTD,588,CORONER'S,PROFESSIONAL FEES,5902519995,1000080106
05.04.2022,CUSTOMER EXPERIENCE HGF,FORENSIC PATHOLOGY SERVICES,486.9,CORONER'S,PROFESSIONAL FEES,5902519936,1000086871
05.04.2022,CUSTOMER EXPERIENCE HGF,DAISY CORPORATE SERVICES TRADING LIMITED,"5,970.00",IT MANAGEMENT,DATA COMMUNICATIONS,5902519946,1000075666
05.04.2022,CUSTOMER EXPERIENCE HGF,DAISY CORPORATE SERVICES TRADING LIMITED,"7,262.29",IT MANAGEMENT,DATA COMMUNICATIONS,5902519946,1000075666
05.04.2022,DSG,1ST PLACE CHILDREN & PARENTS CENTRE,"4,349.67",ALTERNATIVE PROVISION,EXTERNAL AGENCIES AND BODIES,5902520004,1000049952
05.04.2022,DSG,EUROPEAN ELECTRONIQUE LTD,400,VIRTUAL SCHOOL PP,DELIVERY CHARGES,5902519960,1000084230
05.04.2022,DSG,EUROPEAN ELECTRONIQUE LTD,"10,957.60",VIRTUAL SCHOOL PP,HARDWARE,5902519960,1000084230
05.04.2022,DSG,EUROPEAN ELECTRONIQUE LTD,300,VIRTUAL SCHOOL PP,SOFTWARE,5902519960,1000084230
05.04.2022,EDUCATION,BLACKFRIARS SETTLEMENT,271,ADULT SKILLS BUDGET,GRANTS,5902519947,1013178
05.04.2022,EDUCATION,CABINET OFFICE,812.41,POST 16,COMMS & COMPUTING CONTRACT CHARGES,5902520062,1000079085
05.04.2022,EDUCATION,TRANSPORT TRADING LTD,"1,175.10",SCH TRANS � TRAVEL,PUBLIC TRANSPORT,5902518939,11252077
05.04.2022,EDUCATION,TRANSPORT TRADING LTD,"14,172.60",SCH TRANS � TRAVEL,PUBLIC TRANSPORT,5902518943,11252077
05.04.2022,EDUCATION,TRANSPORT TRADING LTD,"25,122.90",SCH TRANS � TRAVEL,PUBLIC TRANSPORT,5902518937,11252077
05.04.2022,EDUCATION,PULSE HEALTHCARE LTD,308,SCH TRANS � TRAVEL,AGENCY STAFF,5902520033,1000035063
05.04.2022,ENVIRONMENT AND LEISURE,F M CONWAY LTD,"9,074.66",CAPITAL PS (LEISURE),CONSTRUCTION,5902520016,1000002412
05.04.2022,ENVIRONMENT AND LEISURE,SOUTHERN GAS NETWORKS PLC,957,CAPITAL PS (LEISURE),CONSTRUCTION FEES  - EXTERNAL,5902518313,1000048571
05.04.2022,ENVIRONMENT AND LEISURE,SOUTHAMPTON WAY T&RA,308,CAPITAL PS (LEISURE),CAPITAL GRANTS,5902520012,1000057779
05.04.2022,ENVIRONMENT AND LEISURE,SOUTHAMPTON WAY T&RA,458,CAPITAL PS (LEISURE),CAPITAL GRANTS,5902519985,1000057779
05.04.2022,ENVIRONMENT AND LEISURE,SPOKEMEAD MAINTENANCE LTD,"2,191.47",CAPITAL PS (LEISURE),CONSTRUCTION FEES - INTERNAL,5902520043,1000059211
05.04.2022,ENVIRONMENT AND LEISURE,APSE,600,MANAGEMENT TEAM,OTHER CONTRACTORS,5902519955,1000043174
05.04.2022,ENVIRONMENT AND LEISURE,ANTALIS LTD,376,MANAGEMENT TEAM,STATIONERY,5902520038,1000066919
05.04.2022,ENVIRONMENT DIRECTORATE,FIVEWAYS MUNICIPAL VEHICLE HIRE LTD,"2,900.00",COMMERCIAL VEH CTRL A/C,HIRED VEHICLES,5902519811,1000023985
05.04.2022,ENVIRONMENT DIRECTORATE,FIVEWAYS MUNICIPAL VEHICLE HIRE LTD,"3,060.00",COMMERCIAL VEH CTRL A/C,HIRED VEHICLES,5902519812,1000023985
05.04.2022,ENVIRONMENT DIRECTORATE,FIVEWAYS MUNICIPAL VEHICLE HIRE LTD,"3,600.00",COMMERCIAL VEH CTRL A/C,HIRED VEHICLES,5902519814,1000023985
05.04.2022,ENVIRONMENT DIRECTORATE,FIVEWAYS MUNICIPAL VEHICLE HIRE LTD,"3,600.00",COMMERCIAL VEH CTRL A/C,HIRED VEHICLES,5902519815,1000023985
05.04.2022,ENVIRONMENT DIRECTORATE,FIVEWAYS MUNICIPAL VEHICLE HIRE LTD,"3,600.00",COMMERCIAL VEH CTRL A/C,HIRED VEHICLES,5902519816,1000023985
05.04.2022,ENVIRONMENT DIRECTORATE,FIVEWAYS MUNICIPAL VEHICLE HIRE LTD,-325,COMMERCIAL VEH CTRL A/C,VEHICLE REPAIRS & MAINTENANCE,5902513078,1000023985
05.04.2022,ENVIRONMENT DIRECTORATE,LEEDS COMMERCIAL LIMITED T/A LC VEHICLE HIRE,"1,035.00",COMMERCIAL VEH CTRL A/C,HIRED VEHICLES,5902519806,1000082730
05.04.2022,ENVIRONMENT DIRECTORATE,LEEDS COMMERCIAL LIMITED T/A LC VEHICLE HIRE,"1,035.00",COMMERCIAL VEH CTRL A/C,HIRED VEHICLES,5902519808,1000082730
05.04.2022,ENVIRONMENT DIRECTORATE,LEEDS COMMERCIAL LIMITED T/A LC VEHICLE HIRE,"2,875.00",COMMERCIAL VEH CTRL A/C,HIRED VEHICLES,5902519803,1000082730
05.04.2022,ENVIRONMENT DIRECTORATE,LEEDS COMMERCIAL LIMITED T/A LC VEHICLE HIRE,"2,990.00",COMMERCIAL VEH CTRL A/C,HIRED VEHICLES,5902519804,1000082730
05.04.2022,ENVIRONMENT DIRECTORATE,APCOA PARKING (UK) LTD,"441,059.40",PARKING OVERHEADS,OTHER CONTRACTORS,5902520058,1718645
05.04.2022,ENVIRONMENT DIRECTORATE,SOUTHWARK NEWSPAPER LTD,"4,276.00",RESIDENTIAL SERVICES,MARKETING & PUBLICITY SERVICES,5902520070,1556957
05.04.2022,F & C S EXCLUDING CORPORATE BUDGETS,DEMOCRACY COUNTS LIMITED,"4,500.00",BOROUGH COUNCIL ELECTIONS,TRAINING,5902520066,1000087976
05.04.2022,F & C S EXCLUDING CORPORATE BUDGETS,REDACTED PERSONAL DATA,500,TEST AND TRACE GRANT,OTHER PAYMENTS FOR CLIENTS,REDACTED,REDACTED
05.04.2022,F & C S EXCLUDING CORPORATE BUDGETS,REDACTED PERSONAL DATA,500,TEST AND TRACE GRANT,OTHER PAYMENTS FOR CLIENTS,REDACTED,REDACTED
05.04.2022,F & C S EXCLUDING CORPORATE BUDGETS,REDACTED PERSONAL DATA,500,TEST AND TRACE GRANT,OTHER PAYMENTS FOR CLIENTS,REDACTED,REDACTED
05.04.2022,F & C S EXCLUDING CORPORATE BUDGETS,REDACTED PERSONAL DATA,500,TEST AND TRACE GRANT,OTHER PAYMENTS FOR CLIENTS,REDACTED,REDACTED
05.04.2022,F & C S EXCLUDING CORPORATE BUDGETS,REDACTED PERSONAL DATA,500,TEST AND TRACE GRANT,OTHER PAYMENTS FOR CLIENTS,REDACTED,REDACTED
05.04.2022,F & C S EXCLUDING CORPORATE BUDGETS,REDACTED PERSONAL DATA,500,TEST AND TRACE GRANT,OTHER PAYMENTS FOR CLIENTS,REDACTED,REDACTED
05.04.2022,F & C S EXCLUDING CORPORATE BUDGETS,REDACTED PERSONAL DATA,500,TEST AND TRACE GRANT,OTHER PAYMENTS FOR CLIENTS,REDACTED,REDACTED
05.04.2022,F & C S EXCLUDING CORPORATE BUDGETS,REDACTED PERSONAL DATA,500,TEST AND TRACE GRANT,OTHER PAYMENTS FOR CLIENTS,REDACTED,REDACTED
05.04.2022,F & C S EXCLUDING CORPORATE BUDGETS,REDACTED PERSONAL DATA,500,TEST AND TRACE GRANT,OTHER PAYMENTS FOR CLIENTS,REDACTED,REDACTED
05.04.2022,F & C S EXCLUDING CORPORATE BUDGETS,REDACTED PERSONAL DATA,500,TEST AND TRACE GRANT,OTHER PAYMENTS FOR CLIENTS,REDACTED,REDACTED
05.04.2022,F & C S EXCLUDING CORPORATE BUDGETS,REDACTED PERSONAL DATA,500,TEST AND TRACE GRANT,OTHER PAYMENTS FOR CLIENTS,REDACTED,REDACTED
05.04.2022,F & C S EXCLUDING CORPORATE BUDGETS,REDACTED PERSONAL DATA,500,TEST AND TRACE GRANT,OTHER PAYMENTS FOR CLIENTS,REDACTED,REDACTED
05.04.2022,F & C S EXCLUDING CORPORATE BUDGETS,REDACTED PERSONAL DATA,500,TEST AND TRACE GRANT,OTHER PAYMENTS FOR CLIENTS,REDACTED,REDACTED
05.04.2022,F & C S EXCLUDING CORPORATE BUDGETS,REDACTED PERSONAL DATA,500,TEST AND TRACE GRANT,OTHER PAYMENTS FOR CLIENTS,REDACTED,REDACTED
05.04.2022,F & C S EXCLUDING CORPORATE BUDGETS,REDACTED PERSONAL DATA,500,TEST AND TRACE GRANT,OTHER PAYMENTS FOR CLIENTS,REDACTED,REDACTED
05.04.2022,F & C S EXCLUDING CORPORATE BUDGETS,REDACTED PERSONAL DATA,500,TEST AND TRACE GRANT,OTHER PAYMENTS FOR CLIENTS,REDACTED,REDACTED
05.04.2022,F & C S EXCLUDING CORPORATE BUDGETS,REDACTED PERSONAL DATA,500,TEST AND TRACE GRANT,OTHER PAYMENTS FOR CLIENTS,REDACTED,REDACTED
05.04.2022,F & C S EXCLUDING CORPORATE BUDGETS,REDACTED PERSONAL DATA,500,TEST AND TRACE GRANT,OTHER PAYMENTS FOR CLIENTS,REDACTED,REDACTED
05.04.2022,F & C S EXCLUDING CORPORATE BUDGETS,REDACTED PERSONAL DATA,500,TEST AND TRACE GRANT,OTHER PAYMENTS FOR CLIENTS,REDACTED,REDACTED
05.04.2022,F & C S EXCLUDING CORPORATE BUDGETS,REDACTED PERSONAL DATA,500,TEST AND TRACE GRANT,OTHER PAYMENTS FOR CLIENTS,REDACTED,REDACTED
05.04.2022,F & C S EXCLUDING CORPORATE BUDGETS,REDACTED PERSONAL DATA,500,TEST AND TRACE GRANT,OTHER PAYMENTS FOR CLIENTS,REDACTED,REDACTED
05.04.2022,F & C S EXCLUDING CORPORATE BUDGETS,REDACTED PERSONAL DATA,500,TEST AND TRACE GRANT,OTHER PAYMENTS FOR CLIENTS,REDACTED,REDACTED
05.04.2022,HOUSING,PRB ESTATES LTD,"83,490.84",PRBE,I-WORLD CONTRACTORS HOLDING ACCOUNT,2103411716,3000001691
05.04.2022,HOUSING,THAMES VALLEY CONTROLS LTD,"4,997.20",THAMES VALLEY CONTROL,I-WORLD CONTRACTORS HOLDING ACCOUNT,5902519938,1295718
05.04.2022,HOUSING GENERAL FUND,PELLINGS LLP,728,CAPITAL PS (REGEN),CONSTRUCTION FEES - QUANTITY SURVEYOR,5902519974,1009262
05.04.2022,HOUSING GENERAL FUND,ARMSTRONG YORK,680,CAPITAL PS (REGEN),CONSTRUCTION MAIN CONTRACT,5902520073,1000058092
05.04.2022,HOUSING HRA,COTTRELL AND VERMEULEN ARCH LTD,"1,296.88",CAPITAL PS (HRA),CONSTRUCTION FEES  - EXTERNAL,5902519918,1000012119
05.04.2022,HOUSING HRA,RPS CONSULTING SERVICES LTD,255.75,CAPITAL PS (HRA),CONSTRUCTION FEES  - EXTERNAL,5902519911,1000053170
05.04.2022,HOUSING HRA,RPS CONSULTING SERVICES LTD,266.25,CAPITAL PS (HRA),CONSTRUCTION FEES  - EXTERNAL,5902519911,1000053170
05.04.2022,HOUSING HRA,RPS CONSULTING SERVICES LTD,598,CAPITAL PS (HRA),CONSTRUCTION FEES  - EXTERNAL,5902519911,1000053170
05.04.2022,HOUSING HRA,TRAVEL & TRANSPORT PLANNING,688.75,CAPITAL PS (HRA),CONSTRUCTION FEES  - EXTERNAL,5902519799,1000087551
05.04.2022,HOUSING HRA,TRAVEL & TRANSPORT PLANNING,706.25,CAPITAL PS (HRA),CONSTRUCTION FEES  - EXTERNAL,5902519793,1000087551
05.04.2022,HOUSING HRA,TRAVEL & TRANSPORT PLANNING,706.25,CAPITAL PS (HRA),CONSTRUCTION FEES  - EXTERNAL,5902519796,1000087551
05.04.2022,HOUSING HRA,TRAVEL & TRANSPORT PLANNING,809.16,CAPITAL PS (HRA),CONSTRUCTION FEES  - EXTERNAL,5902519794,1000087551
05.04.2022,HOUSING HRA,TRAVEL & TRANSPORT PLANNING,809.16,CAPITAL PS (HRA),CONSTRUCTION FEES  - EXTERNAL,5902519798,1000087551
05.04.2022,HOUSING HRA,TRAVEL & TRANSPORT PLANNING,809.16,CAPITAL PS (HRA),CONSTRUCTION FEES  - EXTERNAL,5902519800,1000087551
05.04.2022,HOUSING HRA,SHERGROUP LTD,"3,410.00",CAPITAL PS (HRA),CONSTRUCTION FEES  - EXTERNAL,5902520060,1000087977
05.04.2022,HOUSING HRA,SHERGROUP LTD,"3,410.00",CAPITAL PS (HRA),CONSTRUCTION FEES  - EXTERNAL,5902520061,1000087977
05.04.2022,HR & OT,ROSEMARY POTTS,"1,643.00",OCCUPATIONAL ASSESSMENT,CONSULTANTS SERVICES,5902519933,1738708
05.04.2022,LEISURE DIRECTORATE,CASTLE WATER LTD,493.15,BURGESS SPORTS CENTRE,WATER,5902519916,1000078867
05.04.2022,LEISURE DIRECTORATE,CASTLE WATER LTD,334.43,DULWICH AREA TEAM,WATER,5902519922,1000078867
05.04.2022,LEISURE DIRECTORATE,FMG CONSULTING LTD,"2,384.38",LEISURE INSOURCING MOBILISATION COST,PROFESSIONAL FEES,5902519940,1000083922
05.04.2022,LEISURE DIRECTORATE,FMG CONSULTING LTD,"4,883.33",LEISURE INSOURCING MOBILISATION COST,PROFESSIONAL FEES,5902519941,1000083922
05.04.2022,LEISURE DIRECTORATE,FMG CONSULTING LTD,"4,883.33",LEISURE INSOURCING MOBILISATION COST,PROFESSIONAL FEES,5902519942,1000083922
05.04.2022,LEISURE DIRECTORATE,FMG CONSULTING LTD,"4,883.33",LEISURE INSOURCING MOBILISATION COST,PROFESSIONAL FEES,5902519944,1000083922
05.04.2022,LEISURE DIRECTORATE,KENT COUNTY COUNCIL - LASER,606.89,PLAY SOUTH,ELECTRICITY,5902519954,1000012926
05.04.2022,LEISURE DIRECTORATE,CASTLE WATER LTD,316.72,SDM BUDGET,WATER,5902519949,1000078867
05.04.2022,LEISURE DIRECTORATE,C S G (USHERS) LTD,480,TREES PRINCIPAL ROADS,TREE MAINTENANCE,5902519924,1000073203
05.04.2022,PLANNING AND TRANSPORT,METIS CONSULTANTS LIMITED,"3,101.00",STRATEGIC APPLICATIONS,PROFESSIONAL FEES,5902520054,1000086330
05.04.2022,PLANNING AND TRANSPORT,METIS CONSULTANTS LIMITED,"11,264.50",STRATEGIC APPLICATIONS,PROFESSIONAL FEES,5902520053,1000086330
05.04.2022,REGENERATION,LIVE-IN CARETAKERS LTD,"3,600.00",22 SHAND STREET,SECURITY SERVICES,5902519789,1000088236
05.04.2022,REGENERATION,LIVE-IN CARETAKERS LTD,"3,600.00",22 SHAND STREET,SECURITY SERVICES,5902519791,1000088236
05.04.2022,REGENERATION,LIVE-IN CARETAKERS LTD,"3,600.00",22 SHAND STREET,SECURITY SERVICES,5902519797,1000088236
05.04.2022,REGENERATION,HANNAH MAULE-FFINCH,600,MASTER PLAN-H/WAY & TRANS INTERCHANGE,MARKETING & PUBLICITY SERVICES,5902519891,1000034725
05.04.2022,REGENERATION,BRESLIN CONSTRUCTION LTD,280,TOWER WORKSHOPS,BUILDING R&M,5902519867,1000078031
05.04.2022,RESIDENT SERVICES HGF,REDACTED PERSONAL DATA,"4,194.18",HOMELESS PROJECTS,GRANTS,REDACTED,REDACTED
05.04.2022,RESIDENT SERVICES HGF,LEASE FOR LIFE HOUSING GROUP LTD,"3,000.00",HOMELESS PROJECTS,GRANTS,5902520050,1000086523
05.04.2022,RESIDENT SERVICES HGF,ANSARI PROPERTIES LLP,"2,382.64",HOMELESS PROJECTS,GRANTS,5902519876,1000087553
05.04.2022,RESIDENT SERVICES HGF,WILLIS & FOX LTD,"1,656.96",HOMELESS PROJECTS,GRANTS,5902519849,1000087591
05.04.2022,RESIDENT SERVICES HGF,FINEFAIR LTD,"17,177.60",NIGHTLY TA (NSC),EXTERNAL AGENCIES AND BODIES,5902519908,1000075570
05.04.2022,RESIDENT SERVICES HGF,DMS PROPERTIES SERVICES LTD,"40,805.50",NIGHTLY TA (NSC),EXTERNAL AGENCIES AND BODIES,5902519900,1000081522
05.04.2022,RESIDENT SERVICES HGF,SOLACE WOMEN'S AID,"11,250.00",RAPID REHOUSING,PROFESSIONAL FEES,5902519965,1000057231
05.04.2022,RESIDENT SERVICES HGF,SOLACE WOMEN'S AID,"45,000.00",RAPID REHOUSING,PROFESSIONAL FEES,5902519977,1000057231
05.04.2022,RESIDENT SERVICES HGF,BACK ON TRACK HOUSING,"1,696.65",RAPID REHOUSING,EXTERNAL AGENCIES AND BODIES,5902520068,1000071262
05.04.2022,RESIDENT SERVICES HGF,CHRIS ANTHONY ESTATES,"3,404.61",RAPID REHOUSING,EXTERNAL AGENCIES AND BODIES,5902520067,1000086346
05.04.2022,SBS OPERATIONS,TRAVIS PERKINS TRADING COMPANY LTD,380.11,BOROUGH & BANKSIDE VOIDS,MATERIALS,5902519858,1514319
05.04.2022,SBS OPERATIONS,TRAVIS PERKINS TRADING COMPANY LTD,759.9,BOROUGH & BANKSIDE VOIDS,MATERIALS,5902519855,1514319
05.04.2022,SBS OPERATIONS,TRAVIS PERKINS TRADING COMPANY LTD,865.54,DULWICH VOIDS,MATERIALS,5902519863,1514319
05.04.2022,SBS OPERATIONS,TRAVIS PERKINS TRADING COMPANY LTD,490.35,ELECTRICIANS - DAY TO DAY,MATERIALS,5902519845,1514319
05.04.2022,SBS OPERATIONS,TRAVIS PERKINS TRADING COMPANY LTD,"1,670.46",ELECTRICIANS - SUPPORTED HOUSING,MATERIALS,5902519856,1514319
05.04.2022,SBS OPERATIONS,TRAVIS PERKINS TRADING COMPANY LTD,683.2,SBS AIDS AND ADAPTATIONS,MATERIALS,5902519868,1514319
05.04.2022,SBS OPERATIONS,TRAVIS PERKINS TRADING COMPANY LTD,759.9,SBS AIDS AND ADAPTATIONS,MATERIALS,5902519860,1514319
05.04.2022,SBS OPERATIONS,TRAVIS PERKINS TRADING COMPANY LTD,860.88,SBS AIDS AND ADAPTATIONS,MATERIALS,5902519861,1514319
05.04.2022,SBS OPERATIONS,TRAVIS PERKINS TRADING COMPANY LTD,251.26,SUPPORTED HOUSING - REPAIRS,MATERIALS,5902519810,1514319
05.04.2022,SBS SUPPORT,EE LTD (AIRTIME ACCOUNT),"2,599.95",R & M OVERHEADS,TELEPHONES (MOBILES),5902519813,1000079805
05.04.2022,SOUTHWARK BUILDING SERVICES,N & C BUILDING MATERIALS,"9,300.00",STORES/LOGISTICS,CREDITORS -GR/IR CLEARING ACCOUNT,5902519825,1005586
05.04.2022,SOUTHWARK BUILDING SERVICES,N & C BUILDING MATERIALS,"24,000.00",STORES/LOGISTICS,CREDITORS -GR/IR CLEARING ACCOUNT,5902519825,1005586
05.04.2022,SOUTHWARK BUILDING SERVICES,THAMESMEAD BUSINESS SERVICES  LTD,316.8,STORES/LOGISTICS,CREDITORS -GR/IR CLEARING ACCOUNT,5902519846,1011709
05.04.2022,SOUTHWARK BUILDING SERVICES,REXEL UK LTD T/A NEWEY & EYRE,"3,343.00",STORES/LOGISTICS,CREDITORS -GR/IR CLEARING ACCOUNT,5902519841,1000019785
05.04.2022,SOUTHWARK BUILDING SERVICES,KEMICO LIMITED,"5,292.00",STORES/LOGISTICS,CREDITORS -GR/IR CLEARING ACCOUNT,5902519836,1000030226
06.04.2022,ADULT SOCIAL CARE,ALLPAY LTD,367.53,APPOINTEESHIPS,EXTERNAL AGENCIES AND BODIES,5902520183,1000043001
06.04.2022,ADULT SOCIAL CARE,THAMES HOMECARE SERVICE LTD,"2,074.77",DIR OF ASC,EXTERNAL AGENCIES AND BODIES,5902520121,1000079295
06.04.2022,ADULT SOCIAL CARE,REDACTED PERSONAL DATA,"1,094.60",DISABILITIES LAC,PAYMENTS TO CARERS,REDACTED,REDACTED
06.04.2022,ADULT SOCIAL CARE,REDACTED PERSONAL DATA,"1,632.00",DISABILITIES LAC,PAYMENTS TO CARERS,REDACTED,REDACTED
06.04.2022,ADULT SOCIAL CARE,REDACTED PERSONAL DATA,756,DISABILITIES LAC,PAYMENTS TO CARERS,REDACTED,REDACTED
06.04.2022,ADULT SOCIAL CARE,REDACTED PERSONAL DATA,862,DISABILITIES LAC,PAYMENTS TO CARERS,REDACTED,REDACTED
06.04.2022,ADULT SOCIAL CARE,REDACTED PERSONAL DATA,277.6,DISCHARGE TO ACCESS,SUPPORTED LIVING,REDACTED,REDACTED
06.04.2022,ADULT SOCIAL CARE,REDACTED PERSONAL DATA,624.6,LD LTS 18-64,SUPPORTED LIVING,REDACTED,REDACTED
06.04.2022,ADULT SOCIAL CARE,REDACTED PERSONAL DATA,624.6,LD LTS 18-64,SUPPORTED LIVING,REDACTED,REDACTED
06.04.2022,ADULT SOCIAL CARE,REDACTED PERSONAL DATA,832.8,LD LTS 18-64,SUPPORTED LIVING,REDACTED,REDACTED
06.04.2022,ADULT SOCIAL CARE,REDACTED PERSONAL DATA,364.35,MH LTS 18-64,HOMECARE - SPOT,REDACTED,REDACTED
06.04.2022,ADULT SOCIAL CARE,REDACTED PERSONAL DATA,277.6,MH LTS 18-64,SUPPORTED LIVING,REDACTED,REDACTED
06.04.2022,ADULT SOCIAL CARE,REDACTED PERSONAL DATA,277.6,MH LTS 18-64,SUPPORTED LIVING,REDACTED,REDACTED
06.04.2022,ADULT SOCIAL CARE,REDACTED PERSONAL DATA,277.6,MH LTS 18-64,SUPPORTED LIVING,REDACTED,REDACTED
06.04.2022,ADULT SOCIAL CARE,REDACTED PERSONAL DATA,277.6,MH LTS 18-64,SUPPORTED LIVING,REDACTED,REDACTED
06.04.2022,ADULT SOCIAL CARE,REDACTED PERSONAL DATA,277.6,MH LTS 18-64,SUPPORTED LIVING,REDACTED,REDACTED
06.04.2022,ADULT SOCIAL CARE,REDACTED PERSONAL DATA,277.6,MH LTS 18-64,SUPPORTED LIVING,REDACTED,REDACTED
06.04.2022,ADULT SOCIAL CARE,REDACTED PERSONAL DATA,277.6,MH LTS 18-64,SUPPORTED LIVING,REDACTED,REDACTED
06.04.2022,ADULT SOCIAL CARE,REDACTED PERSONAL DATA,277.6,MH LTS 18-64,SUPPORTED LIVING,REDACTED,REDACTED
06.04.2022,ADULT SOCIAL CARE,REDACTED PERSONAL DATA,282.75,MH LTS 18-64,SUPPORTED LIVING,REDACTED,REDACTED
06.04.2022,ADULT SOCIAL CARE,REDACTED PERSONAL DATA,312.3,MH LTS 18-64,SUPPORTED LIVING,REDACTED,REDACTED
06.04.2022,ADULT SOCIAL CARE,REDACTED PERSONAL DATA,312.3,MH LTS 18-64,SUPPORTED LIVING,REDACTED,REDACTED
06.04.2022,ADULT SOCIAL CARE,REDACTED PERSONAL DATA,347,MH LTS 18-64,SUPPORTED LIVING,REDACTED,REDACTED
06.04.2022,ADULT SOCIAL CARE,REDACTED PERSONAL DATA,347,MH LTS 18-64,SUPPORTED LIVING,REDACTED,REDACTED
06.04.2022,ADULT SOCIAL CARE,REDACTED PERSONAL DATA,347,MH LTS 18-64,SUPPORTED LIVING,REDACTED,REDACTED
06.04.2022,ADULT SOCIAL CARE,REDACTED PERSONAL DATA,347,MH LTS 18-64,SUPPORTED LIVING,REDACTED,REDACTED
06.04.2022,ADULT SOCIAL CARE,REDACTED PERSONAL DATA,399.05,MH LTS 18-64,SUPPORTED LIVING,REDACTED,REDACTED
06.04.2022,ADULT SOCIAL CARE,REDACTED PERSONAL DATA,416.4,MH LTS 18-64,SUPPORTED LIVING,REDACTED,REDACTED
06.04.2022,ADULT SOCIAL CARE,REDACTED PERSONAL DATA,416.4,MH LTS 18-64,SUPPORTED LIVING,REDACTED,REDACTED
06.04.2022,ADULT SOCIAL CARE,REDACTED PERSONAL DATA,416.4,MH LTS 18-64,SUPPORTED LIVING,REDACTED,REDACTED
06.04.2022,ADULT SOCIAL CARE,REDACTED PERSONAL DATA,416.4,MH LTS 18-64,SUPPORTED LIVING,REDACTED,REDACTED
06.04.2022,ADULT SOCIAL CARE,REDACTED PERSONAL DATA,416.4,MH LTS 18-64,SUPPORTED LIVING,REDACTED,REDACTED
06.04.2022,ADULT SOCIAL CARE,REDACTED PERSONAL DATA,416.4,MH LTS 18-64,SUPPORTED LIVING,REDACTED,REDACTED
06.04.2022,ADULT SOCIAL CARE,REDACTED PERSONAL DATA,451.1,MH LTS 18-64,SUPPORTED LIVING,REDACTED,REDACTED
06.04.2022,ADULT SOCIAL CARE,REDACTED PERSONAL DATA,485.8,MH LTS 18-64,SUPPORTED LIVING,REDACTED,REDACTED
06.04.2022,ADULT SOCIAL CARE,REDACTED PERSONAL DATA,485.8,MH LTS 18-64,SUPPORTED LIVING,REDACTED,REDACTED
06.04.2022,ADULT SOCIAL CARE,REDACTED PERSONAL DATA,485.8,MH LTS 18-64,SUPPORTED LIVING,REDACTED,REDACTED
06.04.2022,ADULT SOCIAL CARE,REDACTED PERSONAL DATA,485.8,MH LTS 18-64,SUPPORTED LIVING,REDACTED,REDACTED
06.04.2022,ADULT SOCIAL CARE,REDACTED PERSONAL DATA,520.5,MH LTS 18-64,SUPPORTED LIVING,REDACTED,REDACTED
06.04.2022,ADULT SOCIAL CARE,REDACTED PERSONAL DATA,520.5,MH LTS 18-64,SUPPORTED LIVING,REDACTED,REDACTED
06.04.2022,ADULT SOCIAL CARE,REDACTED PERSONAL DATA,555.2,MH LTS 18-64,SUPPORTED LIVING,REDACTED,REDACTED
06.04.2022,ADULT SOCIAL CARE,REDACTED PERSONAL DATA,555.2,MH LTS 18-64,SUPPORTED LIVING,REDACTED,REDACTED
06.04.2022,ADULT SOCIAL CARE,REDACTED PERSONAL DATA,555.2,MH LTS 18-64,SUPPORTED LIVING,REDACTED,REDACTED
06.04.2022,ADULT SOCIAL CARE,REDACTED PERSONAL DATA,607.25,MH LTS 18-64,SUPPORTED LIVING,REDACTED,REDACTED
06.04.2022,ADULT SOCIAL CARE,REDACTED PERSONAL DATA,624.6,MH LTS 18-64,SUPPORTED LIVING,REDACTED,REDACTED
06.04.2022,ADULT SOCIAL CARE,REDACTED PERSONAL DATA,624.6,MH LTS 18-64,SUPPORTED LIVING,REDACTED,REDACTED
06.04.2022,ADULT SOCIAL CARE,REDACTED PERSONAL DATA,624.6,MH LTS 18-64,SUPPORTED LIVING,REDACTED,REDACTED
06.04.2022,ADULT SOCIAL CARE,REDACTED PERSONAL DATA,728.7,MH LTS 18-64,SUPPORTED LIVING,REDACTED,REDACTED
06.04.2022,ADULT SOCIAL CARE,REDACTED PERSONAL DATA,971.6,MH LTS 18-64,SUPPORTED LIVING,REDACTED,REDACTED
06.04.2022,ADULT SOCIAL CARE,REDACTED PERSONAL DATA,"1,170.00",MH LTS 18-64,SUPPORTED LIVING,REDACTED,REDACTED
06.04.2022,ADULT SOCIAL CARE,REDACTED PERSONAL DATA,277.6,MH LTS 65+,SUPPORTED LIVING,REDACTED,REDACTED
06.04.2022,ADULT SOCIAL CARE,REDACTED PERSONAL DATA,277.6,MH LTS 65+,SUPPORTED LIVING,REDACTED,REDACTED
06.04.2022,ADULT SOCIAL CARE,REDACTED PERSONAL DATA,277.6,MH LTS 65+,SUPPORTED LIVING,REDACTED,REDACTED
06.04.2022,ADULT SOCIAL CARE,REDACTED PERSONAL DATA,312.3,MH LTS 65+,SUPPORTED LIVING,REDACTED,REDACTED
06.04.2022,ADULT SOCIAL CARE,REDACTED PERSONAL DATA,364.35,MH LTS 65+,SUPPORTED LIVING,REDACTED,REDACTED
06.04.2022,ADULT SOCIAL CARE,REDACTED PERSONAL DATA,399.05,MH LTS 65+,SUPPORTED LIVING,REDACTED,REDACTED
06.04.2022,ADULT SOCIAL CARE,REDACTED PERSONAL DATA,416.4,MH LTS 65+,SUPPORTED LIVING,REDACTED,REDACTED
06.04.2022,ADULT SOCIAL CARE,REDACTED PERSONAL DATA,694,MH LTS 65+,SUPPORTED LIVING,REDACTED,REDACTED
06.04.2022,ADULT SOCIAL CARE,REDACTED PERSONAL DATA,711.35,MH LTS 65+,SUPPORTED LIVING,REDACTED,REDACTED
06.04.2022,ADULT SOCIAL CARE,REDACTED PERSONAL DATA,763.4,MH LTS 65+,SUPPORTED LIVING,REDACTED,REDACTED
06.04.2022,ADULT SOCIAL CARE,REDACTED PERSONAL DATA,832.8,MH LTS 65+,SUPPORTED LIVING,REDACTED,REDACTED
06.04.2022,ADULT SOCIAL CARE,REDACTED PERSONAL DATA,"1,266.55",MH LTS 65+,SUPPORTED LIVING,REDACTED,REDACTED
06.04.2022,ADULT SOCIAL CARE,METRO HOMECARE LTD,470.25,MH STS 65+,HOMECARE - IC,2103412697,1000070695
06.04.2022,ADULT SOCIAL CARE,METRO HOMECARE LTD,313.5,PHY LTS 18-64,HOMECARE - SPOT,2103412689,1000070695
06.04.2022,ADULT SOCIAL CARE,METRO HOMECARE LTD,313.5,PHY LTS 18-64,HOMECARE - SPOT,2103412691,1000070695
06.04.2022,ADULT SOCIAL CARE,METRO HOMECARE LTD,412.5,PHY LTS 18-64,HOMECARE - SPOT,2103412705,1000070695
06.04.2022,ADULT SOCIAL CARE,METRO HOMECARE LTD,412.5,PHY LTS 18-64,HOMECARE - SPOT,2103412712,1000070695
06.04.2022,ADULT SOCIAL CARE,METRO HOMECARE LTD,495,PHY LTS 18-64,HOMECARE - SPOT,2103412696,1000070695
06.04.2022,ADULT SOCIAL CARE,METRO HOMECARE LTD,495,PHY LTS 18-64,HOMECARE - SPOT,2103412702,1000070695
06.04.2022,ADULT SOCIAL CARE,REDACTED PERSONAL DATA,659.3,PHY LTS 18-64,SUPPORTED LIVING,REDACTED,REDACTED
06.04.2022,ADULT SOCIAL CARE,METRO HOMECARE LTD,346.5,PHY LTS 65+,HOMECARE - SPOT,2103412699,1000070695
06.04.2022,ADULT SOCIAL CARE,METRO HOMECARE LTD,354.75,PHY LTS 65+,HOMECARE - SPOT,2103412711,1000070695
06.04.2022,ADULT SOCIAL CARE,METRO HOMECARE LTD,354.75,PHY LTS 65+,HOMECARE - SPOT,2103412714,1000070695
06.04.2022,ADULT SOCIAL CARE,METRO HOMECARE LTD,429,PHY LTS 65+,HOMECARE - SPOT,2103412704,1000070695
06.04.2022,ADULT SOCIAL CARE,METRO HOMECARE LTD,429,PHY LTS 65+,HOMECARE - SPOT,2103412718,1000070695
06.04.2022,ADULT SOCIAL CARE,METRO HOMECARE LTD,437.25,PHY LTS 65+,HOMECARE - SPOT,2103412695,1000070695
06.04.2022,ADULT SOCIAL CARE,METRO HOMECARE LTD,437.25,PHY LTS 65+,HOMECARE - SPOT,2103412710,1000070695
06.04.2022,ADULT SOCIAL CARE,METRO HOMECARE LTD,528,PHY LTS 65+,HOMECARE - SPOT,2103412698,1000070695
06.04.2022,ADULT SOCIAL CARE,METRO HOMECARE LTD,528,PHY LTS 65+,HOMECARE - SPOT,2103412701,1000070695
06.04.2022,ADULT SOCIAL CARE,METRO HOMECARE LTD,602.25,PHY LTS 65+,HOMECARE - SPOT,2103412713,1000070695
06.04.2022,ADULT SOCIAL CARE,METRO HOMECARE LTD,635.25,PHY LTS 65+,HOMECARE - SPOT,2103412693,1000070695
06.04.2022,ADULT SOCIAL CARE,METRO HOMECARE LTD,635.25,PHY LTS 65+,HOMECARE - SPOT,2103412716,1000070695
06.04.2022,ADULT SOCIAL CARE,METRO HOMECARE LTD,660,PHY LTS 65+,HOMECARE - SPOT,2103412709,1000070695
06.04.2022,ADULT SOCIAL CARE,METRO HOMECARE LTD,759,PHY LTS 65+,HOMECARE - SPOT,2103412687,1000070695
06.04.2022,ADULT SOCIAL CARE,METRO HOMECARE LTD,759,PHY LTS 65+,HOMECARE - SPOT,2103412694,1000070695
06.04.2022,ADULT SOCIAL CARE,METRO HOMECARE LTD,519.75,PHY STS 65+,HOMECARE - IC,2103412706,1000070695
06.04.2022,ADULT SOCIAL CARE,METRO HOMECARE LTD,519.75,PHY STS 65+,HOMECARE - IC,2103412719,1000070695
06.04.2022,ADULT SOCIAL CARE,METRO HOMECARE LTD,808.5,PHY STS 65+,HOMECARE - IC,2103412703,1000070695
06.04.2022,ADULT SOCIAL CARE,METRO HOMECARE LTD,808.5,PHY STS 65+,HOMECARE - IC,2103412717,1000070695
06.04.2022,ADULT SOCIAL CARE,METRO HOMECARE LTD,816.75,PHY STS 65+,HOMECARE - IC,2103412715,1000070695
06.04.2022,ADULT SOCIAL CARE,CONTACT PROFESSIONALS,285,SPECIALIST CARE,SECTION 17 PAYMENTS TO AGENCIES/CARERS,2103412539,1000057263
06.04.2022,ADULT SOCIAL CARE,CONTACT PROFESSIONALS,380,SPECIALIST CARE,SECTION 17 PAYMENTS TO AGENCIES/CARERS,2103412567,1000057263
06.04.2022,ADULT SOCIAL CARE,CONTACT PROFESSIONALS,456,SPECIALIST CARE,SECTION 17 PAYMENTS TO AGENCIES/CARERS,2103412550,1000057263
06.04.2022,ADULT SOCIAL CARE,CONTACT PROFESSIONALS,798,SPECIALIST CARE,SECTION 17 PAYMENTS TO AGENCIES/CARERS,2103412555,1000057263
06.04.2022,ASSET MANAGEMENT,HODGE JONES & ALLEN SOLICITORS,"1,996.67",DISREPAIR,PAYMENTS FOR LEGAL SERVICES,2103413083,11011881
06.04.2022,ASSET MANAGEMENT,ASHFORDS LLP,625,DISREPAIR,PAYMENTS FOR LEGAL SERVICES,2103413077,1000055865
06.04.2022,ASSET MANAGEMENT,ASHFORDS LLP,"2,500.00",DISREPAIR,PAYMENTS FOR LEGAL SERVICES,2103413076,1000055865
06.04.2022,ASSET MANAGEMENT,ASHFORDS LLP,"8,333.33",DISREPAIR,PAYMENTS FOR LEGAL SERVICES,2103413075,1000055865
06.04.2022,ASSET MANAGEMENT,AVALON ABSEILING LTD,"2,120.00",DISREPAIR,BUILDING R&M,5902520161,1000080453
06.04.2022,ASSET MANAGEMENT,E & E BUILDING SERVICES LTD,302.73,DISREPAIR,BUILDING R&M,2103413045,3000001176
06.04.2022,ASSET MANAGEMENT,E & E BUILDING SERVICES LTD,403.96,DISREPAIR,BUILDING R&M,2103413039,3000001176
06.04.2022,ASSET MANAGEMENT,E & E BUILDING SERVICES LTD,475.19,DISREPAIR,BUILDING R&M,2103413049,3000001176
06.04.2022,ASSET MANAGEMENT,E & E BUILDING SERVICES LTD,698.52,DISREPAIR,BUILDING R&M,2103413061,3000001176
06.04.2022,ASSET MANAGEMENT,E & E BUILDING SERVICES LTD,"1,136.02",DISREPAIR,BUILDING R&M,2103413059,3000001176
06.04.2022,ASSET MANAGEMENT,E & E BUILDING SERVICES LTD,"1,173.24",DISREPAIR,BUILDING R&M,2103413046,3000001176
06.04.2022,ASSET MANAGEMENT,E & E BUILDING SERVICES LTD,"1,647.84",DISREPAIR,BUILDING R&M,2103413060,3000001176
06.04.2022,ASSET MANAGEMENT,E & E BUILDING SERVICES LTD,"2,032.70",DISREPAIR,BUILDING R&M,2103413051,3000001176
06.04.2022,ASSET MANAGEMENT,E & E BUILDING SERVICES LTD,"2,111.53",DISREPAIR,BUILDING R&M,2103413048,3000001176
06.04.2022,ASSET MANAGEMENT,E & E BUILDING SERVICES LTD,"3,093.08",DISREPAIR,BUILDING R&M,2103413050,3000001176
06.04.2022,ASSET MANAGEMENT,E & E BUILDING SERVICES LTD,"4,757.05",DISREPAIR,BUILDING R&M,2103413043,3000001176
06.04.2022,ASSET MANAGEMENT,SANDERSONS BUILDING SERVICES LTD,"15,317.63",DISREPAIR,BUILDING R&M,2103413033,3000002065
06.04.2022,ASSET MANAGEMENT,ARMINA LTD,501.09,DISREPAIR,PAYMENTS FOR LEGAL SERVICES,2103413073,3000002121
06.04.2022,ASSET MANAGEMENT,ARMINA LTD,874.9,DISREPAIR,PAYMENTS FOR LEGAL SERVICES,2103413087,3000002121
06.04.2022,ASSET MANAGEMENT,ARMINA LTD,961.8,DISREPAIR,PAYMENTS FOR LEGAL SERVICES,2103413072,3000002121
06.04.2022,ASSET MANAGEMENT,ANTONY HODARI  SOLICITORS,"1,250.00",DISREPAIR,PAYMENTS FOR LEGAL SERVICES,2103413082,1000031040
06.04.2022,ASSET MANAGEMENT,ANTONY HODARI  SOLICITORS,"1,875.00",DISREPAIR,PAYMENTS FOR LEGAL SERVICES,2103413079,1000031040
06.04.2022,ASSET MANAGEMENT,ANTONY HODARI  SOLICITORS,"8,333.33",DISREPAIR,PAYMENTS FOR LEGAL SERVICES,2103413081,1000031040
06.04.2022,ASSET MANAGEMENT,SBW  LAW,444.26,DISREPAIR,PAYMENTS FOR LEGAL SERVICES,2103413080,1000085191
06.04.2022,ASSET MANAGEMENT,BOND TURNER  SOLICITORS,"1,250.00",DISREPAIR,PAYMENTS FOR LEGAL SERVICES,2103413085,1000085362
06.04.2022,ASSET MANAGEMENT,REED & CO SOLICITORS LIMITED,"1,875.00",DISREPAIR,PAYMENTS FOR LEGAL SERVICES,2103413084,1000088238
06.04.2022,ASSET MANAGEMENT,ATICUS LAW SOLICITORS,"1,250.00",DISREPAIR,PAYMENTS FOR LEGAL SERVICES,2103413074,1000088239
06.04.2022,ASSET MANAGEMENT,BRIDGEWATER ROOFING CONTRACTORS LTD,869.31,MAJOR REPAIRS,BUILDING R&M,2103411956,3000001482
06.04.2022,ASSET MANAGEMENT,BRIDGEWATER ROOFING CONTRACTORS LTD,"9,174.30",MAJOR REPAIRS,BUILDING R&M,2103411956,3000001482
06.04.2022,ASSET MANAGEMENT,BRIDGEWATER ROOFING CONTRACTORS LTD,"9,811.77",MAJOR REPAIRS,BUILDING R&M,2103411956,3000001482
06.04.2022,ASSET MANAGEMENT,BRIDGEWATER ROOFING CONTRACTORS LTD,"33,337.15",MAJOR REPAIRS,BUILDING R&M,2103413034,3000001482
06.04.2022,ASSET MANAGEMENT,BUILDTRUST LTD,"18,931.13",MAJOR REPAIRS,BUILDING R&M,2103413037,3000002010
06.04.2022,CENTRAL FUNCTIONS,1ST ACE SECURITY LTD,"10,402.60",LEDBURY ESTATE,SECURITY SERVICES,5902520123,1000006992
06.04.2022,CENTRAL FUNCTIONS,1ST ACE SECURITY LTD,"19,857.60",LEDBURY ESTATE,SECURITY SERVICES,5902520127,1000006992
06.04.2022,CENTRAL FUNCTIONS,1ST ACE SECURITY LTD,"52,479.80",LEDBURY ESTATE,SECURITY SERVICES,5902520123,1000006992
06.04.2022,CHIEF EXECUTIVE'S OFFICE,REDACTED PERSONAL DATA,"2,000.00",ELEPHANT & CASTLE,GRANTS,REDACTED,REDACTED
06.04.2022,CHILDREN AND FAMILIES,REDACTED PERSONAL DATA,695.04,ADOPTION ALLOWANCES,PAYMENTS TO CARERS,REDACTED,REDACTED
06.04.2022,CHILDREN AND FAMILIES,REDACTED PERSONAL DATA,375.54,ADOPTION ALLOWANCES,PAYMENTS TO CARERS,REDACTED,REDACTED
06.04.2022,CHILDREN AND FAMILIES,REDACTED PERSONAL DATA,375.54,ADOPTION ALLOWANCES,PAYMENTS TO CARERS,REDACTED,REDACTED
06.04.2022,CHILDREN AND FAMILIES,REDACTED PERSONAL DATA,712.3,ADOPTION ALLOWANCES,PAYMENTS TO CARERS,REDACTED,REDACTED
06.04.2022,CHILDREN AND FAMILIES,REDACTED PERSONAL DATA,862,ADOPTION ALLOWANCES,PAYMENTS TO CARERS,REDACTED,REDACTED
06.04.2022,CHILDREN AND FAMILIES,REDACTED PERSONAL DATA,635.34,ADOPTION ALLOWANCES,PAYMENTS TO CARERS,REDACTED,REDACTED
06.04.2022,CHILDREN AND FAMILIES,REDACTED PERSONAL DATA,375.54,ADOPTION ALLOWANCES,PAYMENTS TO CARERS,REDACTED,REDACTED
06.04.2022,CHILDREN AND FAMILIES,REDACTED PERSONAL DATA,465.54,ADOPTION ALLOWANCES,PAYMENTS TO CARERS,REDACTED,REDACTED
06.04.2022,CHILDREN AND FAMILIES,REDACTED PERSONAL DATA,375.54,ADOPTION ALLOWANCES,PAYMENTS TO CARERS,REDACTED,REDACTED
06.04.2022,CHILDREN AND FAMILIES,REDACTED PERSONAL DATA,451.8,ADOPTION ALLOWANCES,PAYMENTS TO CARERS,REDACTED,REDACTED
06.04.2022,CHILDREN AND FAMILIES,REDACTED PERSONAL DATA,386,ADOPTION ALLOWANCES,PAYMENTS TO CARERS,REDACTED,REDACTED
06.04.2022,CHILDREN AND FAMILIES,REDACTED PERSONAL DATA,705.24,ADOPTION ALLOWANCES,PAYMENTS TO CARERS,REDACTED,REDACTED
06.04.2022,CHILDREN AND FAMILIES,REDACTED PERSONAL DATA,777.36,ADOPTION ALLOWANCES,PAYMENTS TO CARERS,REDACTED,REDACTED
06.04.2022,CHILDREN AND FAMILIES,REDACTED PERSONAL DATA,512.02,ADOPTION ALLOWANCES,PAYMENTS TO CARERS,REDACTED,REDACTED
06.04.2022,CHILDREN AND FAMILIES,REDACTED PERSONAL DATA,251.12,ADOPTION ALLOWANCES,PAYMENTS TO CARERS,REDACTED,REDACTED
06.04.2022,CHILDREN AND FAMILIES,REDACTED PERSONAL DATA,375.54,ADOPTION ALLOWANCES,PAYMENTS TO CARERS,REDACTED,REDACTED
06.04.2022,CHILDREN AND FAMILIES,REDACTED PERSONAL DATA,375.54,ADOPTION ALLOWANCES,PAYMENTS TO CARERS,REDACTED,REDACTED
06.04.2022,CHILDREN AND FAMILIES,REDACTED PERSONAL DATA,502,ADOPTION ALLOWANCES,PAYMENTS TO CARERS,REDACTED,REDACTED
06.04.2022,CHILDREN AND FAMILIES,REDACTED PERSONAL DATA,375.54,ADOPTION ALLOWANCES,PAYMENTS TO CARERS,REDACTED,REDACTED
06.04.2022,CHILDREN AND FAMILIES,REDACTED PERSONAL DATA,640.9,ADOPTION ALLOWANCES,PAYMENTS TO CARERS,REDACTED,REDACTED
06.04.2022,CHILDREN AND FAMILIES,REDACTED PERSONAL DATA,382.3,ADOPTION ALLOWANCES,PAYMENTS TO CARERS,REDACTED,REDACTED
06.04.2022,CHILDREN AND FAMILIES,REDACTED PERSONAL DATA,382.3,ADOPTION ALLOWANCES,PAYMENTS TO CARERS,REDACTED,REDACTED
06.04.2022,CHILDREN AND FAMILIES,REDACTED PERSONAL DATA,359.9,ADOPTION ALLOWANCES,PAYMENTS TO CARERS,REDACTED,REDACTED
06.04.2022,CHILDREN AND FAMILIES,REDACTED PERSONAL DATA,304.26,ADOPTION ALLOWANCES,PAYMENTS TO CARERS,REDACTED,REDACTED
06.04.2022,CHILDREN AND FAMILIES,REDACTED PERSONAL DATA,278.54,ADOPTION ALLOWANCES,PAYMENTS TO CARERS,REDACTED,REDACTED
06.04.2022,CHILDREN AND FAMILIES,REDACTED PERSONAL DATA,485.22,ADOPTION ALLOWANCES,PAYMENTS TO CARERS,REDACTED,REDACTED
06.04.2022,CHILDREN AND FAMILIES,REDACTED PERSONAL DATA,392.42,ADOPTION ALLOWANCES,PAYMENTS TO CARERS,REDACTED,REDACTED
06.04.2022,CHILDREN AND FAMILIES,REDACTED PERSONAL DATA,252.9,ADOPTION ALLOWANCES,PAYMENTS TO CARERS,REDACTED,REDACTED
06.04.2022,CHILDREN AND FAMILIES,REDACTED PERSONAL DATA,253.56,ADOPTION ALLOWANCES,PAYMENTS TO CARERS,REDACTED,REDACTED
06.04.2022,CHILDREN AND FAMILIES,REDACTED PERSONAL DATA,382.3,ADOPTION ALLOWANCES,PAYMENTS TO CARERS,REDACTED,REDACTED
06.04.2022,CHILDREN AND FAMILIES,REDACTED PERSONAL DATA,382.3,ADOPTION ALLOWANCES,PAYMENTS TO CARERS,REDACTED,REDACTED
06.04.2022,CHILDREN AND FAMILIES,REDACTED PERSONAL DATA,326.32,ADOPTION ALLOWANCES,PAYMENTS TO CARERS,REDACTED,REDACTED
06.04.2022,CHILDREN AND FAMILIES,REDACTED PERSONAL DATA,484.92,ADOPTION ALLOWANCES,PAYMENTS TO CARERS,REDACTED,REDACTED
06.04.2022,CHILDREN AND FAMILIES,REDACTED PERSONAL DATA,530,ADOPTION ALLOWANCES,PAYMENTS TO CARERS,REDACTED,REDACTED
06.04.2022,CHILDREN AND FAMILIES,REDACTED PERSONAL DATA,908,ADOPTION ALLOWANCES,PAYMENTS TO CARERS,REDACTED,REDACTED
06.04.2022,CHILDREN AND FAMILIES,REDACTED PERSONAL DATA,738.32,ADOPTION ALLOWANCES,PAYMENTS TO CARERS,REDACTED,REDACTED
06.04.2022,CHILDREN AND FAMILIES,REDACTED PERSONAL DATA,695.12,ADOPTION ALLOWANCES,PAYMENTS TO CARERS,REDACTED,REDACTED
06.04.2022,CHILDREN AND FAMILIES,REDACTED PERSONAL DATA,293.98,ADOPTION ALLOWANCES,PAYMENTS TO CARERS,REDACTED,REDACTED
06.04.2022,CHILDREN AND FAMILIES,REDACTED PERSONAL DATA,251.94,ADOPTION ALLOWANCES,PAYMENTS TO CARERS,REDACTED,REDACTED
06.04.2022,CHILDREN AND FAMILIES,REDACTED PERSONAL DATA,652.9,ADOPTION ALLOWANCES,PAYMENTS TO CARERS,REDACTED,REDACTED
06.04.2022,CHILDREN AND FAMILIES,REDACTED PERSONAL DATA,652.9,ADOPTION ALLOWANCES,PAYMENTS TO CARERS,REDACTED,REDACTED
06.04.2022,CHILDREN AND FAMILIES,REDACTED PERSONAL DATA,712.3,ADOPTION ALLOWANCES,PAYMENTS TO CARERS,REDACTED,REDACTED
06.04.2022,CHILDREN AND FAMILIES,REDACTED PERSONAL DATA,767.68,ADOPTION ALLOWANCES,PAYMENTS TO CARERS,REDACTED,REDACTED
06.04.2022,CHILDREN AND FAMILIES,REDACTED PERSONAL DATA,400.18,ADOPTION ALLOWANCES,PAYMENTS TO CARERS,REDACTED,REDACTED
06.04.2022,CHILDREN AND FAMILIES,REDACTED PERSONAL DATA,704,ADOPTION ALLOWANCES,PAYMENTS TO CARERS,REDACTED,REDACTED
06.04.2022,CHILDREN AND FAMILIES,REDACTED PERSONAL DATA,789.7,ADOPTION ALLOWANCES,PAYMENTS TO CARERS,REDACTED,REDACTED
06.04.2022,CHILDREN AND FAMILIES,REDACTED PERSONAL DATA,588.42,ADOPTION ALLOWANCES,PAYMENTS TO CARERS,REDACTED,REDACTED
06.04.2022,CHILDREN AND FAMILIES,REDACTED PERSONAL DATA,"1,053.20",ADOPTION ALLOWANCES,PAYMENTS TO CARERS,REDACTED,REDACTED
06.04.2022,CHILDREN AND FAMILIES,REDACTED PERSONAL DATA,386,ADOPTION ALLOWANCES,PAYMENTS TO CARERS,REDACTED,REDACTED
06.04.2022,CHILDREN AND FAMILIES,REDACTED PERSONAL DATA,618.6,ADOPTION ALLOWANCES,PAYMENTS TO CARERS,REDACTED,REDACTED
06.04.2022,CHILDREN AND FAMILIES,REDACTED PERSONAL DATA,682,ADOPTION ALLOWANCES,PAYMENTS TO CARERS,REDACTED,REDACTED
06.04.2022,CHILDREN AND FAMILIES,REDACTED PERSONAL DATA,276.1,ADOPTION ALLOWANCES,PAYMENTS TO CARERS,REDACTED,REDACTED
06.04.2022,CHILDREN AND FAMILIES,REDACTED PERSONAL DATA,268.62,ADOPTION ALLOWANCES,PAYMENTS TO CARERS,REDACTED,REDACTED
06.04.2022,CHILDREN AND FAMILIES,REDACTED PERSONAL DATA,288.82,ADOPTION ALLOWANCES,PAYMENTS TO CARERS,REDACTED,REDACTED
06.04.2022,CHILDREN AND FAMILIES,REDACTED PERSONAL DATA,288.92,ADOPTION ALLOWANCES,PAYMENTS TO CARERS,REDACTED,REDACTED
06.04.2022,CHILDREN AND FAMILIES,REDACTED PERSONAL DATA,635.34,ADOPTION ALLOWANCES,PAYMENTS TO CARERS,REDACTED,REDACTED
06.04.2022,CHILDREN AND FAMILIES,REDACTED PERSONAL DATA,682,ADOPTION ALLOWANCES,PAYMENTS TO CARERS,REDACTED,REDACTED
06.04.2022,CHILDREN AND FAMILIES,REDACTED PERSONAL DATA,"1,870.43",ADOPTION ALLOWANCES,PAYMENTS TO CARERS,REDACTED,REDACTED
06.04.2022,CHILDREN AND FAMILIES,REDACTED PERSONAL DATA,"1,870.43",ADOPTION ALLOWANCES,PAYMENTS TO CARERS,REDACTED,REDACTED
06.04.2022,CHILDREN AND FAMILIES,SOUTH LONDON & MAUDSLEY HOSPITAL,668,ADOPTION SUPP FUND,EXTERNAL AGENCIES AND BODIES,5902520157,1000013096
06.04.2022,CHILDREN AND FAMILIES,SOUTH LONDON & MAUDSLEY HOSPITAL,"2,500.00",ADOPTION SUPP FUND,PROFESSIONAL FEES,5902520266,1000013096
06.04.2022,CHILDREN AND FAMILIES,SOUTH LONDON & MAUDSLEY HOSPITAL,"2,500.00",ADOPTION SUPP FUND,PROFESSIONAL FEES,5902520268,1000013096
06.04.2022,CHILDREN AND FAMILIES,DIAGRAMA FOUNDATION CHILDREN SERVICES,"2,352.90",ADOPTION SUPP FUND,EXTERNAL AGENCIES AND BODIES,5902520158,1000078697
06.04.2022,CHILDREN AND FAMILIES,DIAGRAMA FOUNDATION CHILDREN SERVICES,"2,352.90",ADOPTION SUPP FUND,EXTERNAL AGENCIES AND BODIES,5902520159,1000078697
06.04.2022,CHILDREN AND FAMILIES,THE SENSORY SMART CHILD LTD,"2,500.00",ADOPTION SUPP FUND,EXTERNAL AGENCIES AND BODIES,5902520153,1000085374
06.04.2022,CHILDREN AND FAMILIES,THE SENSORY SMART CHILD LTD,"2,500.00",ADOPTION SUPP FUND,PROFESSIONAL FEES,5902520081,1000085374
06.04.2022,CHILDREN AND FAMILIES,REDACTED PERSONAL DATA,330,ADOPTION SUPP FUND,EXTERNAL AGENCIES AND BODIES,REDACTED,REDACTED
06.04.2022,CHILDREN AND FAMILIES,REDACTED PERSONAL DATA,960,ADOPTION SUPP FUND,EXTERNAL AGENCIES AND BODIES,REDACTED,REDACTED
06.04.2022,CHILDREN AND FAMILIES,PETALOUDA CONSULTANCY LTD,643.5,FAMILY GROUP CONF�S,PROFESSIONAL FEES,5902520155,1000081394
06.04.2022,CHILDREN AND FAMILIES,PETALOUDA CONSULTANCY LTD,643.5,FAMILY GROUP CONF�S,PROFESSIONAL FEES,5902520270,1000081394
06.04.2022,CHILDREN AND FAMILIES,PETALOUDA CONSULTANCY LTD,730.17,FAMILY GROUP CONF�S,PROFESSIONAL FEES,5902520154,1000081394
06.04.2022,CHILDREN AND FAMILIES,HERA SOCIAL CARE LTD,442,FAMILY GROUP CONF�S,PROFESSIONAL FEES,5902520156,1000084935
06.04.2022,CHILDREN AND FAMILIES,REDACTED PERSONAL DATA,762,FOSTERING ALLOWANCES,PAYMENTS TO CARERS,REDACTED,REDACTED
06.04.2022,CHILDREN AND FAMILIES,REDACTED PERSONAL DATA,862,FOSTERING ALLOWANCES,PAYMENTS TO CARERS,REDACTED,REDACTED
06.04.2022,CHILDREN AND FAMILIES,REDACTED PERSONAL DATA,862,FOSTERING ALLOWANCES,PAYMENTS TO CARERS,REDACTED,REDACTED
06.04.2022,CHILDREN AND FAMILIES,REDACTED PERSONAL DATA,864,FOSTERING ALLOWANCES,PAYMENTS TO CARERS,REDACTED,REDACTED
06.04.2022,CHILDREN AND FAMILIES,REDACTED PERSONAL DATA,862,FOSTERING ALLOWANCES,PAYMENTS TO CARERS,REDACTED,REDACTED
06.04.2022,CHILDREN AND FAMILIES,REDACTED PERSONAL DATA,920,FOSTERING ALLOWANCES,PAYMENTS TO CARERS,REDACTED,REDACTED
06.04.2022,CHILDREN AND FAMILIES,REDACTED PERSONAL DATA,954,FOSTERING ALLOWANCES,PAYMENTS TO CARERS,REDACTED,REDACTED
06.04.2022,CHILDREN AND FAMILIES,REDACTED PERSONAL DATA,864,FOSTERING ALLOWANCES,PAYMENTS TO CARERS,REDACTED,REDACTED
06.04.2022,CHILDREN AND FAMILIES,REDACTED PERSONAL DATA,954,FOSTERING ALLOWANCES,PAYMENTS TO CARERS,REDACTED,REDACTED
06.04.2022,CHILDREN AND FAMILIES,REDACTED PERSONAL DATA,862,FOSTERING ALLOWANCES,PAYMENTS TO CARERS,REDACTED,REDACTED
06.04.2022,CHILDREN AND FAMILIES,REDACTED PERSONAL DATA,864,FOSTERING ALLOWANCES,PAYMENTS TO CARERS,REDACTED,REDACTED
06.04.2022,CHILDREN AND FAMILIES,REDACTED PERSONAL DATA,862,FOSTERING ALLOWANCES,PAYMENTS TO CARERS,REDACTED,REDACTED
06.04.2022,CHILDREN AND FAMILIES,REDACTED PERSONAL DATA,896,FOSTERING ALLOWANCES,PAYMENTS TO CARERS,REDACTED,REDACTED
06.04.2022,CHILDREN AND FAMILIES,REDACTED PERSONAL DATA,954,FOSTERING ALLOWANCES,PAYMENTS TO CARERS,REDACTED,REDACTED
06.04.2022,CHILDREN AND FAMILIES,REDACTED PERSONAL DATA,712.3,FOSTERING ALLOWANCES,PAYMENTS TO CARERS,REDACTED,REDACTED
06.04.2022,CHILDREN AND FAMILIES,REDACTED PERSONAL DATA,920,FOSTERING ALLOWANCES,PAYMENTS TO CARERS,REDACTED,REDACTED
06.04.2022,CHILDREN AND FAMILIES,REDACTED PERSONAL DATA,862,FOSTERING ALLOWANCES,PAYMENTS TO CARERS,REDACTED,REDACTED
06.04.2022,CHILDREN AND FAMILIES,REDACTED PERSONAL DATA,"1,632.00",FOSTERING ALLOWANCES,PAYMENTS TO CARERS,REDACTED,REDACTED
06.04.2022,CHILDREN AND FAMILIES,REDACTED PERSONAL DATA,954,FOSTERING ALLOWANCES,PAYMENTS TO CARERS,REDACTED,REDACTED
06.04.2022,CHILDREN AND FAMILIES,REDACTED PERSONAL DATA,864,FOSTERING ALLOWANCES,PAYMENTS TO CARERS,REDACTED,REDACTED
06.04.2022,CHILDREN AND FAMILIES,REDACTED PERSONAL DATA,864,FOSTERING ALLOWANCES,PAYMENTS TO CARERS,REDACTED,REDACTED
06.04.2022,CHILDREN AND FAMILIES,REDACTED PERSONAL DATA,862,FOSTERING ALLOWANCES,PAYMENTS TO CARERS,REDACTED,REDACTED
06.04.2022,CHILDREN AND FAMILIES,REDACTED PERSONAL DATA,862,FOSTERING ALLOWANCES,PAYMENTS TO CARERS,REDACTED,REDACTED
06.04.2022,CHILDREN AND FAMILIES,REDACTED PERSONAL DATA,862,FOSTERING ALLOWANCES,PAYMENTS TO CARERS,REDACTED,REDACTED
06.04.2022,CHILDREN AND FAMILIES,REDACTED PERSONAL DATA,862,FOSTERING ALLOWANCES,PAYMENTS TO CARERS,REDACTED,REDACTED
06.04.2022,CHILDREN AND FAMILIES,REDACTED PERSONAL DATA,984,FOSTERING ALLOWANCES,PAYMENTS TO CARERS,REDACTED,REDACTED
06.04.2022,CHILDREN AND FAMILIES,REDACTED PERSONAL DATA,984,FOSTERING ALLOWANCES,PAYMENTS TO CARERS,REDACTED,REDACTED
06.04.2022,CHILDREN AND FAMILIES,REDACTED PERSONAL DATA,984,FOSTERING ALLOWANCES,PAYMENTS TO CARERS,REDACTED,REDACTED
06.04.2022,CHILDREN AND FAMILIES,REDACTED PERSONAL DATA,954,FOSTERING ALLOWANCES,PAYMENTS TO CARERS,REDACTED,REDACTED
06.04.2022,CHILDREN AND FAMILIES,REDACTED PERSONAL DATA,864,FOSTERING ALLOWANCES,PAYMENTS TO CARERS,REDACTED,REDACTED
06.04.2022,CHILDREN AND FAMILIES,REDACTED PERSONAL DATA,660,FOSTERING ALLOWANCES,PAYMENTS TO CARERS,REDACTED,REDACTED
06.04.2022,CHILDREN AND FAMILIES,REDACTED PERSONAL DATA,862,FOSTERING ALLOWANCES,PAYMENTS TO CARERS,REDACTED,REDACTED
06.04.2022,CHILDREN AND FAMILIES,REDACTED PERSONAL DATA,862,FOSTERING ALLOWANCES,PAYMENTS TO CARERS,REDACTED,REDACTED
06.04.2022,CHILDREN AND FAMILIES,REDACTED PERSONAL DATA,862,FOSTERING ALLOWANCES,PAYMENTS TO CARERS,REDACTED,REDACTED
06.04.2022,CHILDREN AND FAMILIES,REDACTED PERSONAL DATA,862,FOSTERING ALLOWANCES,PAYMENTS TO CARERS,REDACTED,REDACTED
06.04.2022,CHILDREN AND FAMILIES,REDACTED PERSONAL DATA,864,FOSTERING ALLOWANCES,PAYMENTS TO CARERS,REDACTED,REDACTED
06.04.2022,CHILDREN AND FAMILIES,REDACTED PERSONAL DATA,"1,632.00",FOSTERING ALLOWANCES,PAYMENTS TO CARERS,REDACTED,REDACTED
06.04.2022,CHILDREN AND FAMILIES,REDACTED PERSONAL DATA,"1,632.00",FOSTERING ALLOWANCES,PAYMENTS TO CARERS,REDACTED,REDACTED
06.04.2022,CHILDREN AND FAMILIES,REDACTED PERSONAL DATA,920,FOSTERING ALLOWANCES,PAYMENTS TO CARERS,REDACTED,REDACTED
06.04.2022,CHILDREN AND FAMILIES,REDACTED PERSONAL DATA,896,FOSTERING ALLOWANCES,PAYMENTS TO CARERS,REDACTED,REDACTED
06.04.2022,CHILDREN AND FAMILIES,REDACTED PERSONAL DATA,894,FOSTERING ALLOWANCES,PAYMENTS TO CARERS,REDACTED,REDACTED
06.04.2022,CHILDREN AND FAMILIES,REDACTED PERSONAL DATA,712,FOSTERING ALLOWANCES,PAYMENTS TO CARERS,REDACTED,REDACTED
06.04.2022,CHILDREN AND FAMILIES,REDACTED PERSONAL DATA,"1,166.00",FOSTERING ALLOWANCES,PAYMENTS TO CARERS,REDACTED,REDACTED
06.04.2022,CHILDREN AND FAMILIES,REDACTED PERSONAL DATA,830,FOSTERING ALLOWANCES,PAYMENTS TO CARERS,REDACTED,REDACTED
06.04.2022,CHILDREN AND FAMILIES,REDACTED PERSONAL DATA,832,FOSTERING ALLOWANCES,PAYMENTS TO CARERS,REDACTED,REDACTED
06.04.2022,CHILDREN AND FAMILIES,REDACTED PERSONAL DATA,300,FOSTERING ALLOWANCES,ADDITIONAL PAYMENTS TO AGENCIES/CARERS,REDACTED,REDACTED
06.04.2022,CHILDREN AND FAMILIES,REDACTED PERSONAL DATA,862,FOSTERING ALLOWANCES,PAYMENTS TO CARERS,REDACTED,REDACTED
06.04.2022,CHILDREN AND FAMILIES,REDACTED PERSONAL DATA,947.43,FOSTERING ALLOWANCES,PAYMENTS TO CARERS,REDACTED,REDACTED
06.04.2022,CHILDREN AND FAMILIES,REDACTED PERSONAL DATA,954,FOSTERING ALLOWANCES,PAYMENTS TO CARERS,REDACTED,REDACTED
06.04.2022,CHILDREN AND FAMILIES,REDACTED PERSONAL DATA,862,FOSTERING ALLOWANCES,PAYMENTS TO CARERS,REDACTED,REDACTED
06.04.2022,CHILDREN AND FAMILIES,REDACTED PERSONAL DATA,864,FOSTERING ALLOWANCES,PAYMENTS TO CARERS,REDACTED,REDACTED
06.04.2022,CHILDREN AND FAMILIES,REDACTED PERSONAL DATA,712,FOSTERING ALLOWANCES,PAYMENTS TO CARERS,REDACTED,REDACTED
06.04.2022,CHILDREN AND FAMILIES,REDACTED PERSONAL DATA,896,FOSTERING ALLOWANCES,PAYMENTS TO CARERS,REDACTED,REDACTED
06.04.2022,CHILDREN AND FAMILIES,REDACTED PERSONAL DATA,862,FOSTERING ALLOWANCES,PAYMENTS TO CARERS,REDACTED,REDACTED
06.04.2022,CHILDREN AND FAMILIES,REDACTED PERSONAL DATA,940.86,FOSTERING ALLOWANCES,PAYMENTS TO CARERS,REDACTED,REDACTED
06.04.2022,CHILDREN AND FAMILIES,REDACTED PERSONAL DATA,862,FOSTERING ALLOWANCES,PAYMENTS TO CARERS,REDACTED,REDACTED
06.04.2022,CHILDREN AND FAMILIES,REDACTED PERSONAL DATA,"1,664.00",FOSTERING ALLOWANCES,PAYMENTS TO CARERS,REDACTED,REDACTED
06.04.2022,CHILDREN AND FAMILIES,REDACTED PERSONAL DATA,712,FOSTERING ALLOWANCES,PAYMENTS TO CARERS,REDACTED,REDACTED
06.04.2022,CHILDREN AND FAMILIES,REDACTED PERSONAL DATA,864,FOSTERING ALLOWANCES,PAYMENTS TO CARERS,REDACTED,REDACTED
06.04.2022,CHILDREN AND FAMILIES,REDACTED PERSONAL DATA,862,FOSTERING ALLOWANCES,PAYMENTS TO CARERS,REDACTED,REDACTED
06.04.2022,CHILDREN AND FAMILIES,REDACTED PERSONAL DATA,862,FOSTERING ALLOWANCES,PAYMENTS TO CARERS,REDACTED,REDACTED
06.04.2022,CHILDREN AND FAMILIES,REDACTED PERSONAL DATA,954,FOSTERING ALLOWANCES,PAYMENTS TO CARERS,REDACTED,REDACTED
06.04.2022,CHILDREN AND FAMILIES,REDACTED PERSONAL DATA,954,FOSTERING ALLOWANCES,PAYMENTS TO CARERS,REDACTED,REDACTED
06.04.2022,CHILDREN AND FAMILIES,REDACTED PERSONAL DATA,954,FOSTERING ALLOWANCES,PAYMENTS TO CARERS,REDACTED,REDACTED
06.04.2022,CHILDREN AND FAMILIES,REDACTED PERSONAL DATA,712,FOSTERING ALLOWANCES,PAYMENTS TO CARERS,REDACTED,REDACTED
06.04.2022,CHILDREN AND FAMILIES,REDACTED PERSONAL DATA,832,FOSTERING ALLOWANCES,PAYMENTS TO CARERS,REDACTED,REDACTED
06.04.2022,CHILDREN AND FAMILIES,REDACTED PERSONAL DATA,954,FOSTERING ALLOWANCES,PAYMENTS TO CARERS,REDACTED,REDACTED
06.04.2022,CHILDREN AND FAMILIES,REDACTED PERSONAL DATA,864,FOSTERING ALLOWANCES,PAYMENTS TO CARERS,REDACTED,REDACTED
06.04.2022,CHILDREN AND FAMILIES,REDACTED PERSONAL DATA,762,FOSTERING ALLOWANCES,PAYMENTS TO CARERS,REDACTED,REDACTED
06.04.2022,CHILDREN AND FAMILIES,REDACTED PERSONAL DATA,862,FOSTERING ALLOWANCES,PAYMENTS TO CARERS,REDACTED,REDACTED
06.04.2022,CHILDREN AND FAMILIES,REDACTED PERSONAL DATA,954,FOSTERING ALLOWANCES,PAYMENTS TO CARERS,REDACTED,REDACTED
06.04.2022,CHILDREN AND FAMILIES,REDACTED PERSONAL DATA,732,FOSTERING ALLOWANCES,PAYMENTS TO CARERS,REDACTED,REDACTED
06.04.2022,CHILDREN AND FAMILIES,REDACTED PERSONAL DATA,732,FOSTERING ALLOWANCES,PAYMENTS TO CARERS,REDACTED,REDACTED
06.04.2022,CHILDREN AND FAMILIES,REDACTED PERSONAL DATA,712,FOSTERING ALLOWANCES,PAYMENTS TO CARERS,REDACTED,REDACTED
06.04.2022,CHILDREN AND FAMILIES,REDACTED PERSONAL DATA,862,FOSTERING ALLOWANCES,PAYMENTS TO CARERS,REDACTED,REDACTED
06.04.2022,CHILDREN AND FAMILIES,REDACTED PERSONAL DATA,862,FOSTERING ALLOWANCES,PAYMENTS TO CARERS,REDACTED,REDACTED
06.04.2022,CHILDREN AND FAMILIES,REDACTED PERSONAL DATA,862,FOSTERING ALLOWANCES,PAYMENTS TO CARERS,REDACTED,REDACTED
06.04.2022,CHILDREN AND FAMILIES,REDACTED PERSONAL DATA,"1,062.00",FOSTERING ALLOWANCES,PAYMENTS TO CARERS,REDACTED,REDACTED
06.04.2022,CHILDREN AND FAMILIES,REDACTED PERSONAL DATA,862,FOSTERING ALLOWANCES,PAYMENTS TO CARERS,REDACTED,REDACTED
06.04.2022,CHILDREN AND FAMILIES,REDACTED PERSONAL DATA,862,FOSTERING ALLOWANCES,PAYMENTS TO CARERS,REDACTED,REDACTED
06.04.2022,CHILDREN AND FAMILIES,REDACTED PERSONAL DATA,712,FOSTERING ALLOWANCES,PAYMENTS TO CARERS,REDACTED,REDACTED
06.04.2022,CHILDREN AND FAMILIES,REDACTED PERSONAL DATA,762,FOSTERING ALLOWANCES,PAYMENTS TO CARERS,REDACTED,REDACTED
06.04.2022,CHILDREN AND FAMILIES,REDACTED PERSONAL DATA,862,FOSTERING ALLOWANCES,PAYMENTS TO CARERS,REDACTED,REDACTED
06.04.2022,CHILDREN AND FAMILIES,REDACTED PERSONAL DATA,712,FOSTERING ALLOWANCES,PAYMENTS TO CARERS,REDACTED,REDACTED
06.04.2022,CHILDREN AND FAMILIES,REDACTED PERSONAL DATA,862,FOSTERING ALLOWANCES,PAYMENTS TO CARERS,REDACTED,REDACTED
06.04.2022,CHILDREN AND FAMILIES,REDACTED PERSONAL DATA,862,FOSTERING ALLOWANCES,PAYMENTS TO CARERS,REDACTED,REDACTED
06.04.2022,CHILDREN AND FAMILIES,REDACTED PERSONAL DATA,862,FOSTERING ALLOWANCES,PAYMENTS TO CARERS,REDACTED,REDACTED
06.04.2022,CHILDREN AND FAMILIES,REDACTED PERSONAL DATA,954,FOSTERING ALLOWANCES,PAYMENTS TO CARERS,REDACTED,REDACTED
06.04.2022,CHILDREN AND FAMILIES,REDACTED PERSONAL DATA,862,FOSTERING ALLOWANCES,PAYMENTS TO CARERS,REDACTED,REDACTED
06.04.2022,CHILDREN AND FAMILIES,REDACTED PERSONAL DATA,832,FOSTERING ALLOWANCES,PAYMENTS TO CARERS,REDACTED,REDACTED
06.04.2022,CHILDREN AND FAMILIES,REDACTED PERSONAL DATA,832,FOSTERING ALLOWANCES,PAYMENTS TO CARERS,REDACTED,REDACTED
06.04.2022,CHILDREN AND FAMILIES,REDACTED PERSONAL DATA,762,FOSTERING ALLOWANCES,PAYMENTS TO CARERS,REDACTED,REDACTED
06.04.2022,CHILDREN AND FAMILIES,REDACTED PERSONAL DATA,762,FOSTERING ALLOWANCES,PAYMENTS TO CARERS,REDACTED,REDACTED
06.04.2022,CHILDREN AND FAMILIES,REDACTED PERSONAL DATA,832,FOSTERING ALLOWANCES,PAYMENTS TO CARERS,REDACTED,REDACTED
06.04.2022,CHILDREN AND FAMILIES,REDACTED PERSONAL DATA,862,FOSTERING ALLOWANCES,PAYMENTS TO CARERS,REDACTED,REDACTED
06.04.2022,CHILDREN AND FAMILIES,REDACTED PERSONAL DATA,732,FOSTERING ALLOWANCES,PAYMENTS TO CARERS,REDACTED,REDACTED
06.04.2022,CHILDREN AND FAMILIES,REDACTED PERSONAL DATA,862,FOSTERING ALLOWANCES,PAYMENTS TO CARERS,REDACTED,REDACTED
06.04.2022,CHILDREN AND FAMILIES,REDACTED PERSONAL DATA,864,FOSTERING ALLOWANCES,PAYMENTS TO CARERS,REDACTED,REDACTED
06.04.2022,CHILDREN AND FAMILIES,REDACTED PERSONAL DATA,954,FOSTERING ALLOWANCES,PAYMENTS TO CARERS,REDACTED,REDACTED
06.04.2022,CHILDREN AND FAMILIES,REDACTED PERSONAL DATA,762,FOSTERING ALLOWANCES,PAYMENTS TO CARERS,REDACTED,REDACTED
06.04.2022,CHILDREN AND FAMILIES,REDACTED PERSONAL DATA,862,FOSTERING ALLOWANCES,PAYMENTS TO CARERS,REDACTED,REDACTED
06.04.2022,CHILDREN AND FAMILIES,REDACTED PERSONAL DATA,-369.43,FOSTERING ALLOWANCES,PAYMENTS TO CARERS,REDACTED,REDACTED
06.04.2022,CHILDREN AND FAMILIES,REDACTED PERSONAL DATA,862,FOSTERING ALLOWANCES,PAYMENTS TO CARERS,REDACTED,REDACTED
06.04.2022,CHILDREN AND FAMILIES,REDACTED PERSONAL DATA,954,FOSTERING ALLOWANCES,PAYMENTS TO CARERS,REDACTED,REDACTED
06.04.2022,CHILDREN AND FAMILIES,REDACTED PERSONAL DATA,732,FOSTERING ALLOWANCES,PAYMENTS TO CARERS,REDACTED,REDACTED
06.04.2022,CHILDREN AND FAMILIES,REDACTED PERSONAL DATA,862,FOSTERING ALLOWANCES,PAYMENTS TO CARERS,REDACTED,REDACTED
06.04.2022,CHILDREN AND FAMILIES,REDACTED PERSONAL DATA,762,FOSTERING ALLOWANCES,PAYMENTS TO CARERS,REDACTED,REDACTED
06.04.2022,CHILDREN AND FAMILIES,REDACTED PERSONAL DATA,762,FOSTERING ALLOWANCES,PAYMENTS TO CARERS,REDACTED,REDACTED
06.04.2022,CHILDREN AND FAMILIES,REDACTED PERSONAL DATA,712,FOSTERING ALLOWANCES,PAYMENTS TO CARERS,REDACTED,REDACTED
06.04.2022,CHILDREN AND FAMILIES,REDACTED PERSONAL DATA,712,FOSTERING ALLOWANCES,PAYMENTS TO CARERS,REDACTED,REDACTED
06.04.2022,CHILDREN AND FAMILIES,REDACTED PERSONAL DATA,712,FOSTERING ALLOWANCES,PAYMENTS TO CARERS,REDACTED,REDACTED
06.04.2022,CHILDREN AND FAMILIES,REDACTED PERSONAL DATA,862,FOSTERING ALLOWANCES,PAYMENTS TO CARERS,REDACTED,REDACTED
06.04.2022,CHILDREN AND FAMILIES,REDACTED PERSONAL DATA,862,FOSTERING ALLOWANCES,PAYMENTS TO CARERS,REDACTED,REDACTED
06.04.2022,CHILDREN AND FAMILIES,REDACTED PERSONAL DATA,954,FOSTERING ALLOWANCES,PAYMENTS TO CARERS,REDACTED,REDACTED
06.04.2022,CHILDREN AND FAMILIES,REDACTED PERSONAL DATA,954,FOSTERING ALLOWANCES,PAYMENTS TO CARERS,REDACTED,REDACTED
06.04.2022,CHILDREN AND FAMILIES,REDACTED PERSONAL DATA,"1,700.00",FOSTERING ALLOWANCES,PAYMENTS TO CARERS,REDACTED,REDACTED
06.04.2022,CHILDREN AND FAMILIES,REDACTED PERSONAL DATA,762,FOSTERING ALLOWANCES,PAYMENTS TO CARERS,REDACTED,REDACTED
06.04.2022,CHILDREN AND FAMILIES,REDACTED PERSONAL DATA,762,FOSTERING ALLOWANCES,PAYMENTS TO CARERS,REDACTED,REDACTED
06.04.2022,CHILDREN AND FAMILIES,REDACTED PERSONAL DATA,"1,713.10",FOSTERING ALLOWANCES,PAYMENTS TO CARERS,REDACTED,REDACTED
06.04.2022,CHILDREN AND FAMILIES,REDACTED PERSONAL DATA,830,FOSTERING ALLOWANCES,PAYMENTS TO CARERS,REDACTED,REDACTED
06.04.2022,CHILDREN AND FAMILIES,REDACTED PERSONAL DATA,954,FOSTERING ALLOWANCES,PAYMENTS TO CARERS,REDACTED,REDACTED
06.04.2022,CHILDREN AND FAMILIES,REDACTED PERSONAL DATA,732,FOSTERING ALLOWANCES,PAYMENTS TO CARERS,REDACTED,REDACTED
06.04.2022,CHILDREN AND FAMILIES,REDACTED PERSONAL DATA,830,FOSTERING ALLOWANCES,PAYMENTS TO CARERS,REDACTED,REDACTED
06.04.2022,CHILDREN AND FAMILIES,REDACTED PERSONAL DATA,920,FOSTERING ALLOWANCES,PAYMENTS TO CARERS,REDACTED,REDACTED
06.04.2022,CHILDREN AND FAMILIES,REDACTED PERSONAL DATA,732,FOSTERING ALLOWANCES,PAYMENTS TO CARERS,REDACTED,REDACTED
06.04.2022,CHILDREN AND FAMILIES,REDACTED PERSONAL DATA,682,FOSTERING ALLOWANCES,PAYMENTS TO CARERS,REDACTED,REDACTED
06.04.2022,CHILDREN AND FAMILIES,REDACTED PERSONAL DATA,832,FOSTERING ALLOWANCES,PAYMENTS TO CARERS,REDACTED,REDACTED
06.04.2022,CHILDREN AND FAMILIES,REDACTED PERSONAL DATA,830,FOSTERING ALLOWANCES,PAYMENTS TO CARERS,REDACTED,REDACTED
06.04.2022,CHILDREN AND FAMILIES,REDACTED PERSONAL DATA,400,FOSTERING ALLOWANCES,ADDITIONAL PAYMENTS TO AGENCIES/CARERS,REDACTED,REDACTED
06.04.2022,CHILDREN AND FAMILIES,REDACTED PERSONAL DATA,832,FOSTERING ALLOWANCES,PAYMENTS TO CARERS,REDACTED,REDACTED
06.04.2022,CHILDREN AND FAMILIES,REDACTED PERSONAL DATA,"1,515.43",FOSTERING ALLOWANCES,PAYMENTS TO CARERS,REDACTED,REDACTED
06.04.2022,CHILDREN AND FAMILIES,REDACTED PERSONAL DATA,732,FOSTERING ALLOWANCES,PAYMENTS TO CARERS,REDACTED,REDACTED
06.04.2022,CHILDREN AND FAMILIES,REDACTED PERSONAL DATA,732,FOSTERING ALLOWANCES,PAYMENTS TO CARERS,REDACTED,REDACTED
06.04.2022,CHILDREN AND FAMILIES,REDACTED PERSONAL DATA,"1,070.16",FOSTERING ALLOWANCES,PAYMENTS TO CARERS,REDACTED,REDACTED
06.04.2022,CHILDREN AND FAMILIES,REDACTED PERSONAL DATA,920,FOSTERING ALLOWANCES,PAYMENTS TO CARERS,REDACTED,REDACTED
06.04.2022,CHILDREN AND FAMILIES,REDACTED PERSONAL DATA,348,FOSTERING ALLOWANCES,PAYMENTS TO CARERS,REDACTED,REDACTED
06.04.2022,CHILDREN AND FAMILIES,REDACTED PERSONAL DATA,832,FOSTERING ALLOWANCES,PAYMENTS TO CARERS,REDACTED,REDACTED
06.04.2022,CHILDREN AND FAMILIES,REDACTED PERSONAL DATA,732,FOSTERING ALLOWANCES,PAYMENTS TO CARERS,REDACTED,REDACTED
06.04.2022,CHILDREN AND FAMILIES,LOGICOUS LTD,"1,236.75",FRIENDS &FAMILY FOST,NURSING PLACEMENTS FEES,5902520151,1000073852
06.04.2022,CHILDREN AND FAMILIES,REDACTED PERSONAL DATA,354,FRIENDS &FAMILY FOST,PAYMENTS TO CARERS,REDACTED,REDACTED
06.04.2022,CHILDREN AND FAMILIES,REDACTED PERSONAL DATA,832,FRIENDS &FAMILY FOST,PAYMENTS TO CARERS,REDACTED,REDACTED
06.04.2022,CHILDREN AND FAMILIES,REDACTED PERSONAL DATA,832,FRIENDS &FAMILY FOST,PAYMENTS TO CARERS,REDACTED,REDACTED
06.04.2022,CHILDREN AND FAMILIES,REDACTED PERSONAL DATA,732,FRIENDS &FAMILY FOST,PAYMENTS TO CARERS,REDACTED,REDACTED
06.04.2022,CHILDREN AND FAMILIES,REDACTED PERSONAL DATA,832,FRIENDS &FAMILY FOST,PAYMENTS TO CARERS,REDACTED,REDACTED
06.04.2022,CHILDREN AND FAMILIES,REDACTED PERSONAL DATA,832,FRIENDS &FAMILY FOST,PAYMENTS TO CARERS,REDACTED,REDACTED
06.04.2022,CHILDREN AND FAMILIES,REDACTED PERSONAL DATA,832,FRIENDS &FAMILY FOST,PAYMENTS TO CARERS,REDACTED,REDACTED
06.04.2022,CHILDREN AND FAMILIES,REDACTED PERSONAL DATA,920,FRIENDS &FAMILY FOST,PAYMENTS TO CARERS,REDACTED,REDACTED
06.04.2022,CHILDREN AND FAMILIES,REDACTED PERSONAL DATA,862,FRIENDS &FAMILY FOST,PAYMENTS TO CARERS,REDACTED,REDACTED
06.04.2022,CHILDREN AND FAMILIES,REDACTED PERSONAL DATA,864,FRIENDS &FAMILY FOST,PAYMENTS TO CARERS,REDACTED,REDACTED
06.04.2022,CHILDREN AND FAMILIES,REDACTED PERSONAL DATA,732,FRIENDS &FAMILY FOST,PAYMENTS TO CARERS,REDACTED,REDACTED
06.04.2022,CHILDREN AND FAMILIES,REDACTED PERSONAL DATA,832,FRIENDS &FAMILY FOST,PAYMENTS TO CARERS,REDACTED,REDACTED
06.04.2022,CHILDREN AND FAMILIES,REDACTED PERSONAL DATA,462,FRIENDS &FAMILY FOST,PAYMENTS TO CARERS,REDACTED,REDACTED
06.04.2022,CHILDREN AND FAMILIES,REDACTED PERSONAL DATA,470,FRIENDS &FAMILY FOST,PAYMENTS TO CARERS,REDACTED,REDACTED
06.04.2022,CHILDREN AND FAMILIES,REDACTED PERSONAL DATA,920,FRIENDS &FAMILY FOST,PAYMENTS TO CARERS,REDACTED,REDACTED
06.04.2022,CHILDREN AND FAMILIES,REDACTED PERSONAL DATA,832,FRIENDS &FAMILY FOST,PAYMENTS TO CARERS,REDACTED,REDACTED
06.04.2022,CHILDREN AND FAMILIES,REDACTED PERSONAL DATA,832,FRIENDS &FAMILY FOST,PAYMENTS TO CARERS,REDACTED,REDACTED
06.04.2022,CHILDREN AND FAMILIES,REDACTED PERSONAL DATA,732,FRIENDS &FAMILY FOST,PAYMENTS TO CARERS,REDACTED,REDACTED
06.04.2022,CHILDREN AND FAMILIES,REDACTED PERSONAL DATA,832,FRIENDS &FAMILY FOST,PAYMENTS TO CARERS,REDACTED,REDACTED
06.04.2022,CHILDREN AND FAMILIES,REDACTED PERSONAL DATA,832,FRIENDS &FAMILY FOST,PAYMENTS TO CARERS,REDACTED,REDACTED
06.04.2022,CHILDREN AND FAMILIES,REDACTED PERSONAL DATA,732,FRIENDS &FAMILY FOST,PAYMENTS TO CARERS,REDACTED,REDACTED
06.04.2022,CHILDREN AND FAMILIES,REDACTED PERSONAL DATA,832,FRIENDS &FAMILY FOST,PAYMENTS TO CARERS,REDACTED,REDACTED
06.04.2022,CHILDREN AND FAMILIES,REDACTED PERSONAL DATA,830,FRIENDS &FAMILY FOST,PAYMENTS TO CARERS,REDACTED,REDACTED
06.04.2022,CHILDREN AND FAMILIES,REDACTED PERSONAL DATA,832,FRIENDS &FAMILY FOST,PAYMENTS TO CARERS,REDACTED,REDACTED
06.04.2022,CHILDREN AND FAMILIES,REDACTED PERSONAL DATA,832,FRIENDS &FAMILY FOST,PAYMENTS TO CARERS,REDACTED,REDACTED
06.04.2022,CHILDREN AND FAMILIES,REDACTED PERSONAL DATA,682,FRIENDS &FAMILY FOST,PAYMENTS TO CARERS,REDACTED,REDACTED
06.04.2022,CHILDREN AND FAMILIES,REDACTED PERSONAL DATA,832,FRIENDS &FAMILY FOST,PAYMENTS TO CARERS,REDACTED,REDACTED
06.04.2022,CHILDREN AND FAMILIES,REDACTED PERSONAL DATA,824,FRIENDS &FAMILY FOST,PAYMENTS TO CARERS,REDACTED,REDACTED
06.04.2022,CHILDREN AND FAMILIES,REDACTED PERSONAL DATA,832,FRIENDS &FAMILY FOST,PAYMENTS TO CARERS,REDACTED,REDACTED
06.04.2022,CHILDREN AND FAMILIES,REDACTED PERSONAL DATA,402,FRIENDS &FAMILY FOST,PAYMENTS TO CARERS,REDACTED,REDACTED
06.04.2022,CHILDREN AND FAMILIES,REDACTED PERSONAL DATA,470,FRIENDS &FAMILY FOST,PAYMENTS TO CARERS,REDACTED,REDACTED
06.04.2022,CHILDREN AND FAMILIES,REDACTED PERSONAL DATA,682,FRIENDS &FAMILY FOST,PAYMENTS TO CARERS,REDACTED,REDACTED
06.04.2022,CHILDREN AND FAMILIES,REDACTED PERSONAL DATA,732,FRIENDS &FAMILY FOST,PAYMENTS TO CARERS,REDACTED,REDACTED
06.04.2022,CHILDREN AND FAMILIES,REDACTED PERSONAL DATA,732,FRIENDS &FAMILY FOST,PAYMENTS TO CARERS,REDACTED,REDACTED
06.04.2022,CHILDREN AND FAMILIES,REDACTED PERSONAL DATA,832,FRIENDS &FAMILY FOST,PAYMENTS TO CARERS,REDACTED,REDACTED
06.04.2022,CHILDREN AND FAMILIES,REDACTED PERSONAL DATA,354,FRIENDS &FAMILY FOST,PAYMENTS TO CARERS,REDACTED,REDACTED
06.04.2022,CHILDREN AND FAMILIES,REDACTED PERSONAL DATA,402,FRIENDS &FAMILY FOST,PAYMENTS TO CARERS,REDACTED,REDACTED
06.04.2022,CHILDREN AND FAMILIES,REDACTED PERSONAL DATA,402,FRIENDS &FAMILY FOST,PAYMENTS TO CARERS,REDACTED,REDACTED
06.04.2022,CHILDREN AND FAMILIES,REDACTED PERSONAL DATA,832,FRIENDS &FAMILY FOST,PAYMENTS TO CARERS,REDACTED,REDACTED
06.04.2022,CHILDREN AND FAMILIES,REDACTED PERSONAL DATA,682,FRIENDS &FAMILY FOST,PAYMENTS TO CARERS,REDACTED,REDACTED
06.04.2022,CHILDREN AND FAMILIES,REDACTED PERSONAL DATA,402,FRIENDS &FAMILY FOST,PAYMENTS TO CARERS,REDACTED,REDACTED
06.04.2022,CHILDREN AND FAMILIES,REDACTED PERSONAL DATA,470,FRIENDS &FAMILY FOST,PAYMENTS TO CARERS,REDACTED,REDACTED
06.04.2022,CHILDREN AND FAMILIES,REDACTED PERSONAL DATA,402,FRIENDS &FAMILY FOST,PAYMENTS TO CARERS,REDACTED,REDACTED
06.04.2022,CHILDREN AND FAMILIES,REDACTED PERSONAL DATA,354,FRIENDS &FAMILY FOST,PAYMENTS TO CARERS,REDACTED,REDACTED
06.04.2022,CHILDREN AND FAMILIES,REDACTED PERSONAL DATA,470,FRIENDS &FAMILY FOST,PAYMENTS TO CARERS,REDACTED,REDACTED
06.04.2022,CHILDREN AND FAMILIES,REDACTED PERSONAL DATA,354,FRIENDS &FAMILY FOST,PAYMENTS TO CARERS,REDACTED,REDACTED
06.04.2022,CHILDREN AND FAMILIES,REDACTED PERSONAL DATA,402,FRIENDS &FAMILY FOST,PAYMENTS TO CARERS,REDACTED,REDACTED
06.04.2022,CHILDREN AND FAMILIES,REDACTED PERSONAL DATA,394,FRIENDS &FAMILY FOST,PAYMENTS TO CARERS,REDACTED,REDACTED
06.04.2022,CHILDREN AND FAMILIES,REDACTED PERSONAL DATA,394,FRIENDS &FAMILY FOST,PAYMENTS TO CARERS,REDACTED,REDACTED
06.04.2022,CHILDREN AND FAMILIES,REDACTED PERSONAL DATA,316,FRIENDS &FAMILY FOST,PAYMENTS TO CARERS,REDACTED,REDACTED
06.04.2022,CHILDREN AND FAMILIES,REDACTED PERSONAL DATA,402,FRIENDS &FAMILY FOST,PAYMENTS TO CARERS,REDACTED,REDACTED
06.04.2022,CHILDREN AND FAMILIES,REDACTED PERSONAL DATA,470,FRIENDS &FAMILY FOST,PAYMENTS TO CARERS,REDACTED,REDACTED
06.04.2022,CHILDREN AND FAMILIES,REDACTED PERSONAL DATA,394,FRIENDS &FAMILY FOST,PAYMENTS TO CARERS,REDACTED,REDACTED
06.04.2022,CHILDREN AND FAMILIES,REDACTED PERSONAL DATA,394,FRIENDS &FAMILY FOST,PAYMENTS TO CARERS,REDACTED,REDACTED
06.04.2022,CHILDREN AND FAMILIES,REDACTED PERSONAL DATA,394,FRIENDS &FAMILY FOST,PAYMENTS TO CARERS,REDACTED,REDACTED
06.04.2022,CHILDREN AND FAMILIES,REDACTED PERSONAL DATA,348,FRIENDS &FAMILY FOST,PAYMENTS TO CARERS,REDACTED,REDACTED
06.04.2022,CHILDREN AND FAMILIES,REDACTED PERSONAL DATA,394,FRIENDS &FAMILY FOST,PAYMENTS TO CARERS,REDACTED,REDACTED
06.04.2022,CHILDREN AND FAMILIES,REDACTED PERSONAL DATA,"1,500.00",LEAVING CARE GRANT,OTHER PAYMENTS FOR CLIENTS,REDACTED,REDACTED
06.04.2022,CHILDREN AND FAMILIES,ZENITH CARS LTD,360,P & R CARE TEAM,CLIENT TRANSPORT,5902520136,1000070570
06.04.2022,CHILDREN AND FAMILIES,SERENITY WELFARE LTD,"2,001.45",P & R CARE TEAM,CLIENT TRANSPORT,5902520175,1000081553
06.04.2022,CHILDREN AND FAMILIES,REDACTED PERSONAL DATA,411.43,SEMI-IND CARELEAVERS,OTHER PAYMENTS FOR CLIENTS,REDACTED,REDACTED
06.04.2022,CHILDREN AND FAMILIES,REDACTED PERSONAL DATA,517.14,SEMI-IND LAC 16-17,OTHER PAYMENTS FOR CLIENTS,REDACTED,REDACTED
06.04.2022,CHILDREN AND FAMILIES,REDACTED PERSONAL DATA,585.71,SEMI-IND LAC 16-17,OTHER PAYMENTS FOR CLIENTS,REDACTED,REDACTED
06.04.2022,CHILDREN AND FAMILIES,ARC COMMUNITY TRUSTEES,650,SPECIAL GUARDIANSHIP,PAYMENTS TO CARERS,5902520150,1000046206
06.04.2022,CHILDREN AND FAMILIES,REDACTED PERSONAL DATA,388.04,SPECIAL GUARDIANSHIP,PAYMENTS TO CARERS,REDACTED,REDACTED
06.04.2022,CHILDREN AND FAMILIES,REDACTED PERSONAL DATA,342.45,SPECIAL GUARDIANSHIP,PAYMENTS TO CARERS,REDACTED,REDACTED
06.04.2022,CHILDREN AND FAMILIES,REDACTED PERSONAL DATA,389.34,SPECIAL GUARDIANSHIP,PAYMENTS TO CARERS,REDACTED,REDACTED
06.04.2022,CHILDREN AND FAMILIES,REDACTED PERSONAL DATA,356.15,SPECIAL GUARDIANSHIP,PAYMENTS TO CARERS,REDACTED,REDACTED
06.04.2022,CHILDREN AND FAMILIES,REDACTED PERSONAL DATA,403.04,SPECIAL GUARDIANSHIP,PAYMENTS TO CARERS,REDACTED,REDACTED
06.04.2022,CHILDREN AND FAMILIES,REDACTED PERSONAL DATA,525,SPECIAL GUARDIANSHIP,PAYMENTS TO CARERS,REDACTED,REDACTED
06.04.2022,CHILDREN AND FAMILIES,REDACTED PERSONAL DATA,341.15,SPECIAL GUARDIANSHIP,PAYMENTS TO CARERS,REDACTED,REDACTED
06.04.2022,CHILDREN AND FAMILIES,REDACTED PERSONAL DATA,338,SPECIAL GUARDIANSHIP,PAYMENTS TO CARERS,REDACTED,REDACTED
06.04.2022,CHILDREN AND FAMILIES,REDACTED PERSONAL DATA,338,SPECIAL GUARDIANSHIP,PAYMENTS TO CARERS,REDACTED,REDACTED
06.04.2022,CHILDREN AND FAMILIES,REDACTED PERSONAL DATA,472.71,SPECIAL GUARDIANSHIP,PAYMENTS TO CARERS,REDACTED,REDACTED
06.04.2022,CHILDREN AND FAMILIES,REDACTED PERSONAL DATA,472.71,SPECIAL GUARDIANSHIP,PAYMENTS TO CARERS,REDACTED,REDACTED
06.04.2022,CHILDREN AND FAMILIES,REDACTED PERSONAL DATA,600,STAYPUT- FOST CARERS,PAYMENTS TO CARERS,REDACTED,REDACTED
06.04.2022,CHILDREN AND FAMILIES,REDACTED PERSONAL DATA,600,STAYPUT- FOST CARERS,PAYMENTS TO CARERS,REDACTED,REDACTED
06.04.2022,CHILDREN AND FAMILIES,REDACTED PERSONAL DATA,600,STAYPUT- FOST CARERS,PAYMENTS TO CARERS,REDACTED,REDACTED
06.04.2022,CHILDREN AND FAMILIES,REDACTED PERSONAL DATA,600,STAYPUT- FOST CARERS,PAYMENTS TO CARERS,REDACTED,REDACTED
06.04.2022,CHILDREN AND FAMILIES,REDACTED PERSONAL DATA,600,STAYPUT- FOST CARERS,PAYMENTS TO CARERS,REDACTED,REDACTED
06.04.2022,CHILDREN AND FAMILIES,REDACTED PERSONAL DATA,600,STAYPUT- FOST CARERS,PAYMENTS TO CARERS,REDACTED,REDACTED
06.04.2022,CHILDREN AND FAMILIES,REDACTED PERSONAL DATA,600,STAYPUT- FOST CARERS,PAYMENTS TO CARERS,REDACTED,REDACTED
06.04.2022,CHILDREN AND FAMILIES,REDACTED PERSONAL DATA,600,STAYPUT- FOST CARERS,PAYMENTS TO CARERS,REDACTED,REDACTED
06.04.2022,CHILDREN AND FAMILIES,REDACTED PERSONAL DATA,600,STAYPUT- FOST CARERS,PAYMENTS TO CARERS,REDACTED,REDACTED
06.04.2022,CHILDREN AND FAMILIES,REDACTED PERSONAL DATA,-300,STAYPUT- FOST CARERS,PAYMENTS TO CARERS,REDACTED,REDACTED
06.04.2022,CHILDREN AND FAMILIES,REDACTED PERSONAL DATA,600,STAYPUT- FOST CARERS,PAYMENTS TO CARERS,REDACTED,REDACTED
06.04.2022,CHILDREN AND FAMILIES,REDACTED PERSONAL DATA,600,STAYPUT- FOST CARERS,PAYMENTS TO CARERS,REDACTED,REDACTED
06.04.2022,CHILDREN AND FAMILIES,REDACTED PERSONAL DATA,"6,771.43",STAYPUT- FOST CARERS,PAYMENTS TO CARERS,REDACTED,REDACTED
06.04.2022,CHILDREN AND FAMILIES,REDACTED PERSONAL DATA,600,STAYPUT- FOST CARERS,PAYMENTS TO CARERS,REDACTED,REDACTED
06.04.2022,CHILDREN AND FAMILIES,REDACTED PERSONAL DATA,600,STAYPUT- FOST CARERS,PAYMENTS TO CARERS,REDACTED,REDACTED
06.04.2022,CHILDREN AND FAMILIES,REDACTED PERSONAL DATA,600,STAYPUT- FOST CARERS,PAYMENTS TO CARERS,REDACTED,REDACTED
06.04.2022,CHILDREN AND FAMILIES,REDACTED PERSONAL DATA,600,STAYPUT- FOST CARERS,PAYMENTS TO CARERS,REDACTED,REDACTED
06.04.2022,CHILDREN AND FAMILIES,REDACTED PERSONAL DATA,600,STAYPUT- FOST CARERS,PAYMENTS TO CARERS,REDACTED,REDACTED
06.04.2022,CHILDREN AND FAMILIES,REDACTED PERSONAL DATA,600,STAYPUT- FOST CARERS,PAYMENTS TO CARERS,REDACTED,REDACTED
06.04.2022,CHILDREN AND FAMILIES,REDACTED PERSONAL DATA,852,STAYPUT- FOST CARERS,PAYMENTS TO CARERS,REDACTED,REDACTED
06.04.2022,CHILDREN AND FAMILIES,REDACTED PERSONAL DATA,600,STAYPUT- FOST CARERS,PAYMENTS TO CARERS,REDACTED,REDACTED
06.04.2022,CHILDREN AND FAMILIES,REDACTED PERSONAL DATA,600,STAYPUT- FOST CARERS,PAYMENTS TO CARERS,REDACTED,REDACTED
06.04.2022,CHILDREN AND FAMILIES,REDACTED PERSONAL DATA,600,STAYPUT- FOST CARERS,PAYMENTS TO CARERS,REDACTED,REDACTED
06.04.2022,CHILDREN AND FAMILIES,REDACTED PERSONAL DATA,600,STAYPUT- FOST CARERS,PAYMENTS TO CARERS,REDACTED,REDACTED
06.04.2022,CHILDREN AND FAMILIES,REDACTED PERSONAL DATA,656,STAYPUT- FOST CARERS,PAYMENTS TO CARERS,REDACTED,REDACTED
06.04.2022,CHILDREN AND FAMILIES,REDACTED PERSONAL DATA,600,STAYPUT- FOST CARERS,PAYMENTS TO CARERS,REDACTED,REDACTED
06.04.2022,CHILDREN AND FAMILIES,REDACTED PERSONAL DATA,600,STAYPUT- FOST CARERS,PAYMENTS TO CARERS,REDACTED,REDACTED
06.04.2022,CHILDREN AND FAMILIES,REDACTED PERSONAL DATA,600,STAYPUT- FOST CARERS,PAYMENTS TO CARERS,REDACTED,REDACTED
06.04.2022,CHILDREN AND FAMILIES,REDACTED PERSONAL DATA,600,STAYPUT- FOST CARERS,PAYMENTS TO CARERS,REDACTED,REDACTED
06.04.2022,CHILDREN AND FAMILIES,REDACTED PERSONAL DATA,600,STAYPUT- FOST CARERS,PAYMENTS TO CARERS,REDACTED,REDACTED
06.04.2022,CHILDREN AND FAMILIES,REDACTED PERSONAL DATA,265.4,STAYPUT- FOST CARERS,PAYMENTS TO CARERS,REDACTED,REDACTED
06.04.2022,CHILDREN AND FAMILIES,REDACTED PERSONAL DATA,832,STAYPUT- FOST CARERS,PAYMENTS TO CARERS,REDACTED,REDACTED
06.04.2022,CHILDREN AND FAMILIES,REDACTED PERSONAL DATA,600,STAYPUT- FOST CARERS,PAYMENTS TO CARERS,REDACTED,REDACTED
06.04.2022,CHILDREN AND FAMILIES,REDACTED PERSONAL DATA,600,STAYPUT- FOST CARERS,PAYMENTS TO CARERS,REDACTED,REDACTED
06.04.2022,CHILDREN AND FAMILIES,REDACTED PERSONAL DATA,600,STAYPUT- FOST CARERS,PAYMENTS TO CARERS,REDACTED,REDACTED
06.04.2022,CHILDREN AND FAMILIES,REDACTED PERSONAL DATA,600,STAYPUT- FOST CARERS,PAYMENTS TO CARERS,REDACTED,REDACTED
06.04.2022,CHILDREN AND FAMILIES,REDACTED PERSONAL DATA,600,STAYPUT- FOST CARERS,PAYMENTS TO CARERS,REDACTED,REDACTED
06.04.2022,CHILDREN AND FAMILIES,REDACTED PERSONAL DATA,656,STAYPUT- FOST CARERS,PAYMENTS TO CARERS,REDACTED,REDACTED
06.04.2022,CHILDREN AND FAMILIES,REDACTED PERSONAL DATA,492.85,STAYPUT- FOST CARERS,PAYMENTS TO CARERS,REDACTED,REDACTED
06.04.2022,CHILDREN AND FAMILIES,REDACTED PERSONAL DATA,900,STAYPUT- FOST CARERS,PAYMENTS TO CARERS,REDACTED,REDACTED
06.04.2022,CHILDREN AND FAMILIES,REDACTED PERSONAL DATA,900,STAYPUT- FOST CARERS,PAYMENTS TO CARERS,REDACTED,REDACTED
06.04.2022,CHILDREN AND FAMILIES,REDACTED PERSONAL DATA,600,STAYPUT- FOST CARERS,PAYMENTS TO CARERS,REDACTED,REDACTED
06.04.2022,CHILDREN AND FAMILIES,REDACTED PERSONAL DATA,600,STAYPUT- FOST CARERS,PAYMENTS TO CARERS,REDACTED,REDACTED
06.04.2022,CHILDREN AND FAMILIES,REDACTED PERSONAL DATA,600,STAYPUT- FOST CARERS,PAYMENTS TO CARERS,REDACTED,REDACTED
06.04.2022,CHILDREN AND FAMILIES,REDACTED PERSONAL DATA,600,STAYPUT- FOST CARERS,PAYMENTS TO CARERS,REDACTED,REDACTED
06.04.2022,CHILDREN AND FAMILIES,ZENITH CARS LTD,560,TEAM B,CLIENT TRANSPORT,5902520135,1000070570
06.04.2022,CHILDREN AND FAMILIES,ZENITH CARS LTD,"2,245.00",TEAM C,CLIENT TRANSPORT,5902520135,1000070570
06.04.2022,COMMUNITIES,NHS SOUTH EAST LONDON CCG,"33,640.00",ADULT SM S75 (INSTEAD OF PHARMACY SM),OTHER CONTRACTORS,5902520089,1000085592
06.04.2022,COMMUNITIES,NHS SOUTH EAST LONDON CCG,"7,034.00",DRUG TREATMENT INTERVENTIONS,OTHER CONTRACTORS,5902520090,1000085592
06.04.2022,COMMUNITIES,SOUTHWARK CITIZENS ADVICE,"150,000.00",LEGAL GRANTS,EXTERNAL AGENCIES AND BODIES,5902520129,1874379
06.04.2022,COMMUNITIES,REDACTED PERSONAL DATA,685.33,NO RECOURSE TO PUBLIC FUNDS,HOMECARE - C&V,REDACTED,REDACTED
06.04.2022,COMMUNITIES,REDACTED PERSONAL DATA,694,NO RECOURSE TO PUBLIC FUNDS,HOMECARE - C&V,REDACTED,REDACTED
06.04.2022,COMMUNITIES,SOMALI INTEGRATION & DEVELOPMENT ASSOCIATION,"14,000.00",VCS GRANTS,GRANTS,5902520138,11048946
06.04.2022,COMMUNITIES,PECAN LTD,"6,500.00",VCS GRANTS,GRANTS,5902520140,11263114
06.04.2022,COMMUNITIES,PECAN LTD,"7,375.00",VCS GRANTS,GRANTS,5902520139,11263114
06.04.2022,COMMUNITIES,SOUTHWARK PENSIONERS CENTRE,"25,855.25",VCS GRANTS,GRANTS,5902520141,1000027831
06.04.2022,COMMUNITIES,THE MANNA CENTRE,"13,750.00",VCS GRANTS,GRANTS,5902520142,1000048508
06.04.2022,CUSTOMER EXPERIENCE HGF,ABLE 2 OCCUPATIONAL THERAPY SERVICE,784,BLUE BADGES,PROFESSIONAL FEES,5902520208,1000064695
06.04.2022,CUSTOMER EXPERIENCE HGF,IMPERIAL COLLEGE PROJECTS LTD,292,CORONER'S,PROFESSIONAL FEES,5902520202,1000080106
06.04.2022,CUSTOMER EXPERIENCE HGF,IMPERIAL COLLEGE PROJECTS LTD,292,CORONER'S,PROFESSIONAL FEES,5902520222,1000080106
06.04.2022,CUSTOMER EXPERIENCE HGF,IMPERIAL COLLEGE PROJECTS LTD,292,CORONER'S,PROFESSIONAL FEES,5902520225,1000080106
06.04.2022,CUSTOMER EXPERIENCE HGF,IMPERIAL COLLEGE PROJECTS LTD,312,CORONER'S,PROFESSIONAL FEES,5902520182,1000080106
06.04.2022,CUSTOMER EXPERIENCE HGF,IMPERIAL COLLEGE PROJECTS LTD,336,CORONER'S,PROFESSIONAL FEES,5902520209,1000080106
06.04.2022,CUSTOMER EXPERIENCE HGF,IMPERIAL COLLEGE PROJECTS LTD,356,CORONER'S,PROFESSIONAL FEES,5902520215,1000080106
06.04.2022,CUSTOMER EXPERIENCE HGF,IMPERIAL COLLEGE PROJECTS LTD,356,CORONER'S,PROFESSIONAL FEES,5902520226,1000080106
06.04.2022,CUSTOMER EXPERIENCE HGF,IMPERIAL COLLEGE PROJECTS LTD,508,CORONER'S,PROFESSIONAL FEES,5902520180,1000080106
06.04.2022,CUSTOMER EXPERIENCE HGF,IMPERIAL COLLEGE PROJECTS LTD,516,CORONER'S,PROFESSIONAL FEES,5902520174,1000080106
06.04.2022,CUSTOMER EXPERIENCE HGF,IMPERIAL COLLEGE PROJECTS LTD,540,CORONER'S,PROFESSIONAL FEES,5902520172,1000080106
06.04.2022,CUSTOMER EXPERIENCE HGF,IMPERIAL COLLEGE PROJECTS LTD,636,CORONER'S,PROFESSIONAL FEES,5902520168,1000080106
06.04.2022,CUSTOMER EXPERIENCE HGF,IMPERIAL COLLEGE PROJECTS LTD,636,CORONER'S,PROFESSIONAL FEES,5902520171,1000080106
06.04.2022,DSG,HARRIS BOYS ACADEMY EAST DULWICH,"2,276.92",AC & FREE - MSTREAM,STATEMENTED FEES,2103413093,1000079700
06.04.2022,DSG,HARRIS BOYS ACADEMY EAST DULWICH,"2,687.18",AC & FREE - MSTREAM,STATEMENTED FEES,2103413098,1000079700
06.04.2022,DSG,HARRIS BOYS ACADEMY EAST DULWICH,"5,374.36",AC & FREE - MSTREAM,STATEMENTED FEES,2103413091,1000079700
06.04.2022,DSG,HARRIS BOYS ACADEMY EAST DULWICH,"5,374.36",AC & FREE - MSTREAM,STATEMENTED FEES,2103413092,1000079700
06.04.2022,DSG,HARRIS BOYS ACADEMY EAST DULWICH,"5,374.36",AC & FREE - MSTREAM,STATEMENTED FEES,2103413094,1000079700
06.04.2022,DSG,HARRIS BOYS ACADEMY EAST DULWICH,"5,374.36",AC & FREE - MSTREAM,STATEMENTED FEES,2103413095,1000079700
06.04.2022,DSG,HARRIS BOYS ACADEMY EAST DULWICH,"5,374.36",AC & FREE - MSTREAM,STATEMENTED FEES,2103413096,1000079700
06.04.2022,DSG,HARRIS BOYS ACADEMY EAST DULWICH,"8,061.54",AC & FREE - MSTREAM,STATEMENTED FEES,2103413097,1000079700
06.04.2022,DSG,HARRIS BOYS ACADEMY EAST DULWICH,"8,541.87",AC & FREE - MSTREAM,STATEMENTED FEES,2103413090,1000079700
06.04.2022,DSG,SPA EDUCATION TRUST,"8,740.11",AC & FREE - MSTREAM,STATEMENTED FEES,2103413099,1000081600
06.04.2022,DSG,ACTIVE RECRUITMENT SEN LTD,973.2,AP & HOSPITAL SCHLS,STATEMENTED FEES,2103413107,1000078380
06.04.2022,DSG,CARBONE CLINIC UK LTD,"1,350.00",AP & HOSPITAL SCHLS,STATEMENTED FEES,2103413103,1000080937
06.04.2022,DSG,CARBONE CLINIC UK LTD,"1,350.00",AP & HOSPITAL SCHLS,STATEMENTED FEES,2103413104,1000080937
06.04.2022,DSG,CARBONE CLINIC UK LTD,"1,350.00",AP & HOSPITAL SCHLS,STATEMENTED FEES,2103413105,1000080937
06.04.2022,DSG,CARBONE CLINIC UK LTD,"1,800.00",AP & HOSPITAL SCHLS,STATEMENTED FEES,2103413102,1000080937
06.04.2022,DSG,ADVANCEMENTS ABA LTD,400,AP & HOSPITAL SCHLS,STATEMENTED FEES,2103413110,1000081719
06.04.2022,DSG,ADVANCEMENTS ABA LTD,400,AP & HOSPITAL SCHLS,STATEMENTED FEES,2103413113,1000081719
06.04.2022,DSG,ADVANCEMENTS ABA LTD,400,AP & HOSPITAL SCHLS,STATEMENTED FEES,2103413115,1000081719
06.04.2022,DSG,ADVANCEMENTS ABA LTD,400,AP & HOSPITAL SCHLS,STATEMENTED FEES,2103413117,1000081719
06.04.2022,DSG,ADVANCEMENTS ABA LTD,800,AP & HOSPITAL SCHLS,STATEMENTED FEES,2103413114,1000081719
06.04.2022,DSG,ADVANCEMENTS ABA LTD,"1,200.00",AP & HOSPITAL SCHLS,STATEMENTED FEES,2103413116,1000081719
06.04.2022,DSG,ADVANCEMENTS ABA LTD,"1,525.00",AP & HOSPITAL SCHLS,STATEMENTED FEES,2103413109,1000081719
06.04.2022,DSG,ADVANCEMENTS ABA LTD,"1,550.00",AP & HOSPITAL SCHLS,STATEMENTED FEES,2103413111,1000081719
06.04.2022,DSG,ADVANCEMENTS ABA LTD,"2,275.00",AP & HOSPITAL SCHLS,STATEMENTED FEES,2103413112,1000081719
06.04.2022,DSG,ASPIRE JC LTD,"3,600.00",AP & HOSPITAL SCHLS,STATEMENTED FEES,2103413108,1000083919
06.04.2022,DSG,HARRIS BOYS ACADEMY EAST DULWICH,"4,140.00",HOLIDAY SCHL MEAL VOUCHERS,SCHOOLS CAPITATION,2103401806,1000079700
06.04.2022,DSG,CRESSEY OASIS EDUCATION LTD,"23,559.96",NMSS/ INDEP SPECIAL,STATEMENTED FEES,2103413106,1000068133
06.04.2022,DSG,EAGLE HOUSE (MITCHAM) LTD,"8,707.67",NMSS/ INDEP SPECIAL,STATEMENTED FEES,2103413100,1000071156
06.04.2022,DSG,ST MARY MAGDALENE CE SCHOOL,"90,464.00",ST MARY MAGDALENE CE PRIMARY SCHOOL,SCHOOLS CAPITATION,5902519519,5001000080
06.04.2022,ENVIRONMENT AND LEISURE,F M CONWAY LTD,"265,000.00",CAPITAL PS (LEISURE),CONSTRUCTION FEES  - EXTERNAL,2103411955,4001384
06.04.2022,ENVIRONMENT AND LEISURE,BRANDON 1 TRA,"1,731.29",CAPITAL PS (LEISURE),CAPITAL GRANTS,5902520184,1000051013
06.04.2022,ENVIRONMENT AND LEISURE,COMPLETE ECOLOGY LTD,"2,900.00",CAPITAL PS (LEISURE),CONST'N MAIN CONTRACT - NON CERTIFICATED,2103413071,3000001840
06.04.2022,ENVIRONMENT AND LEISURE,RELIANCE HIGH-TECH LTD,"1,731.95",SERVICE DEVELOPMENT TEAM,OFFICE EXPENSES,5902520103,1000079374
06.04.2022,ENVIRONMENT DIRECTORATE,M H COACHWORKS & SONS LTD,628.4,COMMERCIAL VEH CTRL A/C,VEHICLE REPAIRS & MAINTENANCE,5902520187,1000033495
06.04.2022,ENVIRONMENT DIRECTORATE,M H COACHWORKS & SONS LTD,687.74,COMMERCIAL VEH CTRL A/C,VEHICLE REPAIRS & MAINTENANCE,5902520194,1000033495
06.04.2022,ENVIRONMENT DIRECTORATE,M H COACHWORKS & SONS LTD,"1,121.94",COMMERCIAL VEH CTRL A/C,VEHICLE REPAIRS & MAINTENANCE,5902520195,1000033495
06.04.2022,ENVIRONMENT DIRECTORATE,M H COACHWORKS & SONS LTD,"1,424.39",COMMERCIAL VEH CTRL A/C,VEHICLE REPAIRS & MAINTENANCE,5902520193,1000033495
06.04.2022,ENVIRONMENT DIRECTORATE,ENTERPRISE FLEX E RENT,692.35,COMMERCIAL VEH CTRL A/C,HIRED VEHICLES,5902520248,1000069585
06.04.2022,ENVIRONMENT DIRECTORATE,UNIVERSAL TYRE & AUTOCENTRES,252.5,COMMERCIAL VEH CTRL A/C,OTHER VEHICLE RUNNING COSTS,5902520256,1000072475
06.04.2022,ENVIRONMENT DIRECTORATE,SPALDINGS (UK) LTD,457.5,GROUNDS MAINTENANCE - GENERAL,MATERIALS,5902520087,1907384
06.04.2022,ENVIRONMENT DIRECTORATE,MARWOOD ELECTRICAL COMPANY LTD,"1,301.40",PUBLIC LIGHTING,MATERIALS,5902520218,1001874
06.04.2022,ENVIRONMENT DIRECTORATE,MARWOOD ELECTRICAL COMPANY LTD,"8,051.54",PUBLIC LIGHTING,MATERIALS,5902520219,1001874
06.04.2022,ENVIRONMENT DIRECTORATE,MARWOOD ELECTRICAL COMPANY LTD,"10,966.64",PUBLIC LIGHTING,MATERIALS,5902520221,1001874
06.04.2022,ENVIRONMENT DIRECTORATE,PARTNERSHIP MEDIA GROUP,590,RESIDENTIAL SERVICES,TRAINING,5902519817,1000050132
06.04.2022,ENVIRONMENT DIRECTORATE,GLASDON UK LIMITED,"2,897.62",STREET CLEANING-GENERAL,MATERIALS,5902520148,1024073
06.04.2022,ENVIRONMENT DIRECTORATE,VEOLIA ES SOUTHWARK LTD,"40,674.70",WASTE PFI,VEHICLE FUEL,5902520279,1000056979
06.04.2022,F & C S EXCLUDING CORPORATE BUDGETS,CIPFA BUSINESS LTD,"4,685.00",CORPORATE SERVICES AND F&G,SUBSCRIPTIONS,5902520082,1000024688
06.04.2022,F & C S EXCLUDING CORPORATE BUDGETS,CIPFA BUSINESS LTD,"5,600.00",CORPORATE SERVICES AND F&G,SUBSCRIPTIONS,5902520105,1000024688
06.04.2022,F & C S EXCLUDING CORPORATE BUDGETS,HARRIS BOYS ACADEMY EAST DULWICH,"-8,498.29",FC&P PROCESSING,OFFICE EXPENSES,2103393527,1000079700
06.04.2022,F & C S EXCLUDING CORPORATE BUDGETS,HARRIS BOYS ACADEMY EAST DULWICH,"-8,498.29",FC&P PROCESSING,OFFICE EXPENSES,2103393528,1000079700
06.04.2022,F & C S EXCLUDING CORPORATE BUDGETS,HARRIS BOYS ACADEMY EAST DULWICH,"-2,673.47",FC&P PROCESSING,OFFICE EXPENSES,2103393529,1000079700
06.04.2022,F & C S EXCLUDING CORPORATE BUDGETS,HARRIS BOYS ACADEMY EAST DULWICH,"-2,673.47",FC&P PROCESSING,OFFICE EXPENSES,2103393530,1000079700
06.04.2022,F & C S EXCLUDING CORPORATE BUDGETS,CIPFA BUSINESS LTD,"3,835.00",FINANCIAL GOVERNANCE,SUBSCRIPTIONS,5902520102,1000024688
06.04.2022,F & C S EXCLUDING CORPORATE BUDGETS,BDO LLP,"22,005.00",INTERNAL AUDIT CONTRACTS,PAYMENTS FOR FINANCIAL SERVICES,5902520122,1000057898
06.04.2022,F & C S EXCLUDING CORPORATE BUDGETS,CONTACT PROPERTY TRAINING LTD,280,NNDR,TRAINING,5902520124,1000037875
06.04.2022,F & C S EXCLUDING CORPORATE BUDGETS,CONTACT PROPERTY TRAINING LTD,280,NNDR,TRAINING,5902520125,1000037875
06.04.2022,F & C S EXCLUDING CORPORATE BUDGETS,REDACTED PERSONAL DATA,500,TEST AND TRACE GRANT,OTHER PAYMENTS FOR CLIENTS,REDACTED,REDACTED
06.04.2022,F & C S EXCLUDING CORPORATE BUDGETS,REDACTED PERSONAL DATA,500,TEST AND TRACE GRANT,OTHER PAYMENTS FOR CLIENTS,REDACTED,REDACTED
06.04.2022,F & C S EXCLUDING CORPORATE BUDGETS,REDACTED PERSONAL DATA,500,TEST AND TRACE GRANT,OTHER PAYMENTS FOR CLIENTS,REDACTED,REDACTED
06.04.2022,F & C S EXCLUDING CORPORATE BUDGETS,REDACTED PERSONAL DATA,500,TEST AND TRACE GRANT,OTHER PAYMENTS FOR CLIENTS,REDACTED,REDACTED
06.04.2022,F & C S EXCLUDING CORPORATE BUDGETS,REDACTED PERSONAL DATA,500,TEST AND TRACE GRANT,OTHER PAYMENTS FOR CLIENTS,REDACTED,REDACTED
06.04.2022,F & C S EXCLUDING CORPORATE BUDGETS,REDACTED PERSONAL DATA,500,TEST AND TRACE GRANT,OTHER PAYMENTS FOR CLIENTS,REDACTED,REDACTED
06.04.2022,F & C S EXCLUDING CORPORATE BUDGETS,REDACTED PERSONAL DATA,500,TEST AND TRACE GRANT,OTHER PAYMENTS FOR CLIENTS,REDACTED,REDACTED
06.04.2022,F & C S EXCLUDING CORPORATE BUDGETS,REDACTED PERSONAL DATA,500,TEST AND TRACE GRANT,OTHER PAYMENTS FOR CLIENTS,REDACTED,REDACTED
06.04.2022,F & C S EXCLUDING CORPORATE BUDGETS,REDACTED PERSONAL DATA,500,TEST AND TRACE GRANT,OTHER PAYMENTS FOR CLIENTS,REDACTED,REDACTED
06.04.2022,F & C S EXCLUDING CORPORATE BUDGETS,REDACTED PERSONAL DATA,500,TEST AND TRACE GRANT,OTHER PAYMENTS FOR CLIENTS,REDACTED,REDACTED
06.04.2022,F & C S EXCLUDING CORPORATE BUDGETS,REDACTED PERSONAL DATA,500,TEST AND TRACE GRANT,OTHER PAYMENTS FOR CLIENTS,REDACTED,REDACTED
06.04.2022,F & C S EXCLUDING CORPORATE BUDGETS,REDACTED PERSONAL DATA,500,TEST AND TRACE GRANT,OTHER PAYMENTS FOR CLIENTS,REDACTED,REDACTED
06.04.2022,F & C S EXCLUDING CORPORATE BUDGETS,REDACTED PERSONAL DATA,500,TEST AND TRACE GRANT,OTHER PAYMENTS FOR CLIENTS,REDACTED,REDACTED
06.04.2022,F & C S EXCLUDING CORPORATE BUDGETS,REDACTED PERSONAL DATA,500,TEST AND TRACE GRANT,OTHER PAYMENTS FOR CLIENTS,REDACTED,REDACTED
06.04.2022,F & C S EXCLUDING CORPORATE BUDGETS,REDACTED PERSONAL DATA,500,TEST AND TRACE GRANT,OTHER PAYMENTS FOR CLIENTS,REDACTED,REDACTED
06.04.2022,F & C S EXCLUDING CORPORATE BUDGETS,REDACTED PERSONAL DATA,500,TEST AND TRACE GRANT,OTHER PAYMENTS FOR CLIENTS,REDACTED,REDACTED
06.04.2022,F & C S EXCLUDING CORPORATE BUDGETS,REDACTED PERSONAL DATA,500,TEST AND TRACE GRANT,OTHER PAYMENTS FOR CLIENTS,REDACTED,REDACTED
06.04.2022,F & C S EXCLUDING CORPORATE BUDGETS,REDACTED PERSONAL DATA,500,TEST AND TRACE GRANT,OTHER PAYMENTS FOR CLIENTS,REDACTED,REDACTED
06.04.2022,F & C S EXCLUDING CORPORATE BUDGETS,REDACTED PERSONAL DATA,500,TEST AND TRACE GRANT,OTHER PAYMENTS FOR CLIENTS,REDACTED,REDACTED
06.04.2022,F & C S EXCLUDING CORPORATE BUDGETS,REDACTED PERSONAL DATA,500,TEST AND TRACE GRANT,OTHER PAYMENTS FOR CLIENTS,REDACTED,REDACTED
06.04.2022,F & C S EXCLUDING CORPORATE BUDGETS,REDACTED PERSONAL DATA,500,TEST AND TRACE GRANT,OTHER PAYMENTS FOR CLIENTS,REDACTED,REDACTED
06.04.2022,F & C S EXCLUDING CORPORATE BUDGETS,REDACTED PERSONAL DATA,500,TEST AND TRACE GRANT,OTHER PAYMENTS FOR CLIENTS,REDACTED,REDACTED
06.04.2022,F & C S EXCLUDING CORPORATE BUDGETS,REDACTED PERSONAL DATA,500,TEST AND TRACE GRANT,OTHER PAYMENTS FOR CLIENTS,REDACTED,REDACTED
06.04.2022,F & C S EXCLUDING CORPORATE BUDGETS,REDACTED PERSONAL DATA,500,TEST AND TRACE GRANT,OTHER PAYMENTS FOR CLIENTS,REDACTED,REDACTED
06.04.2022,HOUSING HRA,POTTER RAPER LTD,"6,801.06",CAPITAL PS (HRA),CONSTRUCTION FEES  - EXTERNAL,5902520246,1009369
06.04.2022,HOUSING HRA,POTTER RAPER LTD,"34,005.27",CAPITAL PS (HRA),CONSTRUCTION FEES - EMPLOYERS AGENT,5902520246,1009369
06.04.2022,HOUSING HRA,VPS (UK) LTD,575.12,CAPITAL PS (HRA),CONSTRUCTION FEES  - EXTERNAL,5902520199,1000040614
06.04.2022,HOUSING HRA,VPS (UK) LTD,"1,269.38",CAPITAL PS (HRA),CONSTRUCTION FEES  - EXTERNAL,5902520196,1000040614
06.04.2022,HOUSING HRA,VPS (UK) LTD,"15,528.24",CAPITAL PS (HRA),CONSTRUCTION FEES  - EXTERNAL,5902520196,1000040614
06.04.2022,HOUSING HRA,WALDRAMS LTD,"10,500.00",CAPITAL PS (HRA),CONSTRUCTION FEES  - EXTERNAL,5902520095,1000083705
06.04.2022,HOUSING HRA,TERRAIN SURVEYS LTD,750,CAPITAL PS (HRA),CONSTRUCTION FEES  - EXTERNAL,5902520235,1000084727
06.04.2022,HOUSING HRA,NIGEL CONWAY,"1,250.00",CAPITAL PS (HRA),CONSTRUCTION FEES  - EXTERNAL,5902520092,1000088096
06.04.2022,LEISURE DIRECTORATE,DARE 2 DISRUPT LTD,600,ARTS PROJECT,CONSULTANTS SERVICES,5902520177,1000086764
06.04.2022,LEISURE DIRECTORATE,WESTMINSTER WASTE,"1,659.00",CEMETERIES,OTHER CONTRACTORS,5902519889,1000080933
06.04.2022,LEISURE DIRECTORATE,PECKHAM FESTIVAL CIC,"1,400.00",CULTURAL CELEBRATIONS FUND,GRANTS,5902520111,1000081352
06.04.2022,LEISURE DIRECTORATE,TECHNICAL SURFACES,390,DAMILOLA TAYLOR CENTRE,EQUIPMENT PURCHASE & REPAIR,5902520273,1000011451
06.04.2022,LEISURE DIRECTORATE,METER MACS LTD,"5,865.60",SDM BUDGET,SERVICE CHARGES,5902520223,1000073624
06.04.2022,LEISURE DIRECTORATE,C S G (USHERS) LTD,"1,501.50",TREES PRINCIPAL ROADS,TREE MAINTENANCE,5902520134,1000073203
06.04.2022,LEISURE DIRECTORATE,C S G (USHERS) LTD,"1,530.00",TREES PRINCIPAL ROADS,TREE MAINTENANCE,5902520133,1000073203
06.04.2022,PLANNING AND TRANSPORT,CANON UK LTD,"2,976.00",CHARGEABLE BUILDING CONTROL,COMPUTER MAINTENANCE,5902520084,1000013896
06.04.2022,PLANNING AND TRANSPORT,CANON UK LTD,"2,976.00",DEV MGT ADMIN & INCOME,COMPUTER MAINTENANCE,5902520084,1000013896
06.04.2022,REGENERATION,ZURICH MUNICIPAL,"261,013.51",CPHA  MANAGED PROPERTIES,PROPERTY INSURANCE COSTS,5902520088,11011168
06.04.2022,REGENERATION,CANON UK LTD,"2,976.00",PROPERTY SERVICES,COMPUTER MAINTENANCE,5902520084,1000013896
06.04.2022,RESIDENT SERVICES,PARTNERSHIP MEDIA GROUP,445,COMPLEX CASE,TRAINING,5902518401,1000050132
06.04.2022,RESIDENT SERVICES,KENT COUNTY COUNCIL - LASER,903.2,NORTHCOTT HOUSE,CATERING MATERIALS & SUPPLIES,5902520167,1000012926
06.04.2022,RESIDENT SERVICES,MILES & PARTNERS SOLICITORS,"25,000.00",SPECIAL INVESTIGATIONS,LEGAL FEES & COURT COSTS,5902520259,1000047453
06.04.2022,RESIDENT SERVICES,KENT COUNTY COUNCIL - LASER,252.89,SUPPORTED HOSTELS,CATERING MATERIALS & SUPPLIES,5902520192,1000012926
06.04.2022,RESIDENT SERVICES,KENT COUNTY COUNCIL - LASER,362.71,SUPPORTED HOSTELS,CATERING MATERIALS & SUPPLIES,5902520201,1000012926
06.04.2022,RESIDENT SERVICES,KENT COUNTY COUNCIL - LASER,515.18,SUPPORTED HOSTELS,CATERING MATERIALS & SUPPLIES,5902520234,1000012926
06.04.2022,RESIDENT SERVICES,KENT COUNTY COUNCIL - LASER,856.22,SUPPORTED HOSTELS,CATERING MATERIALS & SUPPLIES,5902520197,1000012926
06.04.2022,RESIDENT SERVICES,KENT COUNTY COUNCIL - LASER,283.57,TA HOSTELS,ELECTRICITY,5902520247,1000012926
06.04.2022,RESIDENT SERVICES,KENT COUNTY COUNCIL - LASER,478.68,TA HOSTELS,ELECTRICITY,5902520229,1000012926
06.04.2022,RESIDENT SERVICES,KENT COUNTY COUNCIL - LASER,622.7,TA HOSTELS,ELECTRICITY,5902520231,1000012926
06.04.2022,RESIDENT SERVICES,KENT COUNTY COUNCIL - LASER,"1,325.56",TA HOSTELS,ELECTRICITY,5902520230,1000012926
06.04.2022,RESIDENT SERVICES,KINDLY PROPERTIES LTD,255,TA PLACEMENTS,EXTERNAL AGENCIES AND BODIES,5902520118,1000060734
06.04.2022,RESIDENT SERVICES,KINDLY PROPERTIES LTD,"1,404.00",TA PLACEMENTS,EXTERNAL AGENCIES AND BODIES,5902520114,1000060734
06.04.2022,RESIDENT SERVICES,KINDLY PROPERTIES LTD,"1,581.00",TA PLACEMENTS,EXTERNAL AGENCIES AND BODIES,5902520117,1000060734
06.04.2022,RESIDENT SERVICES,KINDLY PROPERTIES LTD,"2,193.00",TA PLACEMENTS,EXTERNAL AGENCIES AND BODIES,5902520116,1000060734
06.04.2022,RESIDENT SERVICES,NORBURY PROPERTY SERVICES (LONDON) LTD,"9,541.50",TA PLACEMENTS,EXTERNAL AGENCIES AND BODIES,5902520104,1000075566
06.04.2022,RESIDENT SERVICES,THOMSON REUTERS PROFESSIONAL UK LTD,708,WALWORTH EAST,BOOKS & PUBLICATIONS,5902520178,1000000130
06.04.2022,RESIDENT SERVICES HGF,FRESHVIEW ESTATES LTD,"4,185.00",HOMELESS PROJECTS,GRANTS,5902520086,1000081189
06.04.2022,RESIDENT SERVICES HGF,FRESHVIEW ESTATES LTD,"4,572.00",HOMELESS PROJECTS,GRANTS,5902520080,1000081189
06.04.2022,RESIDENT SERVICES HGF,FRESHVIEW ESTATES,"3,572.95",HOMELESS PROJECTS,GRANTS,5902520079,1000086397
06.04.2022,RESIDENT SERVICES HGF,SOCIAL HOUSING LONDON LTD,"4,000.00",HOMELESS PROJECTS,GRANTS,5902520250,1000087010
06.04.2022,RESIDENT SERVICES HGF,SPITIA LIMITED,"3,260.00",HOUSING OPTIONS,EXTERNAL AGENCIES AND BODIES,5902520243,1000088263
06.04.2022,RESIDENT SERVICES HGF,MAIER LANG LIMITED,"28,420.40",NIGHTLY TA (NSC),EXTERNAL AGENCIES AND BODIES,5902520160,1000084930
06.04.2022,RESIDENT SERVICES HGF,TKC HOUSING LIMITED,"48,312.97",PSL PLACEMENTS,EXTERNAL AGENCIES AND BODIES,5902520091,1000088199
06.04.2022,RESIDENT SERVICES HGF,J & M OASIS LTD,767,RAPID REHOUSING,EXTERNAL AGENCIES AND BODIES,5902520100,1000072169
07.04.2022,ADULT SOCIAL CARE,HEALTH ADVOCACY UK LTD,325,CHC ADVOCACY- OP/PD,EXTERNAL AGENCIES AND BODIES,5902520426,1000082156
07.04.2022,ADULT SOCIAL CARE,REDACTED PERSONAL DATA,624.6,LD LTS 18-64,SUPPORTED LIVING,REDACTED,REDACTED
07.04.2022,ADULT SOCIAL CARE,REDACTED PERSONAL DATA,832.8,LD LTS 18-64,SUPPORTED LIVING,REDACTED,REDACTED
07.04.2022,ADULT SOCIAL CARE,REDACTED PERSONAL DATA,"1,041.00",LD LTS 18-64,SUPPORTED LIVING,REDACTED,REDACTED
07.04.2022,ADULT SOCIAL CARE,REDACTED PERSONAL DATA,364.35,MH LTS 18-64,HOMECARE - SPOT,REDACTED,REDACTED
07.04.2022,ADULT SOCIAL CARE,REDACTED PERSONAL DATA,277.6,MH LTS 18-64,SUPPORTED LIVING,REDACTED,REDACTED
07.04.2022,ADULT SOCIAL CARE,REDACTED PERSONAL DATA,277.6,MH LTS 18-64,SUPPORTED LIVING,REDACTED,REDACTED
07.04.2022,ADULT SOCIAL CARE,REDACTED PERSONAL DATA,277.6,MH LTS 18-64,SUPPORTED LIVING,REDACTED,REDACTED
07.04.2022,ADULT SOCIAL CARE,REDACTED PERSONAL DATA,277.6,MH LTS 18-64,SUPPORTED LIVING,REDACTED,REDACTED
07.04.2022,ADULT SOCIAL CARE,REDACTED PERSONAL DATA,277.6,MH LTS 18-64,SUPPORTED LIVING,REDACTED,REDACTED
07.04.2022,ADULT SOCIAL CARE,REDACTED PERSONAL DATA,277.6,MH LTS 18-64,SUPPORTED LIVING,REDACTED,REDACTED
07.04.2022,ADULT SOCIAL CARE,REDACTED PERSONAL DATA,277.6,MH LTS 18-64,SUPPORTED LIVING,REDACTED,REDACTED
07.04.2022,ADULT SOCIAL CARE,REDACTED PERSONAL DATA,277.6,MH LTS 18-64,SUPPORTED LIVING,REDACTED,REDACTED
07.04.2022,ADULT SOCIAL CARE,REDACTED PERSONAL DATA,282.75,MH LTS 18-64,SUPPORTED LIVING,REDACTED,REDACTED
07.04.2022,ADULT SOCIAL CARE,REDACTED PERSONAL DATA,312.3,MH LTS 18-64,SUPPORTED LIVING,REDACTED,REDACTED
07.04.2022,ADULT SOCIAL CARE,REDACTED PERSONAL DATA,312.3,MH LTS 18-64,SUPPORTED LIVING,REDACTED,REDACTED
07.04.2022,ADULT SOCIAL CARE,REDACTED PERSONAL DATA,347,MH LTS 18-64,SUPPORTED LIVING,REDACTED,REDACTED
07.04.2022,ADULT SOCIAL CARE,REDACTED PERSONAL DATA,347,MH LTS 18-64,SUPPORTED LIVING,REDACTED,REDACTED
07.04.2022,ADULT SOCIAL CARE,REDACTED PERSONAL DATA,416.4,MH LTS 18-64,SUPPORTED LIVING,REDACTED,REDACTED
07.04.2022,ADULT SOCIAL CARE,REDACTED PERSONAL DATA,416.4,MH LTS 18-64,SUPPORTED LIVING,REDACTED,REDACTED
07.04.2022,ADULT SOCIAL CARE,REDACTED PERSONAL DATA,416.4,MH LTS 18-64,SUPPORTED LIVING,REDACTED,REDACTED
07.04.2022,ADULT SOCIAL CARE,REDACTED PERSONAL DATA,416.4,MH LTS 18-64,SUPPORTED LIVING,REDACTED,REDACTED
07.04.2022,ADULT SOCIAL CARE,REDACTED PERSONAL DATA,416.4,MH LTS 18-64,SUPPORTED LIVING,REDACTED,REDACTED
07.04.2022,ADULT SOCIAL CARE,REDACTED PERSONAL DATA,416.4,MH LTS 18-64,SUPPORTED LIVING,REDACTED,REDACTED
07.04.2022,ADULT SOCIAL CARE,REDACTED PERSONAL DATA,451.1,MH LTS 18-64,SUPPORTED LIVING,REDACTED,REDACTED
07.04.2022,ADULT SOCIAL CARE,REDACTED PERSONAL DATA,485.8,MH LTS 18-64,SUPPORTED LIVING,REDACTED,REDACTED
07.04.2022,ADULT SOCIAL CARE,REDACTED PERSONAL DATA,485.8,MH LTS 18-64,SUPPORTED LIVING,REDACTED,REDACTED
07.04.2022,ADULT SOCIAL CARE,REDACTED PERSONAL DATA,485.8,MH LTS 18-64,SUPPORTED LIVING,REDACTED,REDACTED
07.04.2022,ADULT SOCIAL CARE,REDACTED PERSONAL DATA,485.8,MH LTS 18-64,SUPPORTED LIVING,REDACTED,REDACTED
07.04.2022,ADULT SOCIAL CARE,REDACTED PERSONAL DATA,520.5,MH LTS 18-64,SUPPORTED LIVING,REDACTED,REDACTED
07.04.2022,ADULT SOCIAL CARE,REDACTED PERSONAL DATA,520.5,MH LTS 18-64,SUPPORTED LIVING,REDACTED,REDACTED
07.04.2022,ADULT SOCIAL CARE,REDACTED PERSONAL DATA,555.2,MH LTS 18-64,SUPPORTED LIVING,REDACTED,REDACTED
07.04.2022,ADULT SOCIAL CARE,REDACTED PERSONAL DATA,555.2,MH LTS 18-64,SUPPORTED LIVING,REDACTED,REDACTED
07.04.2022,ADULT SOCIAL CARE,REDACTED PERSONAL DATA,555.2,MH LTS 18-64,SUPPORTED LIVING,REDACTED,REDACTED
07.04.2022,ADULT SOCIAL CARE,REDACTED PERSONAL DATA,607.25,MH LTS 18-64,SUPPORTED LIVING,REDACTED,REDACTED
07.04.2022,ADULT SOCIAL CARE,REDACTED PERSONAL DATA,624.6,MH LTS 18-64,SUPPORTED LIVING,REDACTED,REDACTED
07.04.2022,ADULT SOCIAL CARE,REDACTED PERSONAL DATA,624.6,MH LTS 18-64,SUPPORTED LIVING,REDACTED,REDACTED
07.04.2022,ADULT SOCIAL CARE,REDACTED PERSONAL DATA,624.6,MH LTS 18-64,SUPPORTED LIVING,REDACTED,REDACTED
07.04.2022,ADULT SOCIAL CARE,REDACTED PERSONAL DATA,728.7,MH LTS 18-64,SUPPORTED LIVING,REDACTED,REDACTED
07.04.2022,ADULT SOCIAL CARE,REDACTED PERSONAL DATA,971.6,MH LTS 18-64,SUPPORTED LIVING,REDACTED,REDACTED
07.04.2022,ADULT SOCIAL CARE,REDACTED PERSONAL DATA,"1,170.00",MH LTS 18-64,SUPPORTED LIVING,REDACTED,REDACTED
07.04.2022,ADULT SOCIAL CARE,REDACTED PERSONAL DATA,277.6,MH LTS 65+,SUPPORTED LIVING,REDACTED,REDACTED
07.04.2022,ADULT SOCIAL CARE,REDACTED PERSONAL DATA,277.6,MH LTS 65+,SUPPORTED LIVING,REDACTED,REDACTED
07.04.2022,ADULT SOCIAL CARE,REDACTED PERSONAL DATA,277.6,MH LTS 65+,SUPPORTED LIVING,REDACTED,REDACTED
07.04.2022,ADULT SOCIAL CARE,REDACTED PERSONAL DATA,312.3,MH LTS 65+,SUPPORTED LIVING,REDACTED,REDACTED
07.04.2022,ADULT SOCIAL CARE,REDACTED PERSONAL DATA,364.35,MH LTS 65+,SUPPORTED LIVING,REDACTED,REDACTED
07.04.2022,ADULT SOCIAL CARE,REDACTED PERSONAL DATA,399.05,MH LTS 65+,SUPPORTED LIVING,REDACTED,REDACTED
07.04.2022,ADULT SOCIAL CARE,REDACTED PERSONAL DATA,416.4,MH LTS 65+,SUPPORTED LIVING,REDACTED,REDACTED
